{"text_format":"1","workbook":"xlsx","n_sheets":9,"sheets":["Forside","sjekkliste_matrix","meta_data","Sjekkliste for utfylling","Sheet1","Ikke besvart","JA-svar","Nei-svar","IA-svar"],"not_rendered":{"charts":0,"images":51,"macros":1,"external_links":0,"defined_names":30,"comments":0,"pivot_tables":0},"unopened":[],"bounds":{"document_bytes":16777216,"sheet_cells":100000,"rows_first":2000,"rows_last":500,"rows_between":2000,"halvings":0,"cell_chars":16384,"cell_head_chars":4096},"cells_cut":0,"cells_raw":0,"read":"whole","date_system":"1900"}

{"sheet":"Forside","index":0,"n_rows":55,"n_cols":6,"rows_kept":55,"cut":false,"hidden":false,"merged":[[33,0,33,5],[0,0,0,5],[1,1,1,5],[2,1,2,5],[3,1,3,5],[4,1,4,5],[12,0,12,5],[23,0,23,2]]}
["Sjekkliste årsberetning"]
["Selskap"]
["År",2024]
["Utfylt"]
["Review"]
[]
[]
[null,"Ubesvart","Ja","Nei","IA","Sum"]
["Årsberetning",{"$f":"F9-SUM(C9:E9)","v":131},{"$f":"_xlfn.AGGREGATE(3,5,'Sjekkliste for utfylling'!E8:E256)","v":0},{"$f":"_xlfn.AGGREGATE(3,5,'Sjekkliste for utfylling'!F8:F256)","v":0},{"$f":"_xlfn.AGGREGATE(3,5,'Sjekkliste for utfylling'!G8:G256)+(F9-_xlfn.AGGREGATE(2,5,'Sjekkliste for utfylling'!A8:A256))","v":0},{"$f":"_xlfn.AGGREGATE(2,4,'Sjekkliste for utfylling'!A8:A256)","v":131}]
[]
["Ønsker du å bruke full sjekkliste, eller kun å kontrollere endringer i regelverk fra tidligere år, og eventuelle utvalgte risikoområder i virksomheten?"]
[]
["Veiledning for bruk av full sjekkliste:\nSjekklisten kan spisses sånn at den kun omfatter forhold som er relevante for den aktuelle virksomheten. \n"]
[]
["Full sjekkliste"]
["Er følgende aktuelt for foretaket:"]
["Resultatdisponering og utbyttegrunnlag",null,"Ja",null,"Nei"]
["Regnskapspliktige som er utstedere med verdipapirer notert på regulert marked",null,"Ja",null,"Nei"]
["Bærekraftsrapportering",null,"Ja",null,"Nei"]
["Redegjørelse etter åpenhetsloven",null,"Ja",null,"Nei"]
["Redegjørelse for foretaksstyring",null,"Ja",null,"Nei"]
["Rapportering om betalinger til myndigheter m.v. (land-for-land rapportering)",null,"Ja",null,"Nei"]
[]
["Er foretaket omfattet av disse bransjereglene:"]
["Bank, finansieringsforetak med mer",null,"Ja",null,"Nei"]
["Livsforsikringsforetak eller skadeforsikringsforetak",null,"Ja",null,"Nei"]
["Verdipapirfond",null,"Ja",null,"Nei"]
["Verdipapirforetak",null,"Ja",null,"Nei"]
["Pensjonsforetak",null,"Ja",null,"Nei"]
["Borettslag",null,"Ja",null,"Nei"]
[]
[]
[]
["Veiledning for bruk av endringssjekkliste:\nEndringssjekklisten inneholder de punkter hvor det har vært lovendringer inneværende år. Ved avkryssing i listen nedenfor velger du i tillegg de deler av sjekklisten som er relevante for det temaet du krysser av for. Du får da opp alle sjekkpunkter i regelverket som er aktuelle for det temaet du har valgt. \n"]
[]
["Endringssjekkliste"]
["Er policy for bruk av endringssjekkliste fulgt?",null,"Ja",null,"Nei"]
[]
["Angi siste år for gjennomgang av full sjekkliste"]
[]
["Har det vært endringer i foretaket, eller er det spesifikke områder som kan ha økt risiko for feil, som man ønsker å kontrollere?"]
[]
[]
["Resultatdisponering og utbyttegrunnlag",null,"Ja",null,"Nei"]
["Regnskapspliktige som er utstedere med verdipapirer notert på regulert marked",null,"Ja",null,"Nei"]
["Bærekraftsrapportering",null,"Ja",null,"Nei"]
["Redegjørelse etter åpenhetsloven",null,"Ja",null,"Nei"]
["Redegjørelse for foretaksstyring",null,"Ja",null,"Nei"]
["Rapportering om betalinger til myndigheter m.v. (land-for-land rapportering)",null,"Ja",null,"Nei"]
["Bank, finansieringsforetak med mer",null,"Ja",null,"Nei"]
["Livsforsikringsforetak eller skadeforsikringsforetak",null,"Ja",null,"Nei"]
["Verdipapirfond",null,"Ja",null,"Nei"]
["Verdipapirforetak",null,"Ja",null,"Nei"]
["Pensjonskasse",null,"Ja",null,"Nei"]
["Borettslag",null,"Ja",null,"Nei"]

{"sheet":"sjekkliste_matrix","index":1,"n_rows":254,"n_cols":28,"rows_kept":254,"cut":false,"hidden":true,"merged":[]}
["F0","E0","F1","F2","F3","F4","F5","F6","F7","F8","F9","F10","F11","F12","E1","E2","E3","E4","E5","E6","E7","E8","E9","E10","E11","E12","E13","E14"]
["x","x","x","x","x","x","x","x","x","x","x","x","x","x","x","x","x","x","x","x","x","x","x","x","x","x","x","x"]
["x","x","x","x","x","x","x","x","x","x","x","x","x","x","x","x","x","x","x","x","x","x","x","x","x","x","x","x"]
["x","x","x","x","x","x","x","x","x","x","x","x","x","x","x","x","x","x","x","x","x","x","x","x","x","x","x","x"]
["x","x","x","x","x","x","x","x","x","x","x","x","x","x","x","x","x","x","x","x","x","x","x","x","x","x","x","x"]
["x","x","x","x","x","x","x","x","x","x","x","x","x","x","x","x","x","x","x","x","x","x","x","x","x","x","x","x"]
["x","x","x","x","x","x","x","x","x","x","x","x","x","x","x","x","x","x","x","x","x","x","x","x","x","x","x","x"]
["x","x","x","x","x","x","x","x","x","x","x","x","x","x","x","x","x","x","x","x","x","x","x","x","x","x","x","x"]
["x","x","x","x","x","x","x","x","x","x","x","x","x","x","x","x","x","x","x","x","x","x","x","x","x","x","x","x"]
["x","x","x","x","x","x","x","x","x","x","x","x","x","x","x","x","x","x","x","x","x","x","x","x","x","x","x","x"]
["x","x","x","x","x","x","x","x","x","x","x","x","x","x","x","x","x","x","x","x","x","x","x","x","x","x","x","x"]
["x","x","x","x","x","x","x","x","x","x","x","x","x","x","x","x","x","x","x","x","x","x","x","x","x","x","x","x"]
["x",null,"x","x","x","x","x","x","x","x","x","x","x","x"]
["x",null,"x","x","x","x","x","x","x","x","x","x","x","x"]
["x",null,"x","x","x","x","x","x","x","x","x","x","x","x"]
["x",null,"x","x","x","x","x","x","x","x","x","x","x","x"]
["x",null,"x","x","x","x","x","x","x","x","x","x","x","x"]
["x",null,"x","x","x","x","x","x","x","x","x","x","x","x"]
["x","x","x","x","x","x","x","x","x","x","x","x","x","x","x","x","x","x","x","x","x","x","x","x","x","x","x","x"]
["x",null,"x","x","x","x","x","x","x","x","x","x","x","x"]
["x",null,"x","x","x","x","x","x","x","x","x","x","x","x"]
["x",null,"x","x","x","x","x","x","x","x","x","x","x","x"]
["x",null,"x","x","x","x","x","x","x","x","x","x","x","x",null,"x"]
["x",null,"x","x","x","x","x","x","x","x","x","x","x","x"]
["x",null,"x","x","x","x","x","x","x","x","x","x","x","x"]
["x",null,"x","x","x","x","x","x","x","x","x","x","x","x",null,"x"]
["x",null,"x","x","x","x","x","x","x","x","x","x","x","x"]
["x",null,"x","x","x","x","x","x","x","x","x","x","x","x"]
["x","x","x","x","x","x","x","x","x","x","x","x","x","x","x","x","x","x","x","x","x","x","x","x","x","x","x","x"]
["x","x","x","x","x","x","x","x","x","x","x","x","x","x","x","x","x","x","x","x","x","x","x","x","x","x","x","x"]
["x","x","x","x","x","x","x","x","x","x","x","x","x","x","x","x","x","x","x","x","x","x","x","x","x","x","x","x"]
["x",null,"x","x","x","x","x","x","x","x","x","x","x","x"]
["x",null,"x","x","x","x","x","x","x","x","x","x","x","x"]
["x",null,"x","x","x","x","x","x","x","x","x","x","x","x"]
["x",null,"x","x","x","x","x","x","x","x","x","x","x","x"]
["x",null,"x","x","x","x","x","x","x","x","x","x","x","x"]
["x","x","x","x","x","x","x","x","x","x","x","x","x","x","x","x","x","x","x","x","x","x","x","x","x","x","x","x"]
["x","x","x","x","x","x","x","x","x","x","x","x","x","x","x","x","x","x","x","x","x","x","x","x","x","x","x","x"]
["x",null,"x","x","x","x","x","x","x","x","x","x","x","x",null,"x"]
["x",null,"x","x","x","x","x","x","x","x","x","x","x","x",null,"x"]
["x",null,"x","x","x","x","x","x","x","x","x","x","x","x",null,"x"]
["x",null,"x","x","x","x","x","x","x","x","x","x","x","x",null,"x"]
["x",null,"x","x","x","x","x","x","x","x","x","x","x","x",null,"x"]
["x",null,"x","x","x","x","x","x","x","x","x","x","x","x",null,"x"]
["x",null,"x","x","x","x","x","x","x","x","x","x","x","x",null,"x"]
["x",null,"x","x","x","x","x","x","x","x","x","x","x","x",null,"x"]
["x",null,"x","x","x","x","x","x","x","x","x","x","x","x",null,"x"]
["x",null,"x","x","x","x","x","x","x","x","x","x","x","x",null,"x"]
["x",null,"x","x","x","x","x","x","x","x","x","x","x","x",null,"x"]
["x",null,"x","x","x","x","x","x","x","x","x","x","x","x",null,"x"]
["x",null,"x","x","x","x","x","x","x","x","x","x","x","x",null,"x"]
["x",null,"x","x","x","x","x","x","x","x","x","x","x","x",null,"x"]
["x",null,"x","x","x","x","x","x","x","x","x","x","x","x",null,"x"]
["x",null,"x","x","x","x","x","x","x","x","x","x","x","x",null,"x"]
["x",null,"x","x","x","x","x","x","x","x","x","x","x","x",null,"x"]
["x",null,"x","x","x","x","x","x","x","x","x","x","x","x",null,"x"]
["x",null,"x","x","x","x","x","x","x","x","x","x","x","x",null,"x"]
["x",null,"x","x","x","x","x","x","x","x","x","x","x","x",null,"x"]
["x",null,"x","x","x","x","x","x","x","x","x","x","x","x",null,"x"]
["x",null,"x","x","x","x","x","x","x","x","x","x","x","x",null,"x"]
["x",null,"x","x","x","x","x","x","x","x","x","x","x","x",null,"x"]
["x",null,"x","x","x","x","x","x","x","x","x","x","x","x",null,"x"]
["x",null,"x","x","x","x","x","x","x","x","x","x","x","x",null,"x"]
["x",null,"x","x","x","x","x","x","x","x","x","x","x","x",null,"x"]
["x",null,"x","x","x","x","x","x","x","x","x","x","x","x",null,"x"]
["x",null,"x","x","x","x","x","x","x","x","x","x","x","x",null,"x"]
["x",null,"x","x","x","x","x","x","x","x","x","x","x","x",null,"x"]
["x",null,"x","x","x","x","x","x","x","x","x","x","x","x",null,"x"]
["x","x","x","x","x","x","x","x","x","x","x","x","x","x","x","x","x","x","x","x","x","x","x","x","x","x","x","x"]
["x","x","x","x","x","x","x","x","x","x","x","x","x","x","x","x","x","x","x","x","x","x","x","x","x","x","x","x"]
["x",null,"x","x","x","x","x","x","x","x","x","x","x","x"]
["x",null,"x","x","x","x","x","x","x","x","x","x","x","x"]
["x",null,"x","x","x","x","x","x","x","x","x","x","x","x"]
["x",null,"x","x","x","x","x","x","x","x","x","x","x","x"]
["x",null,"x","x","x","x","x","x","x","x","x","x","x","x"]
["x",null,"x","x","x","x","x","x","x","x","x","x","x","x"]
["x",null,"x","x","x","x","x","x","x","x","x","x","x","x"]
["x",null,"x","x","x","x","x","x","x","x","x","x","x","x"]
["x",null,"x","x","x","x","x","x","x","x","x","x","x","x"]
["x",null,"x","x","x","x","x","x","x","x","x","x","x","x"]
["x",null,"x","x","x","x","x","x","x","x","x","x","x","x"]
["x","x","x","x","x","x","x","x","x","x","x","x","x","x","x","x","x","x","x","x","x","x","x","x","x","x","x","x"]
["x","x","x","x","x","x","x","x","x","x","x","x","x","x","x","x","x","x","x","x","x","x","x","x","x","x","x","x"]
["x",null,"x","x","x","x","x","x","x","x","x","x","x","x"]
["x",null,"x","x","x","x","x","x","x","x","x","x","x","x"]
["x",null,"x","x","x","x","x","x","x","x","x","x","x","x"]
["x",null,"x","x","x","x","x","x","x","x","x","x","x","x"]
["x",null,"x","x","x","x","x","x","x","x","x","x","x","x"]
["x","x","x","x","x","x","x","x","x","x","x","x","x","x"]
["x","x","x","x","x","x","x","x","x","x","x","x","x","x"]
["x","x","x","x","x","x","x","x","x","x","x","x","x","x"]
["x","x","x","x","x","x","x","x","x","x","x","x","x","x"]
["x","x","x","x","x","x","x","x","x","x","x","x","x","x"]
["x","x","x","x","x","x","x","x","x","x","x","x","x","x"]
["x","x","x","x","x","x","x","x","x","x","x","x","x","x","x","x","x","x","x","x","x","x","x","x","x","x","x","x"]
["x","x","x","x","x","x","x","x","x","x","x","x","x","x","x","x","x","x","x","x","x","x","x","x","x","x","x","x"]
["x","x","x","x","x","x","x","x","x","x","x","x","x","x","x","x","x","x","x","x","x","x","x","x","x","x","x","x"]
["x",null,"x","x","x","x","x","x","x","x","x","x","x","x",null,"x"]
["x",null,"x","x","x","x","x","x","x","x","x","x","x","x",null,"x"]
["x",null,"x","x","x","x","x","x","x","x","x","x","x","x",null,"x"]
["x",null,"x","x","x","x","x","x","x","x","x","x","x","x",null,"x"]
["x",null,"x","x","x","x","x","x","x","x","x","x","x","x",null,"x"]
["x",null,"x","x","x","x","x","x","x","x","x","x","x","x",null,"x"]
["x",null,"x","x","x","x","x","x","x","x","x","x","x","x",null,"x"]
["x",null,"x","x","x","x","x","x","x","x","x","x","x","x",null,"x"]
["x",null,"x","x","x","x","x","x","x","x","x","x","x","x",null,"x"]
["x",null,"x","x","x","x","x","x","x","x","x","x","x","x",null,"x"]
["x",null,"x","x","x","x","x","x","x","x","x","x","x","x",null,"x"]
["x","x","x","x","x","x","x","x","x","x","x","x","x","x","x","x","x","x","x","x","x","x","x","x","x","x","x","x"]
["x","x","x","x","x","x","x","x","x","x","x","x","x","x","x","x","x","x","x","x","x","x","x","x","x","x","x","x"]
["x",null,null,"x","x","x","x","x","x","x","x","x","x","x",null,"x","x"]
["x",null,null,"x","x","x","x","x","x","x","x","x","x","x",null,"x","x"]
["x","x","x","x","x","x","x","x","x","x","x","x","x","x","x","x","x","x","x","x","x","x","x","x","x","x","x","x"]
["x","x","x","x","x","x","x","x","x","x","x","x","x","x"]
["x","x","x","x","x","x","x","x","x","x","x","x","x","x"]
["x","x","x","x","x","x","x","x","x","x","x","x","x","x","x","x","x","x","x","x","x","x","x","x","x","x","x","x"]
["x","x","x","x","x","x","x","x","x","x","x","x","x","x","x","x","x","x","x","x","x","x","x","x","x","x","x","x"]
["x",null,"x","x","x","x","x","x","x","x","x","x","x","x"]
["x",null,"x","x","x","x","x","x","x","x","x","x","x","x"]
["x",null,"x","x","x","x","x","x","x","x","x","x","x","x"]
["x",null,"x","x","x","x","x","x","x","x","x","x","x","x"]
["x",null,"x","x","x","x","x","x","x","x","x","x","x","x"]
["x",null,"x","x","x","x","x","x","x","x","x","x","x","x"]
["x",null,"x","x","x","x","x","x","x","x","x","x","x","x"]
["x","x","x","x","x","x","x","x","x","x","x","x","x","x","x","x","x","x","x","x","x","x","x","x","x","x","x","x"]
["x","x","x","x","x","x","x","x","x","x","x","x","x","x","x","x","x","x","x","x","x","x","x","x","x","x","x","x"]
["x",null,"x","x","x","x","x","x","x","x","x","x","x","x"]
["x",null,"x","x","x","x","x","x","x","x","x","x","x","x"]
["x",null,"x","x","x","x","x","x","x","x","x","x","x","x"]
["x",null,"x","x","x","x","x","x","x","x","x","x","x","x"]
["x",null,"x","x","x","x","x","x","x","x","x","x","x","x"]
["x",null,"x","x","x","x","x","x","x","x","x","x","x","x"]
["x",null,"x","x","x","x","x","x","x","x","x","x","x","x"]
["x",null,"x","x","x","x","x","x","x","x","x","x","x","x"]
["x","x","x","x","x","x","x","x","x","x","x","x","x","x","x","x","x","x","x","x","x","x","x","x","x","x","x","x"]
["x","x","x","x","x","x","x","x","x","x","x","x","x","x","x","x","x","x","x","x","x","x","x","x","x","x","x","x"]
["x","x","x","x","x","x","x","x","x","x","x","x","x","x"]
["x","x","x","x","x","x","x","x","x","x","x","x","x","x"]
["x","x","x","x","x","x","x","x","x","x","x","x","x","x"]
["x","x","x","x","x","x","x","x","x","x","x","x","x","x"]
["x","x","x","x","x","x","x","x","x","x","x","x","x","x"]
["x","x","x","x","x","x","x","x","x","x","x","x","x","x"]
["x","x","x","x","x","x","x","x","x","x","x","x","x","x","x","x","x","x","x","x","x","x","x","x","x","x","x","x"]
["x",null,"x","x","x","x","x","x","x","x","x","x","x","x",null,null,null,"x"]
["x",null,"x","x","x","x","x","x","x","x","x","x","x","x",null,null,null,"x"]
["x",null,"x","x","x","x","x","x","x","x","x","x","x","x",null,null,null,"x"]
["x","x","x","x","x","x","x","x","x","x","x","x","x","x","x","x","x","x","x","x","x","x","x","x","x","x","x","x"]
["x",null,"x","x",null,"x","x","x","x","x","x","x","x","x",null,null,null,null,"x"]
["x",null,"x","x",null,"x","x","x","x","x","x","x","x","x",null,null,null,null,"x"]
["x",null,"x","x",null,"x","x","x","x","x","x","x","x","x",null,null,null,null,"x"]
["x",null,"x","x",null,"x","x","x","x","x","x","x","x","x",null,null,null,null,"x"]
["x",null,"x","x",null,"x","x","x","x","x","x","x","x","x",null,null,null,null,"x"]
["x","x","x","x","x","x","x","x","x","x","x","x","x","x","x","x","x","x","x","x","x","x","x","x","x","x","x","x"]
["x",null,"x","x","x","x","x","x","x","x","x","x","x","x"]
["x","x","x","x","x","x","x","x","x","x","x","x","x","x",null,null,null,null,null,null,"x"]
["x","x","x","x","x","x",null,"x","x","x","x","x","x","x",null,null,null,null,null,null,"x"]
["x","x","x","x","x","x","x","x","x","x","x","x","x","x","x","x","x","x","x","x","x","x","x","x","x","x","x","x"]
["x",null,"x","x","x","x","x",null,"x","x","x","x","x","x",null,null,null,"x",null,null,null,"x"]
["x",null,"x","x","x","x","x",null,"x","x","x","x","x","x",null,null,null,null,null,null,null,"x"]
["x",null,"x","x","x","x","x",null,"x","x","x","x","x","x",null,null,null,null,null,null,null,"x"]
["x",null,"x","x","x","x","x",null,"x","x","x","x","x","x",null,null,null,null,null,null,null,"x"]
["x",null,"x","x","x","x","x",null,"x","x","x","x","x","x",null,null,null,null,null,null,null,"x"]
["x",null,"x","x","x","x","x",null,"x","x","x","x","x","x",null,null,null,null,null,null,null,"x"]
["x",null,"x","x","x","x","x",null,"x","x","x","x","x","x",null,null,null,null,null,null,null,"x"]
["x","x","x","x","x","x","x","x","x","x","x","x","x","x","x","x","x","x","x","x","x","x","x","x","x","x","x","x"]
["x","x","x","x","x","x","x","x","x","x","x","x","x","x","x","x","x","x","x","x","x","x","x","x","x","x","x","x"]
["x",null,"x","x","x",null,"x","x","x","x","x","x","x","x",null,null,null,null,null,"x"]
["x",null,"x","x","x",null,"x","x","x","x","x","x","x","x",null,null,null,null,null,"x"]
["x",null,"x","x","x",null,"x","x","x","x","x","x","x","x",null,null,null,null,null,"x"]
["x",null,"x","x","x",null,"x","x","x","x","x","x","x","x",null,null,null,null,null,"x"]
["x",null,"x","x","x",null,"x","x","x","x","x","x","x","x",null,null,null,null,null,"x"]
["x",null,"x","x","x",null,"x","x","x","x","x","x","x","x",null,null,null,null,null,"x"]
["x",null,"x","x","x",null,"x","x","x","x","x","x","x","x",null,null,null,null,null,"x"]
["x",null,"x","x","x",null,"x","x","x","x","x","x","x","x",null,null,null,null,null,"x"]
["x",null,"x","x","x",null,"x","x","x","x","x","x","x","x",null,null,null,null,null,"x"]
["x",null,"x","x","x",null,"x","x","x","x","x","x","x","x",null,null,null,null,null,"x"]
["x",null,"x","x","x",null,"x","x","x","x","x","x","x","x",null,null,null,null,null,"x"]
["x",null,"x","x","x",null,"x","x","x","x","x","x","x","x",null,null,null,null,null,"x"]
["x",null,"x","x","x",null,"x","x","x","x","x","x","x","x",null,null,null,null,null,"x"]
["x",null,"x","x","x",null,"x","x","x","x","x","x","x","x",null,null,null,null,null,"x"]
["x",null,"x","x","x",null,"x","x","x","x","x","x","x","x",null,null,null,null,null,"x"]
["x",null,"x","x","x",null,"x","x","x","x","x","x","x","x",null,null,null,null,null,"x"]
["x",null,"x","x","x",null,"x","x","x","x","x","x","x","x",null,null,null,null,null,"x"]
["x","x","x","x","x","x","x","x","x","x","x","x","x","x","x","x","x","x","x","x","x","x","x","x","x","x","x","x"]
["x",null,"x",null,"x","x","x","x","x","x","x","x","x","x",null,null,null,"x"]
["x",null,"x",null,"x","x","x","x","x","x","x","x","x","x",null,null,null,"x"]
["x",null,"x",null,"x","x","x","x","x","x","x","x","x","x",null,null,null,"x"]
["x",null,"x",null,"x","x","x","x","x","x","x","x","x","x",null,null,null,"x"]
["x",null,"x",null,"x","x","x","x","x","x","x","x","x","x",null,null,null,"x"]
["x",null,"x",null,"x","x","x","x","x","x","x","x","x","x",null,null,null,"x"]
["x",null,"x",null,"x","x","x","x","x","x","x","x","x","x",null,null,null,"x"]
["x",null,"x",null,"x","x","x","x","x","x","x","x","x","x",null,null,null,"x"]
["x",null,"x",null,"x","x","x","x","x","x","x","x","x","x",null,null,null,"x"]
["x",null,"x",null,"x","x","x","x","x","x","x","x","x","x",null,null,null,"x"]
["x",null,"x",null,"x","x","x","x","x","x","x","x","x","x",null,null,null,"x"]
["x",null,"x",null,"x","x","x","x","x","x","x","x","x","x",null,null,null,"x"]
["x",null,"x",null,"x","x","x","x","x","x","x","x","x","x",null,null,null,"x"]
["x",null,"x",null,"x","x","x","x","x","x","x","x","x","x",null,null,null,"x"]
["x",null,"x",null,"x","x","x","x","x","x","x","x","x","x",null,null,null,"x"]
["x",null,"x",null,"x","x","x","x","x","x","x","x","x","x",null,null,null,"x"]
["x",null,"x",null,"x","x","x","x","x","x","x","x","x","x",null,null,null,"x"]
["x",null,"x",null,"x","x","x","x","x","x","x","x","x","x",null,null,null,"x"]
["x",null,"x",null,"x","x","x","x","x","x","x","x","x","x",null,null,null,"x"]
["x",null,"x",null,"x","x","x","x","x","x","x","x","x","x",null,null,null,"x"]
["x",null,"x",null,"x","x","x","x","x","x","x","x","x","x",null,null,null,"x"]
["x",null,"x",null,"x","x","x","x","x","x","x","x","x","x",null,null,null,"x"]
["x",null,"x",null,"x","x","x","x","x","x","x","x","x","x",null,null,null,"x"]
["x",null,"x",null,"x","x","x","x","x","x","x","x","x","x",null,null,null,"x"]
["x",null,"x",null,"x","x","x","x","x","x","x","x","x","x",null,null,null,"x"]
["x",null,"x",null,"x","x","x","x","x","x","x","x","x","x",null,null,null,"x"]
["x",null,"x",null,"x","x","x","x","x","x","x","x","x","x",null,null,null,"x"]
["x",null,"x",null,"x","x","x","x","x","x","x","x","x","x",null,null,null,"x"]
["x",null,"x",null,"x","x","x","x","x","x","x","x","x","x",null,null,null,"x"]
["x",null,"x",null,"x","x","x","x","x","x","x","x","x","x",null,null,null,"x"]
["x",null,"x",null,"x","x","x","x","x","x","x","x","x","x",null,null,null,"x"]
["x",null,"x",null,"x","x","x","x","x","x","x","x","x","x",null,null,null,"x"]
["x",null,"x",null,"x","x","x","x","x","x","x","x","x","x",null,null,null,"x"]
["x",null,"x",null,"x","x","x","x","x","x","x","x","x","x",null,null,null,"x"]
["x",null,"x",null,"x","x","x","x","x","x","x","x","x","x",null,null,null,"x"]
["x",null,"x",null,"x","x","x","x","x","x","x","x","x","x",null,null,null,"x"]
["x",null,"x",null,"x","x","x","x","x","x","x","x","x","x",null,null,null,"x"]
["x","x","x","x","x","x","x","x","x","x","x","x","x","x","x","x","x","x","x","x","x","x","x","x","x","x","x","x"]
["x",null,"x","x","x","x","x","x",null,"x","x","x","x","x",null,null,null,null,null,null,null,null,"x"]
["x",null,"x","x","x","x","x","x",null,"x","x","x","x","x",null,null,null,null,null,null,null,null,"x"]
["x","x","x","x","x","x","x","x","x","x","x","x","x","x","x","x","x","x","x","x","x","x","x","x","x","x","x","x"]
["x",null,"x","x","x","x","x","x","x",null,"x","x","x","x",null,null,null,null,null,null,null,null,null,"x"]
["x",null,"x","x","x","x","x","x","x",null,"x","x","x","x",null,null,null,null,null,null,null,null,null,"x"]
["x",null,"x","x","x","x","x","x","x",null,"x","x","x","x",null,null,null,null,null,null,null,null,null,"x"]
["x",null,"x","x","x","x","x","x","x",null,"x","x","x","x",null,null,null,null,null,null,null,null,null,"x"]
["x",null,"x","x","x","x","x","x","x",null,"x","x","x","x",null,null,null,null,null,null,null,null,null,"x"]
["x",null,"x","x","x","x","x","x","x",null,"x","x","x","x",null,null,null,null,null,null,null,null,null,"x"]
["x","x","x","x","x","x","x","x","x","x","x","x","x","x","x","x","x","x","x","x","x","x","x","x","x","x","x","x"]
["x",null,"x","x","x","x","x","x","x","x",null,"x","x","x",null,null,null,null,null,null,null,null,null,null,"x"]
["x",null,"x","x","x","x","x","x","x","x",null,"x","x","x",null,null,null,null,null,null,null,null,null,null,"x"]
["x",null,"x","x","x","x","x","x","x","x",null,"x","x","x",null,null,null,null,null,null,null,null,null,null,"x"]
["x",null,"x","x","x","x","x","x","x","x",null,"x","x","x",null,null,null,null,null,null,null,null,null,null,"x"]
["x",null,"x","x","x","x","x","x","x","x",null,"x","x","x",null,null,null,null,null,null,null,null,null,null,"x"]
["x",null,"x","x","x","x","x","x","x","x",null,"x","x","x",null,null,null,null,null,null,null,null,null,null,"x"]
["x",null,"x","x","x","x","x","x","x","x",null,"x","x","x",null,null,null,null,null,null,null,null,null,null,"x"]
["x","x","x","x","x","x","x","x","x","x","x","x","x","x","x","x","x","x","x","x","x","x","x","x","x","x","x","x"]
["x",null,"x","x","x","x","x","x","x","x","x",null,"x","x",null,null,null,null,null,null,null,null,null,null,null,"x"]
["x",null,"x","x","x","x","x","x","x","x","x",null,"x","x",null,null,null,null,null,null,null,null,null,null,null,"x"]
["x",null,"x","x","x","x","x","x","x","x","x",null,"x","x",null,null,null,null,null,null,null,null,null,null,null,"x"]
["x","x","x","x","x","x","x","x","x","x","x","x","x","x","x","x","x","x","x","x","x","x","x","x","x","x","x","x"]
["x",null,"x","x","x","x","x","x","x","x","x","x",null,"x",null,null,null,null,null,null,null,null,null,null,null,null,"x"]
["x",null,"x","x","x","x","x","x","x","x","x","x",null,"x",null,null,null,null,null,null,null,null,null,null,null,null,"x"]
["x",null,"x","x","x","x","x","x","x","x","x","x",null,"x",null,null,null,null,null,null,null,null,null,null,null,null,"x"]
["x",null,"x","x","x","x","x","x","x","x","x","x",null,"x",null,null,null,null,null,null,null,null,null,null,null,null,"x"]
["x",null,"x","x","x","x","x","x","x","x","x","x",null,"x",null,null,null,null,null,null,null,null,null,null,null,null,"x"]
["x",null,"x","x","x","x","x","x","x","x","x","x",null,"x",null,null,null,null,null,null,null,null,null,null,null,null,"x"]
["x",null,"x","x","x","x","x","x","x","x","x","x",null,"x",null,null,null,null,null,null,null,null,null,null,null,null,"x"]
["x","x","x","x","x","x","x","x","x","x","x","x","x","x","x","x","x","x","x","x","x","x","x","x","x","x","x","x"]
["x",null,"x","x","x","x","x","x","x","x","x","x","x",null,null,null,null,null,null,null,null,null,null,null,null,null,null,"x"]
["x",null,"x","x","x","x","x","x","x","x","x","x","x",null,null,null,null,null,null,null,null,null,null,null,null,null,null,"x"]

{"sheet":"meta_data","index":2,"n_rows":29,"n_cols":4,"rows_kept":29,"cut":false,"hidden":true,"merged":[]}
["Key","Beskrivelse","trigger_code","Indicates wether the algo shall loop through the matrix on releated column"]
["F0","Full",true,"trigger code har jeg ikke kontroll på her, på key får jeg heller ikke til koden, så har bare lagt det inn manuelt"]
["E0","Endring",false]
["F1","Resultatdisponering og utbyttegrunnlag",true]
["F2","Rapportering om betalinger til myndigheter m.v. (land-for-land rapportering)",true]
["F3","Regnskapspliktige som er utstedere med verdipapirer notert på regulert marked",true]
["F4","Redegjørelse for foretaksstyring",true]
["F5","Bærekraftsrapportering",true]
["F6","Redegjørelse etter åpenhetsloven",true]
["F7","Bank, finansieringsforetak med mer",true]
["F8","Livsforsikringsforetak eller skadeforsikringsforetak",true]
["F9","Verdipapirfond",true]
["F10","Verdipapirforetak",true]
["F11","Pensjonskasse",true]
["F12","Borettslag",true]
["E1","Policy",false]
["E2","Revisors ansvar",false]
["E3","Resultatdisponering og utbyttegrunnlag",false]
["E4","Rapportering om betalinger til myndigheter m.v. (land-for-land rapportering)",false]
["E5","Regnskapspliktige som er utstedere med verdipapirer notert på regulert marked",false]
["E6","Redegjørelse for foretaksstyring",false]
["E7","Bærekraftsrapportering",false]
["E8","Redegjørelse etter åpenhetsloven",false]
["E9","Bank, finansieringsforetak med mer",false]
["E10","Livsforsikringsforetak eller skadeforsikringsforetak",false]
["E11","Verdipapirfond",false]
["E12","Verdipapirforetak",false]
["E13","Pensjonskasse",false]
["E14","Borettslag",false]

{"sheet":"Sjekkliste for utfylling","index":3,"n_rows":254,"n_cols":12,"rows_kept":254,"cut":false,"hidden":false,"merged":[[228,7,229,7],[228,3,229,3],[26,4,27,4],[26,5,27,5],[98,5,99,5],[226,6,227,6],[226,7,227,7],[26,7,27,7],[104,5,105,5],[104,6,105,6],[180,5,182,5],[226,4,227,4],[226,5,227,5],[98,7,99,7],[98,4,99,4],[104,4,105,4],[228,6,229,6],[228,0,229,0],[8,0,10,0],[104,1,105,1],[104,0,105,0],[106,1,107,1],[106,0,107,0],[8,1,10,1],[88,0,89,1],[15,1,16,1],[134,0,135,1],[226,0,227,0],[226,1,227,1],[26,0,27,0],[104,3,105,3],[106,3,107,3],[240,2,241,2],[232,2,233,2],[108,0,109,1],[185,3,188,3],[180,4,182,4],[124,0,125,1],[228,1,229,1],[228,4,229,4],[108,4,109,7],[180,0,182,0],[180,1,182,1],[180,6,182,6],[180,7,182,7],[115,0,116,1],[185,2,188,2],[228,5,229,5],[0,0,0,2],[4,0,5,7],[106,4,107,4],[26,1,27,1],[81,0,82,1],[100,1,101,1],[98,3,99,3],[26,6,27,6],[115,4,116,7],[104,7,105,7],[106,5,107,5],[68,0,69,1],[94,0,96,1],[98,1,99,1],[98,0,99,0],[100,0,101,0],[106,7,107,7],[100,5,101,5],[100,6,101,6],[100,7,101,7],[106,6,107,6],[98,6,99,6],[100,3,101,3],[100,4,101,4]]}
["Kontroll av årsberetningen samt evt redegjørelser for foretaksstyring, åpenhetsloven og rapportering om betalinger til myndigheter - mellomstore og store foretak",null,null,"Utfylt:",null,null,null,null,null,null,"Sum"]
["Klient:",{"$f":"+Forside!B2","v":0},null,"Review:",null,null,null,null,null,"Ikke besvart:",{"$f":"Forside!B9","v":131}]
["År:",{"$f":"+Forside!B3","v":2024},null,null,null,null,null,null,null,"Ja-svar:",{"$f":"Forside!C9","v":0}]
[null,null,null,null,null,null,null,null,null,"Nei-svar:",{"$f":"Forside!D9","v":0}]
["Enkelte selskaper har tilleggskrav ihht regnskapsloven eller forskrifter til regnskapsloven, disse fremgår nederst i denne sjekklisten. ",null,null,null,null,null,null,null,null,"IA-svar:",{"$f":"Forside!E9","v":0}]
[null,null,null,null,null,null,null,null,null,"Sum:",{"$f":"SUM(K2:K5)","v":131}]
[null,"Spørsmål","Ref. ",null,"Ja","Nei","I/A","Kommentar"]
["Plikt til utarbeidelse"]
[null,"Regnskapspliktige som er mellomstore eller store foretak skal utarbeide årsberetning. \n\nDet kan være andre forhold enn de som spesifikt er omtalt i regnskapsloven § 2-2 og NRS 16 Årsberetning, som kan påvirke verdien av foretaket eller på annen måte har betydning for foretakets interessegrupper. Det bør gis informasjon om slike forhold, for eksempel:\n• Endringer i aksjonærsammensetningen\n• Endringer i ledelses- og organisasjonsforhold\n• Aksjonærpolitikk\n• Endringer i foretakets vedtekter\n• Erverv av egne aksjer ","rskl § 2-1\n\n\n\n"]
[null,null,"NRS 16 pkt 2.15"]
[]
["Formkrav"]
[1,"Er årsberetningen på norsk, eller annet språk som selskapet har fått dispensasjon til å bruke?","rskl § 2-11",null,null,null,null,null,null,{"$f":"IF(F13<>\"\",\"Du har satt X for at forholdet ikke er avklart. Gi en nærmere foklaring i kommentarfeltet.\",\"\")","v":""}]
[{"$f":"+A13+1","v":2},"Er årsberetningen signert av samtlige styremedlemmer og eventuelt av daglig leder, alternativt av deltakerne eller medlemmene hvis foretaket ikke har styre eller daglig leder?","rskl § 2-12 jf § 3-5",null,null,null,null,null,null,{"$f":"IF(F14<>\"\",\"Du har satt X for at forholdet ikke er avklart. Gi en nærmere foklaring i kommentarfeltet.\",\"\")","v":""}]
[{"$f":"+A14+1","v":3},"Dersom en som skal signere har innvendinger mot årsregnskapet eller årsberetningen, har vedkommende signert med påtegnet forbehold og gitt nærmere redegjørelse?","rskl § 2-12 jf § 3-5",null,null,null,null,null,null,{"$f":"IF(F15<>\"\",\"Du har satt X for at forholdet ikke er avklart. Gi en nærmere foklaring i kommentarfeltet.\",\"\")","v":""}]
[null,"Merk at dersom det i årsberetningen er henvist til redegjørelse om foretakssstyring ihht rskl § 2-9, og/eller rapport om betaling til myndigheter mv ihht § 2-10, så omfatter signering på årsberetningen også slik redegjørelse/rapport.","rskl § 2-12 (2)"]
[null,null,"NRS 16, pkt 2.3"]
[{"$f":"+A15+1","v":4},"Er årsberetningen fastsatt innenfor lovens frist, og samtidig med årsregnskapet?","rskl § 2-1 jf 3-1",null,null,null,null,null,null,{"$f":"IF(F18<>\"\",\"Du har satt X for at forholdet ikke er avklart. Gi en nærmere foklaring i kommentarfeltet.\",\"\")","v":""}]
["Generelle krav"]
[null,"Ved rapportering av virksomhetsområder bør informasjonen i årsberetningen søkes organisert på samme måte som virksomhetsområdene er behandlet i årsregnskapet","NRS 16, \npkt 2.3"]
[{"$f":"+A18+1","v":5},"Gir årsberetningen et dekkende bilde av foretakets historiske og framtidige utvikling, resultat og stilling?",null,null,null,null,null,null,null,{"$f":"IF(F21<>\"\",\"Du har satt X for at forholdet ikke er avklart. Gi en nærmere foklaring i kommentarfeltet.\",\"\")","v":""}]
[{"$f":"+A21+1","v":6},"Er årsberetningen skrevet så klart og presist som mulig, i et forståelig språk, og med en balansert omtale av positive og negative forhold i den grad det gis slik omtale?",null,null,null,null,null,null,null,""]
[7,"Er det konsistens i behandlingen av samme forhold i årsberetningen og årsregnskapet?",null,null,null,null,null,null,null,""]
[8,"Er det redegjort for forholdet dersom utviklingen ikke har vært i overensstemmelse med vesentlige utsagn i tidligere årsberetninger?",null,null,null,null,null,null,null,""]
[9,"Er det lagt vekt på vurderinger av kvalitativ art som forklarer forholdstall og annen tallbasert informasjon?",null,null,null,null,null,null,null,""]
[10,"Kan refererte regnskapsmessige tallstørrelser i årsberetningen gjenfinnes i årsregnskapet, eventuelt som avstemming i notene?",null,null,null,null,null,null,null,""]
[11,"For morselskap som utarbeider konsernregnskap, dekker årsberetningen også virksomheten i konsernet?","rskl § 2-1 (2)",null,null,null,null,null,null,""]
[null,null,"NRS 16, \npkt 2.2",null,null,null,null,null,null,""]
[{"$f":"+A27+1","v":12},"Gir informasjonen om virksomheten i konsernet grunnlag for å vurdere morselskapet og datterselskapene som en enhet?",null,null,null,null,null,null,null,""]
["Virksomhetens art og tilholdssted",null,"rskl § 2-2 (1)\n"]
[null,null,"NRS 16, pkt 2.4 "]
[{"$f":"+A29+1","v":13},"Er det opplyst om arten av virksomheten? ",null,null,null,null,null,null,null,{"$f":"IF(F32<>\"\",\"Du har satt X for at forholdet ikke er avklart. Gi en nærmere foklaring i kommentarfeltet.\",\"\")","v":""}]
[{"$f":"+A32+1","v":14},"Dersom det er flere typer virksomhet, er det gitt opplysninger om hver virksomhet?",null,null,null,null,null,null,null,{"$f":"IF(F33<>\"\",\"Du har satt X for at forholdet ikke er avklart. Gi en nærmere foklaring i kommentarfeltet.\",\"\")","v":""}]
[{"$f":"+A33+1","v":15},"Er det opplyst hvor virksomheten drives? ",null,null,null,null,null,null,null,{"$f":"IF(F34<>\"\",\"Du har satt X for at forholdet ikke er avklart. Gi en nærmere foklaring i kommentarfeltet.\",\"\")","v":""}]
[{"$f":"+A34+1","v":16},"Ved flere filialer eller avdelinger, er det opplyst om hvor de ulike filialene / avdelingene drives? ",null,null,null,null,null,null,null,{"$f":"IF(F35<>\"\",\"Du har satt X for at forholdet ikke er avklart. Gi en nærmere foklaring i kommentarfeltet.\",\"\")","v":""}]
[null,"Dersom det kan være viktig for å forstå virksomhetens art og lokalisering oppfordres det i regnskapsstandarden til å gi en redegjørelse for foretakets forretningsidé og strategi.",null,null,null,null,null,null,null,{"$f":"IF(F36<>\"\",\"Du har satt X for at forholdet ikke er avklart. Gi en nærmere foklaring i kommentarfeltet.\",\"\")","v":""}]
["Rettvisende oversikt / redegjørelse for årsregnskapet",null,"rskl 2-2 (2) til (4)\n"]
[null,null,"NRS 16, pkt 2.5"]
[null,"NRS 16 pkt 2.5 inneholder utdypende kommentarer og anbefalinger til kravene i rskl § 2-2, 2. til 4. ledd vedrørende rettvisende oversikt over utvikling og resultat av foretakets virksomhet og stilling. "]
[{"$f":"+A35+1","v":17},"Er det gitt en rettvisende oversikt over utvikling og resultat av foretakets virksomhet og dets stilling?",null,null,null,null,null,null,null,{"$f":"IF(F40<>\"\",\"Du har satt X for at forholdet ikke er avklart. Gi en nærmere foklaring i kommentarfeltet.\",\"\")","v":""}]
[{"$f":"+A40+1","v":18},"Er sentrale risikoer og usikkerhetsfaktorer beskrevet?",null,null,null,null,null,null,null,{"$f":"IF(F41<>\"\",\"Du har satt X for at forholdet ikke er avklart. Gi en nærmere foklaring i kommentarfeltet.\",\"\")","v":""}]
[{"$f":"+A41+1","v":19},"Er oversikten en balansert og fyllestgjørende analyse av utvikling, resultat og stilling?",null,null,null,null,null,null,null,""]
[20,"I den grad det anses nødvendig for å forstå foretakets utvikling, resultat eller stilling, inneholder analysen både finansielle og, der det passer, ikke-finansielle sentrale og aktuelle resultatindikatorer, inkludert opplysninger om miljøforhold og forhold som gjelder arbeidstakere?",null,null,null,null,null,null,null,""]
[21,"Inneholder årsberetningen, der det passer, henvisninger og tilleggsforklaringer til beløp oppført i årsregnskapet?",null,null,null,null,null,null,null,""]
[22,"Er hovedfaktorene som påvirker virksomheten identifisert og forklart?",null,null,null,null,null,null,null,""]
[23,"Er uvanlige eller ekstraordinære forhold belyst?",null,null,null,null,null,null,null,""]
[24,"Er det opplyst om årsaken til og virkningen av vesentlige endringer i regnskapsprinsipper?",null,null,null,null,null,null,null,""]
[25,"Er det opplyst om viktige hendelser etter balansedagen, samt redegjort for hendelsenes faktiske eller potensielle virkning på resultat og stilling?",null,null,null,null,null,null,null,""]
[26,"Er endringer av overordnet og strategisk betydning, som for eksempel endring i satsningsområder og vesentlige strukturelle endringer, omtalt?",null,null,null,null,null,null,null,""]
[27,"Er forventede virkninger på resultat og stilling av slike endringer kommentert?",null,null,null,null,null,null,null,""]
[{"$f":"+A50+1","v":28},"Er det gitt en overordnet vurdering av total usikkerhet vedrørende foretakets regnskapsførte resultat og finansielle stilling?",null,null,null,null,null,null,null,""]
["Resultatregnskapet",null,"NRS 16, \npkt 2.5"]
[{"$f":"+A51+1","v":29},"Er viktige utviklingstrekk for virksomheten som er av betydning for å bedømme foretakets stilling og resultat drøftet, for eksempel:\no Endringer i markedsforhold\no Nye produkter og tjenester\no Endringer i markedsandeler eller markedsposisjoner\no Endringer i salgsmengde eller marginer\no Endringer i valutakurser og relevante prisforhold\no Andre spesielle forhold som kan ha påvirket resultatet",null,null,null,null,null,null,null,{"$f":"IF(F53<>\"\",\"Du har satt X for at forholdet ikke er avklart. Gi en nærmere foklaring i kommentarfeltet.\",\"\")","v":""}]
[{"$f":"+A53+1","v":30},"Er det gitt opplysninger om eventuelle forsknings- og utviklingsaktiviteter?",null,null,null,null,null,null,null,{"$f":"IF(F54<>\"\",\"Du har satt X for at forholdet ikke er avklart. Gi en nærmere foklaring i kommentarfeltet.\",\"\")","v":""}]
[null,"Opplysningene om eventuelle forsknings- og utviklingsaktiviteter kan normalt begrense seg til en overordnet verbal beskrivelse. Ved kostnadsføring som prinsipp er det særlig aktuelt å gi en vurdering av hvordan årets resultat samsvarer med den underliggende verdiskapning i foretaket.",null,null,null,null,null,null,null,{"$f":"IF(F55<>\"\",\"Du har satt X for at forholdet ikke er avklart. Gi en nærmere foklaring i kommentarfeltet.\",\"\")","v":""}]
[{"$f":"+A54+1","v":31},"Er spesielle forhold som i betydelig grad kan ha påvirket årsregnskapet kommentert, for eksempel:\no Store enkelttransaksjoner\no Kjøp eller salg av foretak, ny virksomhet, avviklet virksomhet og andre viktige anskaffelser og avhendelser\no Realisering eller oppbygging av merverdier i for eksempel verdipapirer eller eiendom\no Særlige poster",null,null,null,null,null,null,null,{"$f":"IF(F56<>\"\",\"Du har satt X for at forholdet ikke er avklart. Gi en nærmere foklaring i kommentarfeltet.\",\"\")","v":""}]
[null,"Ved betydelige oppkjøp av virksomhet bør det redegjøres for i hvilken utstrekning forventningene til oppkjøpet er blitt realisert.\nDersom resultater som er medregnet ved kjøp av virksomhet med betydelig sesong-variasjoner ikke er indikative for virkningen på helårsbasis, bør dette opplyses.",null,null,null,null,null,null,null,{"$f":"IF(F57<>\"\",\"Du har satt X for at forholdet ikke er avklart. Gi en nærmere foklaring i kommentarfeltet.\",\"\")","v":""}]
["Balansen",null,"NRS 16, \npkt 2.5",null,null,null,null,{"$f":"IF(F58<>\"\",\"Du har satt X for at forholdet ikke er avklart. Gi en nærmere foklaring i kommentarfeltet.\",\"\")","v":""}]
[null,"Beskrivelsen bør være vurderende med bruk av tallmateriale i den grad det letter forståelsen, for eksempel finansielle forholdstall som egenkapitalandel og rentedekningsgrad.",null,null,null,null,null,null,null,{"$f":"IF(F59<>\"\",\"Du har satt X for at forholdet ikke er avklart. Gi en nærmere foklaring i kommentarfeltet.\",\"\")","v":""}]
[{"$f":"+A56+1","v":32},"Er likviditetssituasjonen på balansedagen gjennomgått?",null,null,null,null,null,null,null,{"$f":"IF(F60<>\"\",\"Du har satt X for at forholdet ikke er avklart. Gi en nærmere foklaring i kommentarfeltet.\",\"\")","v":""}]
[null,"Gjennomgang av likviditetssituasjonen kan omfatte\n- nivå på kortsiktig gjeld\n- sesongvariasjoner med angivelse av maksimalt lånebehov\n- forfallsstruktur på gjeld og kommitterte kredittlinjer"]
[null,"Restriksjoner for overføring av midler fra en del av virksomheten for å møte forpliktelser i andre deler av foretaket bør drøftes dersom dette anses for å være en vesentlig beskrankning for selskapet"]
["Kontantstrømoppstillingen",null,"NRS 16, \npkt 2.5"]
[{"$f":"+A60+1","v":33},"Dersom ikke tilsvarende informasjon gis gjennom øvrige deler av årsberetningen, er kontantstrømoppstillingen kommentert?",null,null,null,null,null,null,null,{"$f":"IF(F64<>\"\",\"Du har satt X for at forholdet ikke er avklart. Gi en nærmere foklaring i kommentarfeltet.\",\"\")","v":""}]
[{"$f":"+A64+1","v":34},"Er det redegjort for eventuelle vesentlige avvik mellom driftsresultat og kontantstrøm fra operasjonelle aktiviteter?",null,null,null,null,null,null,null,""]
[{"$f":"+A65+1","v":35},"Dersom man anser det for å være sentral informasjon for brukerne, er det informert om skillet mellom investeringer som er gjort for å opprettholde kapasiteten og investeringer som er gjort for å øke kapasiteten / lønnsomheten?",null,null,null,null,null,null,null,""]
[{"$f":"+A66+1","v":36},"Er det gitt en vurdering av sammenhengene mellom kontantstrømmene fra operasjonelle aktiviteter og investeringsaktiviteter, herunder evnen til egenfinansiering av investeringer?",null,null,null,null,null,null,null,""]
[{"$f":"+A67+1","v":37},"Er det redegjort for formålet med og virkningen av større finansielle transaksjoner som er gjennomført fram til avleggelsen av årsberetningen?",null,null,null,null,null,null,null,""]
["Foretakets utsikter",null,"rskl § 2-2 (5)\n",null,null,null,null,null,null,""]
[null,null,"NRS 16, pkt 2.6"]
[null,"NRS 16 pkt 2.6 inneholder utdypende kommentarer og anbefalinger til kravene i rskl § 2-2, 5. ledd vedrørende redegjørelse for foretakets framtidige utsikter. ",null,null,null,null,null,null,null,{"$f":"IF(F71<>\"\",\"Du har satt X for at forholdet ikke er avklart. Gi en nærmere foklaring i kommentarfeltet.\",\"\")","v":""}]
[null,"\nRedegjørelse for fremtidsutsikter kan blant annet omhandle\n- rammebetingelser\n- makroøkonomiske forhold - renter, valutakurser, internasjonale varepriser\n- priskontrakter\n- investeringer/investeringsbehov fordelt på vedlikehold og ekspansjonsbehov\n- kostnadsføringer av utgifter som kan gi økonomiske fordeler på sikt\n- finansielle ressurser i forhold til framtidig kapitalbehov\n- miljøforhold",null,null,null,null,null,null,null,""]
[null,"\nDet må vurderes å gi kvalitative og kvantitative vurderinger av de viktigste faktorene som kan påvirke framtidig resultat.",null,null,null,null,null,null,null,""]
[null,"Det forventes at foretak av allmenn interesse gir en fyldigere fremstilling av foretakets utsikter enn andre foretak.",null,null,null,null,null,null,null,""]
[{"$f":"+A68+1","v":38},"Er det gitt er redegjørelse som gir grunnlag for å vurdere foretakets framtidige utvikling?",null,null,null,null,null,null,null,""]
[{"$f":"+A75+1","v":39},"Er det gitt en vurdering av foretakets forventede økonomiske utvikling på et overordnet nivå, med angivelse av de viktigste forutsetninger som er lagt til grunn?",null,null,null,null,null,null,null,""]
[{"$f":"+A76+1","v":40},"Har styret presisert at det normalt er betydelig usikkerhet knyttet til vurderinger av fremtidige forhold?",null,null,null,null,null,null,null,""]
[{"$f":"+A77+1","v":41},"Er faktorer og forhold som vil ha betydning for fremtidige resultater drøftet?",null,null,null,null,null,null,null,""]
[{"$f":"+A78+1","v":42},"Omfatter drøftelsen en identifisering av de vesentligste risiki for virksomheten?",null,null,null,null,null,null,null,""]
[null,"Det må vurderes å gi kvalitative og kvantitative vurderinger av de viktigste faktorene som kan påvirke framtidig resultat.",null,null,null,null,null,null,null,""]
[{"$f":"+A79+1","v":43},"Dersom det i foregående årsberetninger eller årsregnskap er angitt resultatmål eller andre opplysninger om forventet utvikling, er det opplyst om forventningene er i samsvar med årets resultat, og er eventuelle avvik begrunnet? ",null,null,null,null,null,null,null,""]
["Finansiell risiko",null,"rskl § 2-2 (6)\n",null,null,null,null,null,null,""]
[null,null,"NRS 16, pkt 2.7"]
[{"$f":"+A81+1","v":44},"Er det gitt opplysninger om finansiell risiko som er av betydning for å bedømme foretakets eiendeler, gjeld, finansiell stilling og resultat? ",null,null,null,null,null,null,null,{"$f":"IF(F84<>\"\",\"Du har satt X for at forholdet ikke er avklart. Gi en nærmere foklaring i kommentarfeltet.\",\"\")","v":""}]
[{"$f":"+A84+1","v":45},"Omfatter opplysningene mål og strategier som er fastsatt for styring av finansiell risiko, herunder strategien for sikring av hver hovedtype av planlagte transaksjoner der sikringsvurdering er benyttet?  ",null,null,null,null,null,null,null,""]
[null,"Det bør opplyses på hvilke områder foretaket velger å bruke finansielle instrumenter, for eksempel\n• renter\n• valuta\n• råvarer\n• egenkapitalbaserte instrumenter\n\nDet bør videre opplyses om hvilke typer instrumenter som brukes, for eksempel\n• terminkontrakter\n• opsjoner",null,null,null,null,null,null,null,""]
[{"$f":"+A85+1","v":46},"Er det redegjort for foretakets eksponering mot markedsrisiko, kredittrisiko og likviditetsrisiko?  ",null,null,null,null,null,null,null,""]
[{"$f":"+A87+1","v":47},"Dersom det foreligger brudd på vilkår og/eller forutsetninger for lån (covenants), eller det forventes at dette vil skje i neste regnskapsperiode, er det opplyst om dette, eventuelt ved en henvisning til informasjonen om dette i årsregnskapet?  ",null,null,null,null,null,null,null,""]
["Semtrale immaterielle ressurser",null,"rskl § 2-2 (7)\n"]
[null,null,"NRS 16, pkt 2.8"]
[null,"Sentrale immaterielle ressurser er ressurser uten fysisk substans som foretakets forretningsmodell grunnleggende er avhengig av, og som er en kilde til verdiskapning for foretaket. Informasjonskrav om sentrale immaterielle ressurser gjelder for følgende foretak:\n- Store foretak\n- Små og mellomstore foretak som er notert (mikroforetak er unntatt)\n\nFor 2024 er det kun følgende foretak som er omfattet - jf overgangsregler til lov om endringer i regnskapsloven:\n- Foretak av allmenn interesse som er store foretak og som på balansedagen har et gjennomsnittlig antall ansatte på over 500 årsverk i regnskapsåret\n- Foretak av allmenn interesse som er morforetak i et stort konsern og som på balansedagen har et gjennomsnittlig antall ansatte i konsernet på over 500 årsverk i regnskapsåret","Overgangsregler til lov 21. juni 2024 nr. 42 om endringer i regnskapsloven mv.\n(bærekraftsrapportering)"]
[{"$f":"+A88+1","v":48},"Er det opplyst om sentrale immaterielle ressurser?",null,null,null,null,null,null,null,""]
[{"$f":"+A92+1","v":49},"Er det forklart på hvilken måte foretakets forretningsmodell grunnleggende er avhengig av slike ressurser, og på hvilken måte slike ressurser er en kilde til verdiskapning for virksomheten?",null,null,null,null,null,null,null,""]
[null,"Opplysninger om sentrale immaterielle ressurser skal gis i årsberetningen, men det er ikke pliktig at disse inngår i bærekraftsrapporteringen. Opplysninger om sentrale immaterielle ressurser som gjelder bærekraftsforhold, bør derimot inngå i bærekraftsrapporteringen."]
["Fortsatt drift",null,"rskl § 2-2, (8)\n\n",null,null,null,null,null,null,""]
[null,null,"rskl § 4-5"]
[null,null,"NRS 16, pkt 2.9"]
[null,"Fortsatt drift forutsetningen skal omhandles i årsberetningen, og vil dekke tre prinsipielt forskjellige situasjoner: \n• Utvilsom fortsatt drift\n• Usikker fortsatt drift\n• Avvikling\n\nStandarden gir utdypende veiledning til årsberetningens innhold ved både usikkerhet om fortsatt drift og avvikling. Det er også gitt nærmere veiledning om årsberetningens innhold dersom styrets handleplikt ved tap av egenkapital har inntrådt ihht aksjeloven \n§ 3-5.",null,null,null,null,null,null,null,{"$f":"IF(F98<>\"\",\"Du har satt X for at forholdet ikke er avklart. Gi en nærmere foklaring i kommentarfeltet.\",\"\")","v":""}]
[{"$f":"+A93+1","v":50},"Utvilsom fortsatt drift: Er det bekreftet at forutsetningen for fortsatt drift er til stede? ","rskl § 2-2, (8) nr 1",null,null,null,null,null,null,{"$f":"IF(F99<>\"\",\"Du har satt X for at forholdet ikke er avklart. Gi en nærmere foklaring i kommentarfeltet.\",\"\")","v":""}]
[null,null,"NRS 16, pkt 2.9"]
[{"$f":"+A99+1","v":51},"Usikker fortsatt drift: er det redegjort for usikkerheten om fortsatt drift? ","rskl § 2-2, (8) nr 2",null,null,null,null,null,null,{"$f":"IF(F101<>\"\",\"Du har satt X for at forholdet ikke er avklart. Gi en nærmere foklaring i kommentarfeltet.\",\"\")","v":""}]
[null,null,"NRS 16, pkt 2.9"]
[{"$f":"+A101+1","v":52},"Ved stor usikkerhet og tvil om fortsatt drift, er det opplyst om større poster i årsregnskapet som vil påvirkes dersom forutsetningen om fortsatt drift ikke legges til grunn for vurderingene?","NRS 16, \npkt 2.9",null,null,null,null,null,null,{"$f":"IF(F103<>\"\",\"Du har satt X for at forholdet ikke er avklart. Gi en nærmere foklaring i kommentarfeltet.\",\"\")","v":""}]
[{"$f":"+A103+1","v":53},"Er virkningene, dersom det er mulig, kvantifisert?","NRS 16, \npkt 2.9",null,null,null,null,null,null,{"$f":"IF(F104<>\"\",\"Du har satt X for at forholdet ikke er avklart. Gi en nærmere foklaring i kommentarfeltet.\",\"\")","v":""}]
[{"$f":"+A104+1","v":54},"Sannsynlig avvikling: Er det redegjort for hvordan virkelig verdi ved avvikling er beregnet dersom dette ikke fremgår i note til årsregnskapet? ","rskl § 2-2, (8) nr 4",null,null,null,null,null,null,{"$f":"IF(F105<>\"\",\"Du har satt X for at forholdet ikke er avklart. Gi en nærmere foklaring i kommentarfeltet.\",\"\")","v":""}]
[null,null,"NRS 16, pkt 2.9"]
[{"$f":"+A105+1","v":55},"Dersom styrets handleplikt etter asl/asal § 3-5 er inntrådt, er det opplyst om det er besluttet eller satt i verk tiltak for å sikre selskapets drift, eventuelt å oppløse selskapet?","rskl § 2-2, (8) nr 3",null,null,null,null,null,null,{"$f":"IF(F107<>\"\",\"Du har satt X for at forholdet ikke er avklart. Gi en nærmere foklaring i kommentarfeltet.\",\"\")","v":""}]
[null,null,"NRS 16, pkt 2.9"]
["Resultatdisponering og utbyttegrunnlag",null,"Rskl § 2-2, (9)\n",null,null,null,null,null,null,{"$f":"IF(F109<>\"\",\"Du har satt X for at forholdet ikke er avklart. Gi en nærmere foklaring i kommentarfeltet.\",\"\")","v":""}]
[null,null,"NRS 16, pkt. 2.10"]
[{"$f":"+A107+1","v":56},"Dersom resultatregnskapet, noter eller evt. oppstilling av endring i egenkapitalen ikke inneholder forslag til anvendelse av overskudd eller dekning av tap, fremgår forslaget av årsberetningen? ",null,null,null,null,null,null,null,{"$f":"IF(F111<>\"\",\"Du har satt X for at forholdet ikke er avklart. Gi en nærmere foklaring i kommentarfeltet.\",\"\")","v":""}]
[null,"Forslaget bør begrunnes i forhold til eventuelle inntjeningsmål, utbyttepolitikk og mål for kapitalstruktur",null,null,null,null,null,null,null,{"$f":"IF(F112<>\"\",\"Du har satt X for at forholdet ikke er avklart. Gi en nærmere foklaring i kommentarfeltet.\",\"\")","v":""}]
["Opplysninger om miljø og sosiale forhold",null,"NRS 16 \npkt 2.11",null,null,null,null,null,null,{"$f":"IF(F113<>\"\",\"Du har satt X for at forholdet ikke er avklart. Gi en nærmere foklaring i kommentarfeltet.\",\"\")","v":""}]
[null,"Opplysninger om miljø og sosiale forhold omfatter arbeidsmiljø, likestilling og diskriminering, samt miljøforhold. Med \"miljøforhold\" menes klima, natur og miljø. "]
[null,"Foretak som omfattes av plikten til å utarbeide bærekraftsraportering, anses for å ha oppfylt opplysningskravene i rskl § 2-2, tredje, tiende og ellevte ledd, herunder arbeidsforhold og miljøforhold. Denne sjekklisten omtaler kun opplysningskravene knyttet til miljø og sosiale forhold etter rskl § 2-2 og NRS 16, ikke kravene til bærekraftsrapportering. ",null,null,null,null,null,null,null,{"$f":"IF(F115<>\"\",\"Du har satt X for at forholdet ikke er avklart. Gi en nærmere foklaring i kommentarfeltet.\",\"\")","v":""}]
["Arbeidsmiljø",null,"rskl § 2-2, (10)\n",null,null,null,null,null,null,{"$f":"IF(F116<>\"\",\"Du har satt X for at forholdet ikke er avklart. Gi en nærmere foklaring i kommentarfeltet.\",\"\")","v":""}]
[null,null,"NRS 16, pkt 2.11"]
[null,"Standarden gir utdypende veiledning til årsberetningens innhold vedrørende omtale av arbeidsmiljø, spesielt vedrørende sykefravær, skader og ulykker. ",null,null,null,null,null,null,null,{"$f":"IF(F118<>\"\",\"Du har satt X for at forholdet ikke er avklart. Gi en nærmere foklaring i kommentarfeltet.\",\"\")","v":""}]
[{"$f":"+A111+1","v":57},"Er det gitt opplysninger om arbeidsmiljøet? ",null,null,null,null,null,null,null,""]
[{"$f":"+A119+1","v":58},"Er det gitt en oversikt over eventuelle iverksatte tiltak som har betydning for arbeidsmiljøet? ",null,null,null,null,null,null,null,""]
[59,"Er det opplyst om eventuelle skader, herunder både personskader og materielle skader?  ",null,null,null,null,null,null,null,""]
[60,"Er det opplyst om skader som gjelder både ulykker og andre skader, for eksempel slitasje- og belastningsskader?  ",null,null,null,null,null,null,null,""]
[61,"Er det opplyst om eventuelle ulykker, herunder både ulykkens art, personskader og materielle skader?  \n\nOpplysningene skal i utgangspunktet spesifiseres på enkelttilfeller, men det kan være mest oversiktlig å gi opplysninger om flere likeartede skader eller ulykker samlet. ",null,null,null,null,null,null,null,""]
[62,"Dersom foretaket har minst 5 årsverk, er det opplyst om sykefravær?\nOpplysningene skal omfatte både det totale sykefraværet i regnskapsåret, og hvor stor andel sykefraværet har utgjort av den totale arbeidstiden i regnskapsåret.",null,null,null,null,null,null,null,""]
["Likestilling og diskriminering",null,"Lov om likestilling og forbud mot diskriminering § 26 a)",null,null,null,null,null,null,""]
[null,null,"NRS 16, pkt 2.11"]
[null,"Følgende arbeidsgivere har utvidet aktivitetsplikt etter likestillings- og diskrimineringsloven § 26, 2. ledd:\n- alle offentlige virksomheter, uavhengig av størrelse, \n- private virksomheter som jevnlig sysselsetter mer enn 50 ansatte (ikke årsverk),\n- private virksomheter som jevnlig sysselsetter mellom 20 og 50 ansatte, når en av arbeidslivets parter i virksomheten krever det."]
[null,"For arbeidsgivere med utvidet aktivitetsplikt etter likestillings- og diskrimineringsloven § 26, 2. ledd (se definisjon ovenfor):"]
[{"$f":"+A124+1","v":63},"Er det redegjort for den faktiske tilstanden når det gjelder kjønnslikestilling i virksomheten? ",null,null,null,null,null,null,null,{"$f":"IF(F129<>\"\",\"Du har satt X for at forholdet ikke er avklart. Gi en nærmere foklaring i kommentarfeltet.\",\"\")","v":""}]
[null,"Det er varslet at redegjørelsesplikten på likestillingsområdet skal standardiseres via forskrift, slik forskrift er foreløpig ikke vedtatt. "]
[{"$f":"+A129+1","v":64},"Er det redegjort for hva foretaket gjør for å oppfylle aktivitetsplikten etter likestillings- og diskrimineringsloven § 26?",null,null,null,null,null,null,null,{"$f":"IF(F131<>\"\",\"Du har satt X for at forholdet ikke er avklart. Gi en nærmere foklaring i kommentarfeltet.\",\"\")","v":""}]
[{"$f":"+A131+1","v":65},"Er redegjørelsen utformet slik at enkeltansattes personlige forhold ikke røpes?",null,null,null,null,null,null,null,{"$f":"IF(F132<>\"\",\"Du har satt X for at forholdet ikke er avklart. Gi en nærmere foklaring i kommentarfeltet.\",\"\")","v":""}]
[66,"Fremgår resultatene av lønnskartleggingen av redegjørelsen i anonymisert form?",null,null,null,null,null,null,null,{"$f":"IF(F133<>\"\",\"Du har satt X for at forholdet ikke er avklart. Gi en nærmere foklaring i kommentarfeltet.\",\"\")","v":""}]
[null,"Redegjørelsen om likestilling og oppfyllelse av aktivitetsplikten skal gis i årsberetningen eller i annet offentlig tilgjengelig dokument. Dersom redegjørelsen gis i annet offentlig tilgjengelig dokument, og foretaket har en plikt til å levere årsberetning, skal det i årsberetningen opplyses hvor dokumentet finnes offentlig tilgjengelig.",null,null,null,null,null,null,null,{"$f":"IF(F134<>\"\",\"Du har satt X for at forholdet ikke er avklart. Gi en nærmere foklaring i kommentarfeltet.\",\"\")","v":""}]
["Miljøforhold",null,"rskl § 2-2, (11)\n",null,null,null,null,null,null,{"$f":"IF(F135<>\"\",\"Du har satt X for at forholdet ikke er avklart. Gi en nærmere foklaring i kommentarfeltet.\",\"\")","v":""}]
[null,null,"NRS 16, \npkt 2.11.3"]
[null,"Det skal gis opplysninger om forhold ved virksomheten, herunder dens innsatsfaktorer og produkter, som kan medføre en ikke ubetydelig påvirkning på miljøforhold. Med begrepet \"miljøforhold\" menes klima, natur og miljø.\nFormålet med redegjørelsen er å gi et grunnlag for å vurdere hvordan virksomheten til foretaket påvirker miljøforhold, og å gi et bilde av selskapets miljømessige forpliktelser og utviklingsmuligheter.\nRegnskapsstandarden gir ytterligere veiledning om årsberetningens innhold vedrørende påvirking på miljøforhold.\n\nDet bør redegjøres for hvilke ambisjoner og mål foretaket har på miljøområdet og hvilke miljøkrav som forventes fra myndigheter, kunder og leverandører.\nDet bør også redegjøres for hvilke miljøforhold som er viktigst for foretaket.\n\nNRS 16 pkt 2.11.3 gir veiledning om redegjørelse for miljøforhold, herunder eksempler på forhold som vil kunne være sentrale med hensyn til virksomhetens påvirkning på miljøforhold.",null,null,null,null,null,null,null,{"$f":"IF(F137<>\"\",\"Du har satt X for at forholdet ikke er avklart. Gi en nærmere foklaring i kommentarfeltet.\",\"\")","v":""}]
[{"$f":"+A133+1","v":67},"Er det opplyst om forhold som kan medføre en ikke ubetydelig påvirkning på miljøforhold?",null,null,null,null,null,null,null,{"$f":"IF(F138<>\"\",\"Du har satt X for at forholdet ikke er avklart. Gi en nærmere foklaring i kommentarfeltet.\",\"\")","v":""}]
[{"$f":"+A138+1","v":68},"Omfatter opplysningene hvilke negative virkninger virksomheten har eller kan ha på klima, natur og miljø?",null,null,null,null,null,null,null,{"$f":"IF(F139<>\"\",\"Du har satt X for at forholdet ikke er avklart. Gi en nærmere foklaring i kommentarfeltet.\",\"\")","v":""}]
[{"$f":"+A139+1","v":69},"Er det redegjort for hvilke tiltak, både forebyggende og opprettende, som er eller planlegges iverksatt for å forhindre eller redusere slike negative virkninger? ",null,null,null,null,null,null,null,{"$f":"IF(F140<>\"\",\"Du har satt X for at forholdet ikke er avklart. Gi en nærmere foklaring i kommentarfeltet.\",\"\")","v":""}]
[null,"Foretakets virksomhet kan bli påvirket av miljøforhold. Dette gjelder blant annet fysisk påvirkning, behov for omstilling, fremtidige reguleringer og miljøkrav. "]
[{"$f":"+A140+1","v":70},"Dersom miljøforhold har en betydelig påvirkning på foretakets fremtidsutsikter, er det gitt opplysninger om hvilken påvirkning endringer i miljøforhold har eller vil ha på virksomheten? \nSe også avsnitt ovenfor om fremtidsutsikter.",null,null,null,null,null,null,null,{"$f":"IF(F142<>\"\",\"Du har satt X for at forholdet ikke er avklart. Gi en nærmere foklaring i kommentarfeltet.\",\"\")","v":""}]
["Forsikring for styrets medlemmer og daglig leder"]
[{"$f":"+A142+1","v":71},"Er det gitt opplysninger om det er tegnet forsikring for styrets medlemmer og daglig leder for deres mulige ansvar overfor foretaket og tredjepersoner, og i tilfelle om forsikringsdekningen?","rskl § 2-2 (12)\n",null,null,null,null,null,null,{"$f":"IF(F144<>\"\",\"Du har satt X for at forholdet ikke er avklart. Gi en nærmere foklaring i kommentarfeltet.\",\"\")","v":""}]
[null,"Styreansvarsforsikringer varierer i innhold og kompleksitet. Å opplyse om\nforsikringsdekningen betyr ikke at det er krav om å opplyse om alle spesifikke vilkår,\nmen hva som er kjernen i den forsikringsdekningen som er tegnet.","NRS 16 pkt 2.12"]
[{"$f":"+A144+1","v":72},"Hvis det ikke er tegnet forsikring for styremedlemmenes og daglig leders mulige ansvar overfor foretaket og tredjepersoner, er det opplyst om dette?",null,null,null,null,null,null,null,{"$f":"IF(F146<>\"\",\"Du har satt X for at forholdet ikke er avklart. Gi en nærmere foklaring i kommentarfeltet.\",\"\")","v":""}]
["Tilleggskrav for noterte foretak",null,null,null,null,null,null,null,null,{"$f":"IF(F147<>\"\",\"Du har satt X for at forholdet ikke er avklart. Gi en nærmere foklaring i kommentarfeltet.\",\"\")","v":""}]
[null,"For regnskapspliktige som er noterte foretak , er det gitt følgende opplysninger om aksjeeierforhold i selskapet:","rskl § 2-2 (13)"]
[{"$f":"+A146+1","v":73},"• en beskrivelse av vedtektsbestemmelser som begrenser rettet til å omsette selskapets aksjer,",null,null,null,null,null,null,null,{"$f":"IF(F149<>\"\",\"Du har satt X for at forholdet ikke er avklart. Gi en nærmere foklaring i kommentarfeltet.\",\"\")","v":""}]
[{"$f":"+A149+1","v":74},"• en beskrivelse av hvem som utøver rettighetene til aksjer i eventuelle ansatteaksjeordninger når myndigheten ikke utøves direkte av de ansatte som er omfattet av ordningen,",null,null,null,null,null,null,null,""]
[{"$f":"+A150+1","v":75},"• avtaler mellom aksjeeiere selskapet er kjent med som begrenser mulighetene til å omsette eller utøve stemmerett for aksjer,",null,null,null,null,null,null,null,""]
[{"$f":"+A151+1","v":76},"• vesentlige avtaler selskapet er part i hvis vilkår trer i kraft, endres eller opphører som følge av et overtakelsestilbud, samt en redegjørelse for vilkårene. \nI den grad det vil medføre urimelig forretningsmessig ulempe at en avtale blir kjent kan foretaket la være å opplyse om avtalen. Unntaket kommer ikke til anvendelse dersom selskapet er forpliktet til å offentliggjøre opplysninger om avtalen i henhold til annen lovgivning.",null,null,null,null,null,null,null,""]
["Ytelser, lån og sikkerhetsstillelse til ledende personer i foretak av allmenn interesse"]
[{"$f":"+A152+1","v":77},"Ytelser, lån og sikkerhetsstillelse til ledende personer i foretak av allmenn interesse: Regnskapsloven § 7-31b stiller krav om at ytelser til ledende personer i store foretak skal opplyses i note til regnskapet. Disse opplysningene, samt opplysningene som kreves etter § 7-32 første ledd kan i stedet for i note gis i en rapport om godtgjørelse til ledende personer. Rapporten skal da inngå i årsberetningen. ","rskl \n§ 7-31b",null,null,null,null,null,null,""]
["Bærekraftsrapportering"]
[null,"Plikten til å utarbeide bærekraftsrapportering reguleres av rskl § 2-3. Bærekraftsrapporteringen skal også inneholde informasjon som beskrevet i artikkel 8 i taksonomiforordningen. \n\nKravene til utarbeidelsen av, og innholdet i, bærekraftsrapporteringen dekkes ikke i denne sjekklisten. Revisor som reviderer årsregnskapet skal likevel vurdere om årsberetningen, inklusive bærekraftrapporten, er konsistent med årsregnskapet, og om revisor, basert på kunnskapen opparbeidet gjennom revisjonen av årsregnskapet, har avdekket vesentlig feilinformasjon i årsberetningen, jf. revisorloven § 9-4.","rskl § 2-4 (11)"]
["Redegjørelse etter åpenhetsloven"]
[{"$f":"+A154+1","v":78},"Dersom selskapet er pliktig til å avgi redegjørelse etter åpenhetsloven, er det opplyst i årsberetningen om hvor redegjørelsen er tilgjengelig?","åpenhetsloven § 5",null,null,null,null,null,null,{"$f":"IF(F158<>\"\",\"Du har satt X for at forholdet ikke er avklart. Gi en nærmere foklaring i kommentarfeltet.\",\"\")","v":""}]
[null,"Etter åpenhetsloven § 5, 3. ledd kan redegjørelsen etter åpenhetsloven inngå i årsberetningen. \nKravene til  redegjørelse etter åpenhetsloven følger derfor nedenfor.\n\nInneholder redegjørelsen minst:","Åpenhetsloven § 5"]
[{"$f":"+A158+1","v":79},"\t• en generell beskrivelse av virksomhetens organisering, driftsområde, retningslinjer og rutiner for å håndtere faktiske og potensielle negative konsekvenser for grunnleggende menneskerettigheter og anstendige arbeidsforhold",null,null,null,null,null,null,null,""]
[{"$f":"+A160+1","v":80},"\t• opplysninger om faktiske negative konsekvenser og vesentlig risiko for negative konsekvenser som virksomheten har avdekket gjennom sine aktsomhetsvurderinger",null,null,null,null,null,null,null,""]
[{"$f":"+A161+1","v":81},"• opplysninger om tiltak som virksomheten har iverksatt eller planlegger å iverksette for å stanse faktiske negative konsekvenser eller begrense vesentlig risiko for negative konsekvenser, og resultatet eller forventede resultater av disse tiltakene.",null,null,null,null,null,null,null,""]
[null,"Informasjonen kan utelates dersom den gjelder opplysninger om noens personlige forhold, eller opplysninger om tekniske innretninger og fremgangsmåter eller andre drifts- eller forretningsforhold som det vil være av konkurransemessig betydning å hemmeligholde av hensyn til den opplysningene angår. Dette unntaket gjelder imidlertid ikke konsekvenser for grunnleggende menneskerettigheter som virksomheten er kjent med. "]
[null,"Opplysningskravene til redegjørelsen omfatter ikke informasjon som er gradert etter sikkerhetsloven eller beskyttet etter åndsverkloven. "]
["Redegjørelse om foretaksstyring",null,"rskl § 2-9"]
[null,null,"NUES (Norsk Anbefaling Eierstyring og Selskapsledelse)"]
[null,"Noterte foretak skal i årsberetningen eller i dokument som det er henvist til i årsberetningen, redegjøre for sine prinsipper og praksis vedrørende foretaksstyring. ","NUES kap 1 Redegjørelse for eierstyring og selskapsledelse"]
[null,"Inneholder redegjørelsen for prinsipper og praksis vedrørende foretaksstyring minst følgende opplysninger:"]
[{"$f":"+A162+1","v":82},"• en beskrivelse av hovedelementene i foretakets, og for regnskapspliktige som utarbeider konsernregnskap eventuelt også konsernets, systemer for internkontroll og risikostyring knyttet til regnskapsrapporteringsprosessen","NUES kap 10 Risikostyring og intern kontroll",null,null,null,null,null,null,{"$f":"IF(F169<>\"\",\"Du har satt X for at forholdet ikke er avklart. Gi en nærmere foklaring i kommentarfeltet.\",\"\")","v":""}]
[{"$f":"+A169+1","v":83},"• vedtektsbestemmelser som regulerer oppnevning og utskifting av styremedlemmer","NUES kap 7 Valgkomité",null,null,null,null,null,null,""]
[{"$f":"+A170+1","v":84},"• vedtektsbestemmelser og fullmakter som gir styret adgang til å beslutte at foretaket skal kjøpe tilbake eller utstede egne aksjer eller egenkapitalbevis","NUES kap 4 Likebehandling av aksjeeiere og transaksjoner med nærstående",null,null,null,null,null,null,""]
[null,"Følgende tre punkter om retningslinjer for likestilling og mangfold er ikke pliktige for regnskapspliktig som utarbeider bærekraftsrapportering etter rskl §§ 2-3 til 2-7, hvis informasjonen er gitt i bærekraftsrapporteringen og det er tatt inn en henvisning til informasjonen i redegjørelsen om foretaksstyring:"]
[{"$f":"+A171+1","v":85},"• en beskrivelse av foretakets retningslinjer for likestilling og mangfold med hensyn til kjønn og andre forhold slik som alder, funksjonsnedsettelse og utdannings- og yrkesbakgrunn for sammensetning av styre, ledelses- og kontrollorganer og deres eventuelle underutvalg. ",null,null,null,null,null,null,null,""]
[{"$f":"+A173+1","v":86},"• mål for retningslinjene for likestilling og mangfold, hvordan de har blitt gjennomført og virkningen av dem i rapporteringsperioden",null,null,null,null,null,null,null,""]
[{"$f":"+A174+1","v":87},"• hvis foretaket ikke har retningslinjer for likestilling og mangfold; en begrunnelse for dette.",null,null,null,null,null,null,null,""]
[null,"Følgende krav gjelder ikke for regnskapspliktige som ikke har utstedt aksjer eller egenkapitalbevis som er notert på et regulert marked eller på en multilateral handelsfasilitet, jf vphl § 2-7 femte ledd:"]
[{"$f":"+A175+1","v":88},"• en angivelse av anbefalinger og regelverk om foretaksstyring som foretaket er omfattet av eller for øvrig velger å følge",null,null,null,null,null,null,null,""]
[{"$f":"+A177+1","v":89},"• opplysninger om hvor anbefalinger og regelverk som nevnt i spørsmålet over  er offentlig tilgjengelige",null,null,null,null,null,null,null,""]
[{"$f":"+A178+1","v":90},"• en begrunnelse for eventuelle avvik fra anbefalinger og regelverk som nevnt i spørsmålet over","NUES kap 1 Redegjørelse for eierstyring og selskapsledelse",null,null,null,null,null,null,""]
[{"$f":"+A179+1","v":91},"• vedtektsbestemmelser som helt eller delvis utvider eller fraviker bestemmelser i allmennaksjeloven kapittel 5","NUES kap 6 \nGeneralforsamling",null,null,null,null,null,null,""]
[{"$f":"+A180+1","v":92},"• sammensetningen til styre, bedriftsforsamling, representantskap og kontrollkomite; eventuelle arbeidsutvalg for disse organene, samt en beskrivelse av hovedelementene i gjeldende instrukser og retningslinjer for organenes og eventuelle utvalgs arbeid","NUES kap 8 Styret, sammensetning og uavhengighet\n",null,null,null,null,null,null,""]
[null,null,"NUES kap 9 Styrets arbeid"]
[null,null,"NUES kap 13 Informasjon og kommunikasjon"]
["Rapportering om betalinger til myndigheter m.v. (land-for-land rapportering)",null,"rskl  § 2-10"]
[null,"Regnskapspliktige som driver virksomhet innen utvinningsindustrien skal utarbeide og offentliggjøre en årlig rapport med opplysninger om sine betalinger til myndigheter på land- og prosjektnivå. Det samme gjelder skogdrift innen ikke-beplantet skog. "]
[null,"Rapporteringsplikten gjelder foretak som som har regnskapsplikt etter rskl § 1-2 nr 1, 3, 4, 5, 6 eller nr 13 og som på balansedagen tilfredsstiller minst to av de tre følgende vilkår:","Forskrift om land-for-land-rapportering F20.12.2013 nr 1682"]
[null,"• årlig salgsinntekt mer enn 320 millioner kroner,"]
[null,"• balansesum mer enn 160 millioner kroner,"]
[null,"• gjennomsnittlig antall ansatte gjennom regnskapsåret mer enn 250."]
[null,"Reglene gjelder også for foretak som er regnskapspliktige etter rskl § 1-2 nr. 2, eller er utsteder med Norge som hjemstat etter vphl § 5-4 annet til fjerde ledd. "]
[null,"Rapporteringsplikten gjelder også foretak som er utsteder eller er regnskapspliktig og enten alene eller sammen med datterselskapene tilfredsstiller størrelseskriteriene nevnt ovenfor, som har ett eller flere datterselskaper som driver virksomhet innen utvinningsindustrien eller skogsdrift innen ikke-beplantet skog."]
[null,"Rapporteringsplikten gjelder ikke for regnskapspliktige som utarbeider en årlig rapport etter tilsvarende utenlandsk regelverk. Plikten gjelder heller ikke dersom tilstrekkelige opplysninger er tatt inn i morselskapets årlige rapport om konsernets betalinger til myndigheter, utarbeidet som konsernrapportering. "]
[{"$f":"+A181+1","v":93},"For foretak som kommer inn under rapporteringskravene om betalinger til myndigheter mv., er det i årsberetningen opplyst om hvor rapporten er offentliggjort?","rskl § 2-10",null,null,null,null,null,null,{"$f":"IF(F193<>\"\",\"Du har satt X for at forholdet ikke er avklart. Gi en nærmere foklaring i kommentarfeltet.\",\"\")","v":""}]
[null,"Inneholder rapporten minst følgende opplysninger om betalinger til myndigheter:\n(kravene gjelder ikke for betalinger som tilsvarer mindre enn kr 800.000, som gjøres enkeltvis eller som flere sammenhørende betalinger innenfor samme regnskapsår)","Forskrift om land-for-land-rapportering F20.12.2013 nr 1682"]
[{"$f":"+A193+1","v":94},"Den samlede betaling til hver myndighet i løpet av regnskapsåret, fordelt per land og fordelt per type betaling (typer betaling er definert i forskriften § 3 nr. 5 bokstav a-h)?","Forskriften § 4",null,null,null,null,null,null,{"$f":"IF(F195<>\"\",\"Du har satt X for at forholdet ikke er avklart. Gi en nærmere foklaring i kommentarfeltet.\",\"\")","v":""}]
[{"$f":"+A195+1","v":95},"Betalinger knyttet til et prosjekt, rapportert per prosjekt og per type betaling som nevnt i § 3 nr. 5 bokstav a-h?",null,null,null,null,null,null,null,""]
[{"$f":"+A196+1","v":96},"Når det er plikt til å gi opplysninger om betalinger til myndigheter, inneholder rapporten også opplysninger om foretakets investeringer, salgsinntekt, produksjonsvolum og kostnader, fordelt på de enkelte land hvor foretaket driver virksomhet?",null,null,null,null,null,null,null,""]
[97,"Er det i rapporten også opplyst om foretakets rentekostnad til andre foretak i samme konsern som er hjemmehørende i andre jurisdiksjoner enn foretaket?",null,null,null,null,null,null,null,""]
[98,"Er opplysningene i de to foregående spørsmålene så vidt mulig hentet fra årsregnskapet, og er eventuelle forskjeller forklart?",null,null,null,null,null,null,null,""]
[null,"Beløp som er utbetalt av foretaket for forpliktelser som pålegges på enhetsnivå, kan rapporteres på enhetsnivå i stedet for på prosjektnivå."]
[{"$f":"+A199+1","v":99},"For betalinger in natura til en myndighet, er både verdi og, når relevant, mengde, oppgitt?",null,null,null,null,null,null,null,{"$f":"IF(F201<>\"\",\"Du har satt X for at forholdet ikke er avklart. Gi en nærmere foklaring i kommentarfeltet.\",\"\")","v":""}]
[{"$f":"+A201+1","v":100},"Er det gitt en forklaring om hvordan verdien er fastsatt?",null,null,null,null,null,null,null,""]
[null,"Konsernrapportering:\nForetak som er utsteder eller er regnskapspliktig og enten alene eller sammen med datterselskapene tilfredsstiller størrelseskriteriene nevnt ovenfor, som har ett eller flere datterselskaper som driver virksomhet innen utvinningsindustrien eller skogsdrift innen ikke-beplantet skog, skal utarbeide en konsernrapport med konsolidert oppstilling hvor de foretakene i konsernet som driver virksomhet innen utvinningsindustrien eller skogdrift innen ikke-beplantet skog, vises som en enhet.","Forskriften § 5"]
[null,"Viser konsernrapporten konsolidert oppstilling av følgende opplysninger:"]
[{"$f":"+A202+1","v":101},"Den samlede betaling til hver myndighet i løpet av regnskapsåret, fordelt per land og fordelt per type betaling (typer betaling er definert i forskriften § 3 nr. 5 bokstav a-h)?",null,null,null,null,null,null,null,{"$f":"IF(F205<>\"\",\"Du har satt X for at forholdet ikke er avklart. Gi en nærmere foklaring i kommentarfeltet.\",\"\")","v":""}]
[{"$f":"+A205+1","v":102},"Betalinger knyttet til et prosjekt, rapportert per prosjekt og per type betaling som nevnt i § 3 nr. 5 bokstav a-h?",null,null,null,null,null,null,null,""]
[{"$f":"+A206+1","v":103},"Når det er plikt til å gi opplysninger om betalinger til myndigheter, inneholder rapporten også opplysninger om foretakets investeringer, salgsinntekt, produksjonsvolum og kostnader, fordelt på de enkelte land hvor foretaket driver virksomhet?",null,null,null,null,null,null,null,""]
[null,"Datterselskap kan utelates fra den konsoliderte oppstillingen etter første ledd dersom\na.\talvorlige langvarige restriksjoner hindrer morselskapet i vesentlig grad i å utøve sine rettigheter over datterselskapet,\nb.\tde opplysninger som er nødvendige for å utarbeide den konsoliderte rapporten i samsvar med denne forskrift, i svært sjeldne tilfeller ikke kan innhentes innen rimelig tid eller uten uforholdsmessig store kostnader, eller\nc.\taksjer eller andeler i datterselskapet eies midlertidig og skal klassifiseres som omløpsmidler etter regnskapsloven § 5-1,\nog tilsvarende unntak også gjøres gjeldende for konsernregnskapet."]
[{"$f":"+A207+1","v":104},"Dersom unntak beskrevet ovenfor er benyttet, er det gitt en nærmere forklaring på hvorfor unntaket er benyttet, hvilket datterselskap det gjelder, samt hvilke tiltak som er iverksatt for å forhindre at tilsvarende unntak benyttes for senere rapportering?",null,null,null,null,null,null,null,{"$f":"IF(F209<>\"\",\"Du har satt X for at forholdet ikke er avklart. Gi en nærmere foklaring i kommentarfeltet.\",\"\")","v":""}]
[null,"Inneholder konsernrapporten, uavhengig av om det er plikt til å gi opplysninger om betalinger til myndigheter, i en separat del minst inneholde følgende opplysninger om hvert av foretakets datterselskap:"]
[{"$f":"+A209+1","v":105},"a.\thvor datterselskapet er hjemmehørende,",null,null,null,null,null,null,null,{"$f":"IF(F211<>\"\",\"Du har satt X for at forholdet ikke er avklart. Gi en nærmere foklaring i kommentarfeltet.\",\"\")","v":""}]
[{"$f":"+A211+1","v":106},"b.\tantall ansatte,",null,null,null,null,null,null,null,""]
[{"$f":"+A212+1","v":107},"c.\trentekostnad til andre foretak i samme konsern som er hjemmehørende i andre jurisdiksjoner enn datterselskapet,",null,null,null,null,null,null,null,""]
[108,"d.\ten kortfattet beskrivelse av datterselskapets aktiviteter,",null,null,null,null,null,null,null,""]
[109,"e.\tnetto omsetning, inkludert omsetning med foretak i samme konsern,",null,null,null,null,null,null,null,""]
[110,"f.\tresultat før skatt,",null,null,null,null,null,null,null,""]
[111,"g.\tinntektsskatt i regnskapsåret som beregnet av den skattepliktiges overskudd eller underskudd i regnskapsåret,",null,null,null,null,null,null,null,""]
[112,"h.\tinntektsskatt som er betalt i løpet av det aktuelle regnskapsåret av datterselskapet, ",null,null,null,null,null,null,null,""]
[113,"i.\takkumulert fortjeneste",null,null,null,null,null,null,null,""]
[114,"Er opplysningene så vidt mulig hentet fra årsregnskapet, og er eventuelle forskjeller forklart?",null,null,null,null,null,null,null,""]
[null,"Offentliggjøring: \nRapport på både selskaps- og konsernnivå skal offentliggjøres på den rapporteringspliktiges hjemmesider på internett, og skal være tilgjengelig i minst 5 år. ","Forskriften § 6"]
["Tilleggssjekkliste for banker, finansieringsforetak med mer"]
[null,"Tilleggssjekklisten gjelder for banker, finansieringsforetak og morselskap til slike som er pålagt å følge Forskrift om årsregnskap m.m. for banker, finansieringsforetak og morselskap for slike (Årsregnf. 1998-12-16 nr.1240).  - med senere endringer","Forskrift om årsregnskap for banker m v § 2-2"]
[{"$f":"+A220+1","v":115},"Dersom institusjonens kapitaldekning er under gjeldende minimumskrav, er det gjort oppmerksom på dette og redegjort for tiltak som er truffet for å sikre institusjonens drift?",null,null,null,null,null,null,null,{"$f":"IF(F224<>\"\",\"Du har satt X for at forholdet ikke er avklart. Gi en nærmere foklaring i kommentarfeltet.\",\"\")","v":""},null,"Bank"]
["Tilleggsregler for livsforsikringsforetak og skadeforsikringsforetak "]
[null,"Tilleggssjekklisten gjelder for livsforsikringsforetak og skadeforsikringsforetak som er pålagt å følge forskrift om årsregnskap for livsforsikringsforetak F18.12.2015 nr 1824 eller forskrift om årsregnskap for skadeforsikringsforetak 18.12.2015 nr 1775."]
[{"$f":"+A224+1","v":116},"Dersom foretaket ikke oppfyller gjeldende krav til ansvarlig kapital eller kapitalen for øvrig ikke er forsvarlig sett i forhold til virksomheten, har styret redegjort for dette og uttalt seg om tiltak som er truffet eller som skal treffes for å sikre selskapets drift?","Forskrift om årsregnskap for skadeforsikringsforetak § 2-3",null,null,null,null,null,null,{"$f":"IF(F227<>\"\",\"Du har satt X for at forholdet ikke er avklart. Gi en nærmere foklaring i kommentarfeltet.\",\"\")","v":""},null,"Forsikring"]
[null,null,"Forskrift om årsregnskap for livsforsikringsforetak § 2-3",null,null,null,null,null,null,""]
[{"$f":"+A227+1","v":117},"Er det gitt en beskrivelse av de finansielle risikoer som selskapet er, og gjennom regnskapsåret har vært, eksponert for? Styret skal redegjøre for de mål og strategier som er fastsatt for risikostyring, og sammenhengen mellom disse og selskapets overordnede mål og strategier. Det skal gis en overordnet beskrivelse av selskapets risikostyring og organiseringen av denne. ","Forskrift om årsregnskap for skadeforsikringsforetak § 2-3",null,null,null,null,null,null,"",null,"Forsikring"]
[null,null,"Forskrift om årsregnskap for livsforsikringsforetak § 2-3",null,null,null,null,null,null,""]
[{"$f":"+A229+1","v":118},"Dersom livsforsikringsselskapet benytter bufferfond til å dekke renteforpliktelser på forsikringskontrakter, har styret redegjort for dette? ","Forskrift om årsregnskap for livsforsikringsforetak § 2-3",null,null,null,null,null,null,"",null,"Forsikring"]
["Tilleggsregler for verdipapirfond"]
[null,"Tilleggssjekklisten gjelder for verdipapirfond som er pålagt å følge forskrift om årsregnskap m.m. for verdipapirfond (årsregnf 1999-05-28 nr.654).","Forskrift om årsregnskap for verdipapirfond § 2-2"]
[null,"I årsberetningen skal det gis følgende opplysninger i tillegg til det som følger av regnskapsloven § 2-2: "]
[{"$f":"+A231+1","v":119},"Er det opplyst om hvilket forvaltningsselskap som er forretningsfører og hvem som er depotmottaker for verdipapirfondet?  ",null,null,null,null,null,null,null,{"$f":"IF(F235<>\"\",\"Du har satt X for at forholdet ikke er avklart. Gi en nærmere foklaring i kommentarfeltet.\",\"\")","v":""},null,"Verdipapirfond"]
[{"$f":"+A235+1","v":120},"Er det redegjort for den finansielle risikoen som har vært knyttet til virksomheten i regnskapsåret. Det skal redegjøres for verdipapirfondets risikostyring og organisering av denne?  ",null,null,null,null,null,null,null,"",null,"Verdipapirfond"]
[{"$f":"+A236+1","v":121},"Er det gitt informasjon om verdiutviklingen for en andel i perioden? Verdiutviklingen skal kommenteres særskilt i forhold til verdipapirfondets risikoprofil.  ",null,null,null,null,null,null,null,"",null,"Verdipapirfond"]
[{"$f":"+A237+1","v":122},"Er det redegjort for om det har vært ekstraordinært store innløsninger i perioden og håndteringen av disse? Dersom ekstraordinært store innløsninger har hatt innvirkning på andelenes verdiutvikling skal dette kommenteres.  ",null,null,null,null,null,null,null,"",null,"Verdipapirfond"]
[{"$f":"+A238+1","v":123},"Er opplysninger om forutsetningen om fortsatt drift etter regnskapsloven § 2-2 (8) nr. 2-4, også gitt om forvaltningsselskapet for verdipapirfondet?",null,null,null,null,null,null,null,"",null,"Verdipapirfond"]
["Tilleggsregler for verdipapirforetak med mer"]
[null,"Tilleggssjekklisten gjelder for verdipapirforetak og andre som er pålagt å følge forskrift om årsregnskap m.m. for verdipapirforetak (årsregnf. 1999-08-23 nr.957). ","Forskrift om årsregnskap for verdipapirforetak § 2-2"]
[null,"I årsberetningen skal det gis følgende opplysninger i tillegg til det som følger av regnskapsloven § 2-2: "]
[{"$f":"+A239+1","v":124},"Dersom foretakets kapitaldekning er under gjeldende minimumskrav, er det gjort oppmerksom på dette og redegjort for tiltak som er truffet for å sikre foretakets drift?  ",null,null,null,null,null,null,null,{"$f":"IF(F243<>\"\",\"Du har satt X for at forholdet ikke er avklart. Gi en nærmere foklaring i kommentarfeltet.\",\"\")","v":""},null,"Verdipapirforetak"]
["Tilleggsregler for pensjonsforetak med mer"]
[null,"Tilleggssjekklisten gjelder for pensjonsforetak og andre som er pålagt å følge forskrift om årsregnskap m.m. for pensjonsforetak. \nI årsberetningen skal det gis følgende opplysninger i tillegg til det som følger av regnskapsloven § 2-2: ","Forskrift 20.12.2011 om årsregnskap for pensjonsforetak"]
[{"$f":"+A243+1","v":125}," Dersom pensjonsforetakets solvensmarginkapital ikke oppfyller gjeldende minimumskrav eller for øvrig ikke er forsvarlig sett i forhold til virksomheten, har styret redegjort for dette og uttalt seg om tiltak som er truffet eller som skal treffes for å sikre pensjonsforetakets drift?",null,null,null,null,null,null,null,{"$f":"IF(F246<>\"\",\"Du har satt X for at forholdet ikke er avklart. Gi en nærmere foklaring i kommentarfeltet.\",\"\")","v":""},null,"Pensjonskasse"]
[{"$f":"+A246+1","v":126},"Er det gitt en beskrivelse av de finansielle risikoer som pensjonsforetaket er, og gjennom regnskapsåret har vært, eksponert for? ",null,null,null,null,null,null,null,"",null,"Pensjonskasse"]
[{"$f":"+A247+1","v":127},"Har styret redegjort for de mål og strategier som er fastsatt for risikostyring, og sammenhengen mellom disse og pensjonsforetakets overordnede mål og strategier?",null,null,null,null,null,null,null,"",null,"Pensjonskasse"]
[{"$f":"+A248+1","v":128},"Er det gitt en overordnet beskrivelse av pensjonsforetakets risikostyring og organiseringen av denne?",null,null,null,null,null,null,null,"",null,"Pensjonskasse"]
[{"$f":"+A249+1","v":129},"Dersom pensjonsforetaket benytter bufferfondet til å dekke renteforpliktelser på forsikringskontrakter, har styret redegjort for dette? ",null,null,null,null,null,null,null,"",null,"Pensjonskasse"]
[{"$f":"+A250+1","v":130},"Dersom pensjonsforetaket benytter risikoutjevningsfondet til å styrke avsetningen til premiereserve, har styret redegjort for dette? ",null,null,null,null,null,null,null,"",null,"Pensjonskasse"]
["Tilleggsregler for borettslag"]
[null,"Tilleggssjekklisten gjelder for borettslag som er pålagt å følge forskrift om årsregnskap og årsberetning for borettslag (årsregnf 2005-06-30 nr.745).  Forskriften er ikke oppdatert, og henviser fortsatt til rskl § 3-3 som frem til 2017 omhandlet krav til innhold i årsberetning for små foretak. "]
[{"$f":"+A251+1","v":131},"I tilknytning til opplysninger om forutsetningen om fortsatt drift er det opplyst særskilt dersom disponible midler er negative og om tiltak som er iverksatt og vurdert i denne forbindelse?","Forskrift om årsregnskap og årsberetning for borettslag § 6",null,null,null,null,null,null,{"$f":"IF(F254<>\"\",\"Du har satt X for at forholdet ikke er avklart. Gi en nærmere foklaring i kommentarfeltet.\",\"\")","v":""},null,"Borettslag"]

{"sheet":"Sheet1","index":4,"n_rows":0,"n_cols":0,"rows_kept":0,"cut":false,"hidden":true,"merged":[]}

{"sheet":"Ikke besvart","index":5,"n_rows":133,"n_cols":4,"rows_kept":133,"cut":false,"hidden":true,"merged":[]}
["Ikke besvart",{"$f":"'Sjekkliste for utfylling'!B2","v":0},{"$f":"'Sjekkliste for utfylling'!B3","v":2024},"Kommentarer"]
[1,"Er årsberetningen på norsk, eller annet språk som selskapet har fått dispensasjon til å bruke?"]
[2,"Er årsberetningen signert av samtlige styremedlemmer og eventuelt av daglig leder, alternativt av deltakerne eller medlemmene hvis foretaket ikke har styre eller daglig leder?"]
[3,"Dersom en som skal signere har innvendinger mot årsregnskapet eller årsberetningen, har vedkommende signert med påtegnet forbehold og gitt nærmere redegjørelse?"]
[4,"Er årsberetningen fastsatt innenfor lovens frist?"]
[5,"Gir årsberetningen et dekkende bilde av foretakets historiske og framtidige utvikling, resultat og stilling?"]
[6,"Er årsberetningen skrevet så klart og presist som mulig, i et forståelig språk, og med en balansert omtale av positive og negative forhold i den grad det gis slik omtale?"]
[7,"Er det konsistens i behandlingen av samme forhold i årsberetningen og årsregnskapet?"]
[8,"Er det redegjort for forholdet dersom utviklingen ikke har vært i overensstemmelse med vesentlige utsagn i tidligere årsberetninger?"]
[9,"Er det lagt vekt på vurderinger av kvalitativ art som forklarer forholdstall og annen tallbasert informasjon?"]
[10,"Kan refererte regnskapsmessige tallstørrelser i årsberetningen gjenfinnes i årsregnskapet, eventuelt som avstemming i notene?"]
[11,"For morselskap som utarbeider konsernregnskap, dekker årsberetningen også virksomheten i konsernet?"]
[12,"Gir informasjonen om virksomheten i konsernet grunnlag for å vurdere morselskapet og datterselskapene som en enhet?"]
[13,"Er det opplyst om arten av virksomheten? "]
[14,"Dersom det er flere typer virksomhet, er det gitt opplysninger om hver virksomhet?"]
[15,"Er det opplyst hvor virksomheten drives? "]
[16,"Ved flere filialer eller avdelinger, er det opplyst om hvor de ulike filialene / avdelingene drives? "]
[17,"Er det gitt en rettvisende oversikt over utvikling og resultat av foretakets virksomhet og dets stilling?"]
[18,"Er sentrale risikoer og usikkerhetsfaktorer beskrevet?"]
[19,"Er oversikten en balansert og fyllestgjørende analyse av utvikling, resultat og stilling?"]
[20,"I den grad det anses nødvendig for å forstå foretakets utvikling, resultat eller stilling, inneholder analysen både finansielle og, der det passer, ikke-finansielle sentrale og aktuelle resultatindikatorer, inkludert opplysninger om miljøforhold og forhold som gjelder arbeidstakere?"]
[21,"Inneholder årsberetningen, der det passer, henvisninger og tilleggsforklaringer til beløp oppført i årsregnskapet?"]
[22,"Er hovedfaktorene som påvirker virksomheten identifisert og forklart?"]
[23,"Er uvanlige eller ekstraordinære forhold belyst?"]
[24,"Er det opplyst om årsaken til og virkningen av vesentlige endringer i regnskapsprinsipper?"]
[25,"Er det opplyst om viktige hendelser etter balansedagen, samt redegjort for hendelsenes faktiske eller potensielle virkning på resultat og stilling?"]
[26,"Er endringer av overordnet og strategisk betydning, som for eksempel endring i satsningsområder og vesentlige strukturelle endringer, omtalt?"]
[27,"Er forventede virkninger på resultat og stilling av slike endringer kommentert?"]
[28,"Er det gitt en overordnet vurdering av total usikkerhet vedrørende foretakets regnskapsførte resultat og finansielle stilling?"]
[29,"Er viktige utviklingstrekk for virksomheten som er av betydning for å bedømme foretakets stilling og resultat drøftet, for eksempel:\no Endringer i markedsforhold\no Nye produkter og tjenester\no Endringer i markedsandeler eller markedsposisjoner\no Endringer i salgsmengde eller marginer\no Endringer i valutakurser og relevante prisforhold\no Andre spesielle forhold som kan ha påvirket resultatet"]
[30,"Er det gitt opplysninger om eventuelle forsknings- og utviklingsaktiviteter?"]
[31,"Er spesielle forhold som i betydelig grad kan ha påvirket årsregnskapet kommentert, for eksempel:\no Store enkelttransaksjoner\no Kjøp eller salg av foretak, ny virksomhet, avviklet virksomhet og andre viktige anskaffelser og avhendelser\no Realisering eller oppbygging av merverdier i for eksempel verdipapirer eller eiendom\no Særlige poster"]
[32,"Er likviditetssituasjonen på balansedagen gjennomgått?"]
[33,"Dersom ikke tilsvarende informasjon gis gjennom øvrige deler av årsberetningen, er kontantstrømoppstillingen kommentert?"]
[34,"Er det redegjort for eventuelle vesentlige avvik mellom driftsresultat og kontantstrøm fra operasjonelle aktiviteter?"]
[35,"Dersom man anser det for å være sentral informasjon for brukerne, er det informert om skillet mellom investeringer som er gjort for å opprettholde kapasiteten og investeringer som er gjort for å øke kapasiteten / lønnsomheten?"]
[36,"Er det gitt en vurdering av sammenhengene mellom kontantstrømmene fra operasjonelle aktiviteter og investeringsaktiviteter, herunder evnen til egenfinansiering av investeringer?"]
[37,"Er det redegjort for formålet med og virkningen av større finansielle transaksjoner som er gjennomført fram til avleggelsen av årsberetningen?"]
[38,"Er det gitt er redegjørelse som gir grunnlag for å vurdere foretakets framtidige utvikling?"]
[39,"Er det gitt en vurdering av foretakets forventede økonomiske utvikling på et overordnet nivå, med angivelse av de viktigste forutsetninger som er lagt til grunn?"]
[40,"Har styret presisert at det normalt er betydelig usikkerhet knyttet til vurderinger av fremtidige forhold?"]
[41,"Er faktorer og forhold som vil ha betydning for fremtidige resultater drøftet?"]
[42,"Omfatter drøftelsen en identifisering av de vesentligste risiki for virksomheten?"]
[43,"Dersom det i foregående årsberetninger eller årsregnskap er angitt resultatmål eller andre opplysninger om forventet utvikling, er det opplyst om forventningene er i samsvar med årets resultat, og er eventuelle avvik begrunnet? "]
[44,"Er det gitt opplysninger om finansiell risiko som er av betydning for å bedømme foretakets eiendeler, gjeld, finansiell stilling og resultat? "]
[45,"Omfatter opplysningene mål og strategier som er fastsatt for styring av finansiell risiko, herunder strategien for sikring av hver hovedtype av planlagte transaksjoner der sikringsvurdering er benyttet?  "]
[46,"Er det redegjort for foretakets eksponering mot markedsrisiko, kredittrisiko og likviditetsrisiko?  "]
[47,"Dersom det foreligger brudd på vilkår og/eller forutsetninger for lån (covenants), eller det forventes at dette vil skje i neste regnskapsperiode, er det opplyst om dette, eventuelt ved en henvisning til informasjonen om dette i årsregnskapet?  "]
[48,"Er det opplyst om sentrale immaterielle ressurser?"]
[49,"Er det forklart på hvilken måte foretakets forretningsmodell grunnleggende er avhengig av slike ressurser, og på hvilken måte slike ressurser er en kilde til verdiskapning for virksomheten?"]
[50,"Utvilsom fortsatt drift: Er det bekreftet at forutsetningen for fortsatt drift er til stede? "]
[51,"Usikker fortsatt drift: er det redegjort for usikkerheten om fortsatt drift? "]
[52,"Ved stor usikkerhet og tvil om fortsatt drift, er det opplyst om større poster i årsregnskapet som vil påvirkes dersom forutsetningen om fortsatt drift ikke legges til grunn for vurderingene?"]
[53,"Er virkningene, dersom det er mulig, kvantifisert?"]
[54,"Sannsynlig avvikling: Er det redegjort for hvordan virkelig verdi ved avvikling er beregnet dersom dette ikke fremgår i note til årsregnskapet? "]
[55,"Dersom styrets handleplikt etter asl/asal § 3-5 er inntrådt, er det opplyst om det er besluttet eller satt i verk tiltak for å sikre selskapets drift, eventuelt å oppløse selskapet?"]
[56,"Dersom resultatregnskapet, noter eller evt. oppstilling av endring i egenkapitalen ikke inneholder forslag til anvendelse av overskudd eller dekning av tap, fremgår forslaget av årsberetningen? "]
[57,"Er det gitt opplysninger om arbeidsmiljøet? "]
[58,"Er det gitt en oversikt over eventuelle iverksatte tiltak som har betydning for arbeidsmiljøet? "]
[59,"Er det opplyst om eventuelle skader, herunder både personskader og materielle skader?  "]
[60,"Er det opplyst om skader som gjelder både ulykker og andre skader, for eksempel slitasje- og belastningsskader?  "]
[61,"Er det opplyst om eventuelle ulykker, herunder både ulykkens art, personskader og materielle skader?  \n\nOpplysningene skal i utgangspunktet spesifiseres på enkelttilfeller, men det kan være mest oversiktlig å gi opplysninger om felere likeartede skader eller ulykker samlet. "]
[62,"Dersom foretaket har minst 5 årsverk, er det opplyst om sykefravær?\nOpplysningene skal omfatte både det totale sykefraværet i regnskapsåret, og hvor stor andel sykefraværet har utgjort av den totale arbeidstiden i regnskapsåret."]
[63,"Er det redegjort for den faktiske tilstanden når det gjelder kjønnslikestilling i virksomheten? "]
[64,"Er det redegjort for hva foretaket gjør for å oppfylle aktivitetsplikten etter likestillings- og diskrimineringsloven § 26?"]
[65,"Er redegjørelsen utformet slik at enkeltansattes personlige forhold ikke røpes?"]
[66,"Fremgår resultatene av lønnskartleggingen av redegjørelsen i anonymisert form?"]
[67,"Er det opplyst om forhold som kan medføre en ikke ubetydelig påvirkning på miljøforhold?"]
[68,"Omfatter opplysningene hvilke negative virkninger virksomheten har eller kan ha på klima, natur og miljø?"]
[69,"Er det redegjort for hvilke tiltak, både forebyggende og opprettende, som er eller planleggs iverksatt for å forhindre eller redusere slike negative virkninger? "]
[70,"Dersom miljøforhold har en betydelig påvirkning på foretakets fremtidsutsikter, er det gitt opplysninger om hvilken påvirkning endringer i miljøforhold har eller vil ha på virksomheten? \nSe også avsnitt ovenfor om fremtidsutsikter."]
[71,"Er det gitt opplysninger om det er tegnet forsikring for styrets medlemmer og daglig leder for deres mulige ansvar overfor foretaket og tredjepersoner, og i tilfelle om forsikringsdekningen?"]
[72,"Hvis det ikke er tegnet forsikring for styremedlemmenes og daglig leders mulige ansvar overfor foretaket og tredjepersoner, er det opplyst om dette?"]
[73,"• en beskrivelse av vedtektsbestemmelser som begrenser rettet til å omsette selskapets aksjer,"]
[74,"• en beskrivelse av hvem som utøver rettighetene til aksjer i eventuelle ansatteaksjeordninger når myndigheten ikke utøves direkte av de ansatte som er omfattet av ordningen,"]
[75,"• avtaler mellom aksjeeiere selskapet er kjent med som begrenser mulighetene til å omsette eller utøve stemmerett for aksjer,"]
[76,"• vesentlige avtaler selskapet er part i hvis vilkår trer i kraft, endres eller opphører som følge av et overtakelsestilbud, samt en redegjørelse for vilkårene. \nI den grad det vil medføre urimelig forretningsmessig ulempe at en avtale blir kjent kan foretaket la være å opplyse om avtalen. Unntaket kommer ikke til anvendelse dersom selskapet er forpliktet til å offentliggjøre opplysninger om avtalen i henhold til annen lovgivning."]
[77,"Ytelser, lån og sikkerhetsstillelse til ledende personer i foretak av allmenn interesse: Regnskapsloven § 7-31b stiller krav om at ytelser til ledende personer i store foretak skal opplyses i note til regnskapet. Disse opplysningene, samt opplysningene som kreves etter § 7-32 første ledd kan i stedet for i note gis i en rapport om godtgjørelse til ledende personer. Rapporten skal da inngå i årsberetningen. "]
[78,"Dersom selskapet er underlagt kravene om taksonomirapportering, har selskapet gitt tilstrekkelig informasjon i forhold til kravene i artikkel 8 i taksonomiforordningen?"]
[79,"Dersom selskapet er pliktig til å avgi redegjørelse etter åpenhetsloven, er det opplyst i årsberetningen om hvor redegjørelsen er tilgjengelig?"]
[80,"\t• en generell beskrivelse av virksomhetens organisering, driftsområde, retningslinjer og rutiner for å håndtere faktiske og potensielle negative konsekvenser for grunnleggende menneskerettigheter og anstendige arbeidsforhold"]
[81,"\t• opplysninger om faktiske negative konsekvenser og vesentlig risiko for negative konsekvenser som virksomheten har avdekket gjennom sine aktsomhetsvurderinger"]
[82,"• opplysninger om tiltak som virksomheten har iverksatt eller planlegger å iverksette for å stanse faktiske negative konsekvenser eller begrense vesentlig risiko for negative konsekvenser, og resultatet eller forventede resultater av disse tiltakene."]
[83,"• en beskrivelse av hovedelementene i foretakets, og for regnskapspliktige som utarbeider konsernregnskap eventuelt også konsernets, systemer for internkontroll og risikostyring knyttet til regnskapsrapporteringsprosessen"]
[84,"• vedtektsbestemmelser som regulerer oppnevning og utskifting av styremedlemmer"]
[85,"• vedtektsbestemmelser og fullmakter som gir styret adgang til å beslutte at foretaket skal kjøpe tilbake eller utstede egne aksjer eller egenkapitalbevis"]
[86,"• en beskrivelse av foretakets retningslinjer for likestilling og mangfold med hensyn til kjønn og andre forhold slik som alder, funksjonsnedsettelse og utdannings- og yrkesbakgrunn for sammensetning av styre, ledelses- og kontrollorganer og deres eventuelle underutvalg. "]
[87,"• mål for retningslinjene for likestilling og mangfold, hvordan de har blitt gjennomført og virkningen av dem i rapporteringsperioden"]
[88,"• hvis foretaket ikke har retningslinjer for likestilling og mangfold; en begrunnelse for dette."]
[89,"• en angivelse av anbefalinger og regelverk om foretaksstyring som foretaket er omfattet av eller for øvrig velger å følge"]
[90,"• opplysninger om hvor anbefalinger og regelverk som nevnt i spørsmålet over  er offentlig tilgjengelige"]
[91,"• en begrunnelse for eventuelle avvik fra anbefalinger og regelverk som nevnt i spørsmålet over"]
[92,"• vedtektsbestemmelser som helt eller delvis utvider eller fraviker bestemmelser i allmennaksjeloven kapittel 5"]
[93,"• sammensetningen til styre, bedriftsforsamling, representantskap og kontrollkomite; eventuelle arbeidsutvalg for disse organene, samt en beskrivelse av hovedelementene i gjeldende instrukser og retningslinjer for organenes og eventuelle utvalgs arbeid"]
[94,"For foretak som kommer inn under rapporteringskravene om betalinger til myndigheter mv., er det i årsberetningen opplyst om hvor rapporten er offentliggjort?"]
[95,"Den samlede betaling til hver myndighet i løpet av regnskapsåret, fordelt per land og fordelt per type betaling (typer betaling er definert i forskriften § 3 nr. 5 bokstav a-h)?"]
[96,"Betalinger knyttet til et prosjekt, rapportert per prosjekt og per type betaling som nevnt i § 3 nr. 5 bokstav a-h?"]
[97,"Når det er plikt til å gi opplysninger om betalinger til myndigheter, inneholder rapporten også opplysninger om foretakets investeringer, salgsinntekt, produksjonsvolum og kostnader, fordelt på de enkelte land hvor foretaket driver virksomhet?"]
[98,"Er det i rapporten også opplyst om foretakets rentekostnad til andre foretak i samme konsern som er hjemmehørende i andre jurisdiksjoner enn foretaket?"]
[99,"Er opplysningene i de to foregående spørsmålene så vidt mulig hentet fra årsregnskapet, og er eventuelle forskjeller forklart?"]
[100,"For betalinger in natura til en myndighet, er både verdi og, når relevant, mengde, oppgitt?"]
[101,"Er det gitt en forklaring om hvordan verdien er fastsatt?"]
[102,"Den samlede betaling til hver myndighet i løpet av regnskapsåret, fordelt per land og fordelt per type betaling (typer betaling er definert i forskriften § 3 nr. 5 bokstav a-h)?"]
[103,"Betalinger knyttet til et prosjekt, rapportert per prosjekt og per type betaling som nevnt i § 3 nr. 5 bokstav a-h?"]
[104,"Når det er plikt til å gi opplysninger om betalinger til myndigheter, inneholder rapporten også opplysninger om foretakets investeringer, salgsinntekt, produksjonsvolum og kostnader, fordelt på de enkelte land hvor foretaket driver virksomhet?"]
[105,"Dersom unntak beskrevet ovenfor er benyttet, er det gitt en nærmere forklaring på hvorfor unntaket er benyttet, hvilket datterselskap det gjelder, samt hvilke tiltak som er iverksatt for å forhindre at tilsvarende unntak benyttes for senere rapportering?"]
[106,"a.\thvor datterselskapet er hjemmehørende,"]
[107,"b.\tantall ansatte,"]
[108,"c.\trentekostnad til andre foretak i samme konsern som er hjemmehørende i andre jurisdiksjoner enn datterselskapet,"]
[109,"d.\ten kortfattet beskrivelse av datterselskapets aktiviteter,"]
[110,"e.\tnetto omsetning, inkludert omsetning med foretak i samme konsern,"]
[111,"f.\tresultat før skatt,"]
[112,"g.\tinntektsskatt i regnskapsåret som beregnet av den skattepliktiges overskudd eller underskudd i regnskapsåret,"]
[113,"h.\tinntektsskatt som er betalt i løpet av det aktuelle regnskapsåret av datterselskapet, "]
[114,"i.\takkumulert fortjeneste"]
[115,"Er opplysningene så vidt mulig hentet fra årsregnskapet, og er eventuelle forskjeller forklart?"]
[116,"Dersom institusjonens kapitaldekning er under gjeldende minimumskrav, er det gjort oppmerksom på dette og redegjort for tiltak som er truffet for å sikre institusjonens drift?"]
[117,"Dersom foretaket ikke oppfyller gjeldende krav til ansvarlig kapital eller kapitalen for øvrig ikke er forsvarlig sett i forhold til virksomheten, har styret redegjort for dette og uttalt seg om tiltak som er truffet eller som skal treffes for å sikre selskapets drift?"]
[118,"Er det gitt en beskrivelse av de finansielle risikoer som selskapet er, og gjennom regnskapsåret har vært, eksponert for? Styret skal redegjøre for de mål og strategier som er fastsatt for risikostyring, og sammenhengen mellom disse og selskapets overordnede mål og strategier. Det skal gis en overordnet beskrivelse av selskapets risikostyring og organiseringen av denne. "]
[119,"Dersom livsforsikringsselskapet benytter bufferfond til å dekke renteforpliktelser på forsikringskontrakter, har styret redegjort for dette? "]
[120,"Er det opplyst om hvilket forvaltningsselskap som er forretningsfører og hvem som er depotmottaker for verdipapirfondet?  "]
[121,"Er det redegjort for den finansielle risikoen som har vært knyttet til virksomheten i regnskapsåret. Det skal redegjøres for verdipapirfondets risikostyring og organisering av denne?  "]
[122,"Er det gitt informasjon om verdiutviklingen for en andel i perioden? Verdiutviklingen skal kommenteres særskilt i forhold til verdipapirfondets risikoprofil.  "]
[123,"Er det redegjort for om det har vært ekstraordinært store innløsninger i perioden og håndteringen av disse? Dersom ekstraordinært store innløsninger har hatt innvirkning på andelenes verdiutvikling skal dette kommenteres.  "]
[124,"Er opplysninger om forutsetningen om fortsatt drift etter regnskapsloven § 2-2 (8) nr. 2-4, også gitt om forvaltningsselskapet for verdipapirfondet?"]
[125,"Dersom foretakets kapitaldekning er under gjeldende minimumskrav, er det gjort oppmerksom på dette og redegjort for tiltak som er truffet for å sikre foretakets drift?  "]
[126," Dersom pensjonsforetakets solvensmarginkapital ikke oppfyller gjeldende minimumskrav eller for øvrig ikke er forsvarlig sett i forhold til virksomheten, har styret redegjort for dette og uttalt seg om tiltak som er truffet eller som skal treffes for å sikre pensjonsforetakets drift?"]
[127,"Er det gitt en beskrivelse av de finansielle risikoer som pensjonsforetaket er, og gjennom regnskapsåret har vært, eksponert for? "]
[128,"Har styret redegjort for de mål og strategier som er fastsatt for risikostyring, og sammenhengen mellom disse og pensjonsforetakets overordnede mål og strategier?"]
[129,"Er det gitt en overordnet beskrivelse av pensjonsforetakets risikostyring og organiseringen av denne?"]
[130,"Dersom pensjonsforetaket benytter bufferfondet til å dekke renteforpliktelser på forsikringskontrakter, har styret redegjort for dette? "]
[131,"Dersom pensjonsforetaket benytter risikoutjevningsfondet til å styrke avsetningen til premiereserve, har styret redegjort for dette? "]
[132,"I tilknytning til opplysninger om forutsetningen om fortsatt drift er det opplyst særskilt dersom disponible midler er negative og om tiltak som er iverksatt og vurdert i denne forbindelse?"]

{"sheet":"JA-svar","index":6,"n_rows":132,"n_cols":8,"rows_kept":132,"cut":false,"hidden":true,"merged":[]}
[null,null,{"$f":"COUNTIF(C2:C3,\"=1\")-D1","v":0},{"$f":"SUM(D2:D328)","v":0},"JA-svar",{"$f":"'Sjekkliste for utfylling'!B2","v":0},{"$f":"'Sjekkliste for utfylling'!B3","v":2024},{"$f":"'Sjekkliste for utfylling'!C3","v":0}]
[{"$f":"'Sjekkliste for utfylling'!A13","v":1},{"$f":"IF('Sjekkliste for utfylling'!E13<>\"\",1,0)","v":0},{"$f":"SUM(B2:B2)","v":0},null,{"$f":"IF($C2=1,'Sjekkliste for utfylling'!A13,\"\")","v":""},{"$f":"IF($C2=1,'Sjekkliste for utfylling'!B13,\"\")","v":""},null,{"$f":"IF(C2=1,'Sjekkliste for utfylling'!H13,\" \")","v":" "}]
[{"$f":"'Sjekkliste for utfylling'!A14","v":2},{"$f":"IF('Sjekkliste for utfylling'!E14<>\"\",1,0)","v":0},0,null,{"$f":"IF($C3=1,'Sjekkliste for utfylling'!A14,\"\")","v":""},{"$f":"IF($C3=1,'Sjekkliste for utfylling'!B14,\"\")","v":""},null,{"$f":"IF(C3=1,'Sjekkliste for utfylling'!H14,\" \")","v":" "}]
[{"$f":"'Sjekkliste for utfylling'!A15","v":3},{"$f":"IF('Sjekkliste for utfylling'!E15<>\"\",1,0)","v":0},0,null,{"$f":"IF($C4=1,'Sjekkliste for utfylling'!A15,\"\")","v":""},{"$f":"IF($C4=1,'Sjekkliste for utfylling'!B15,\"\")","v":""},null,{"$f":"IF(C4=1,'Sjekkliste for utfylling'!H15,\" \")","v":" "}]
[{"$f":"'Sjekkliste for utfylling'!A18","v":4},{"$f":"IF('Sjekkliste for utfylling'!E18<>\"\",1,0)","v":0},0,null,{"$f":"IF($C5=1,'Sjekkliste for utfylling'!A18,\"\")","v":""},{"$f":"IF($C5=1,'Sjekkliste for utfylling'!B18,\"\")","v":""},null,{"$f":"IF(C5=1,'Sjekkliste for utfylling'!H18,\" \")","v":" "}]
[{"$f":"'Sjekkliste for utfylling'!A21","v":5},{"$f":"IF('Sjekkliste for utfylling'!E21<>\"\",1,0)","v":0},0,null,{"$f":"IF($C6=1,'Sjekkliste for utfylling'!A21,\"\")","v":""},{"$f":"IF($C6=1,'Sjekkliste for utfylling'!B21,\"\")","v":""},null,{"$f":"IF(C6=1,'Sjekkliste for utfylling'!H21,\" \")","v":" "}]
[{"$f":"'Sjekkliste for utfylling'!A22","v":6},{"$f":"IF('Sjekkliste for utfylling'!E22<>\"\",1,0)","v":0},0,null,{"$f":"IF($C7=1,'Sjekkliste for utfylling'!A22,\"\")","v":""},{"$f":"IF($C7=1,'Sjekkliste for utfylling'!B22,\"\")","v":""},null,{"$f":"IF(C7=1,'Sjekkliste for utfylling'!H22,\" \")","v":" "}]
[{"$f":"'Sjekkliste for utfylling'!A23","v":7},{"$f":"IF('Sjekkliste for utfylling'!E23<>\"\",1,0)","v":0},0,null,{"$f":"IF($C8=1,'Sjekkliste for utfylling'!A23,\"\")","v":""},{"$f":"IF($C8=1,'Sjekkliste for utfylling'!B23,\"\")","v":""},null,{"$f":"IF(C8=1,'Sjekkliste for utfylling'!H23,\" \")","v":" "}]
[{"$f":"'Sjekkliste for utfylling'!A24","v":8},{"$f":"IF('Sjekkliste for utfylling'!E24<>\"\",1,0)","v":0},0,null,{"$f":"IF($C9=1,'Sjekkliste for utfylling'!A24,\"\")","v":""},{"$f":"IF($C9=1,'Sjekkliste for utfylling'!B24,\"\")","v":""},null,{"$f":"IF(C9=1,'Sjekkliste for utfylling'!H24,\" \")","v":" "}]
[{"$f":"'Sjekkliste for utfylling'!A25","v":9},{"$f":"IF('Sjekkliste for utfylling'!E25<>\"\",1,0)","v":0},0,null,{"$f":"IF($C10=1,'Sjekkliste for utfylling'!A25,\"\")","v":""},{"$f":"IF($C10=1,'Sjekkliste for utfylling'!B25,\"\")","v":""},null,{"$f":"IF(C10=1,'Sjekkliste for utfylling'!H25,\" \")","v":" "}]
[{"$f":"'Sjekkliste for utfylling'!A26","v":10},{"$f":"IF('Sjekkliste for utfylling'!E26<>\"\",1,0)","v":0},0,null,{"$f":"IF($C11=1,'Sjekkliste for utfylling'!A26,\"\")","v":""},{"$f":"IF($C11=1,'Sjekkliste for utfylling'!B26,\"\")","v":""},null,{"$f":"IF(C11=1,'Sjekkliste for utfylling'!H26,\" \")","v":" "}]
[{"$f":"'Sjekkliste for utfylling'!A27","v":11},{"$f":"IF('Sjekkliste for utfylling'!E27<>\"\",1,0)","v":0},0,null,{"$f":"IF($C12=1,'Sjekkliste for utfylling'!A27,\"\")","v":""},{"$f":"IF($C12=1,'Sjekkliste for utfylling'!B27,\"\")","v":""},null,{"$f":"IF(C12=1,'Sjekkliste for utfylling'!H27,\" \")","v":" "}]
[{"$f":"'Sjekkliste for utfylling'!A29","v":12},{"$f":"IF('Sjekkliste for utfylling'!E29<>\"\",1,0)","v":0},0,null,{"$f":"IF($C13=1,'Sjekkliste for utfylling'!A29,\"\")","v":""},{"$f":"IF($C13=1,'Sjekkliste for utfylling'!B29,\"\")","v":""},null,{"$f":"IF(C13=1,'Sjekkliste for utfylling'!H29,\" \")","v":" "}]
[{"$f":"'Sjekkliste for utfylling'!A32","v":13},{"$f":"IF('Sjekkliste for utfylling'!E32<>\"\",1,0)","v":0},0,null,{"$f":"IF($C14=1,'Sjekkliste for utfylling'!A32,\"\")","v":""},{"$f":"IF($C14=1,'Sjekkliste for utfylling'!B32,\"\")","v":""},null,{"$f":"IF(C14=1,'Sjekkliste for utfylling'!H32,\" \")","v":" "}]
[{"$f":"'Sjekkliste for utfylling'!A33","v":14},{"$f":"IF('Sjekkliste for utfylling'!E33<>\"\",1,0)","v":0},0,null,{"$f":"IF($C15=1,'Sjekkliste for utfylling'!A33,\"\")","v":""},{"$f":"IF($C15=1,'Sjekkliste for utfylling'!B33,\"\")","v":""},null,{"$f":"IF(C15=1,'Sjekkliste for utfylling'!H33,\" \")","v":" "}]
[{"$f":"'Sjekkliste for utfylling'!A34","v":15},{"$f":"IF('Sjekkliste for utfylling'!E34<>\"\",1,0)","v":0},0,null,{"$f":"IF($C16=1,'Sjekkliste for utfylling'!A34,\"\")","v":""},{"$f":"IF($C16=1,'Sjekkliste for utfylling'!B34,\"\")","v":""},null,{"$f":"IF(C16=1,'Sjekkliste for utfylling'!H34,\" \")","v":" "}]
[{"$f":"'Sjekkliste for utfylling'!A35","v":16},{"$f":"IF('Sjekkliste for utfylling'!E35<>\"\",1,0)","v":0},0,null,{"$f":"IF($C17=1,'Sjekkliste for utfylling'!A35,\"\")","v":""},{"$f":"IF($C17=1,'Sjekkliste for utfylling'!B35,\"\")","v":""},null,{"$f":"IF(C17=1,'Sjekkliste for utfylling'!H35,\" \")","v":" "}]
[{"$f":"'Sjekkliste for utfylling'!A40","v":17},{"$f":"IF('Sjekkliste for utfylling'!E40<>\"\",1,0)","v":0},0,null,{"$f":"IF($C18=1,'Sjekkliste for utfylling'!A40,\"\")","v":""},{"$f":"IF($C18=1,'Sjekkliste for utfylling'!B40,\"\")","v":""},null,{"$f":"IF(C18=1,'Sjekkliste for utfylling'!H40,\" \")","v":" "}]
[{"$f":"'Sjekkliste for utfylling'!A41","v":18},{"$f":"IF('Sjekkliste for utfylling'!E41<>\"\",1,0)","v":0},0,null,{"$f":"IF($C19=1,'Sjekkliste for utfylling'!A41,\"\")","v":""},{"$f":"IF($C19=1,'Sjekkliste for utfylling'!B41,\"\")","v":""},null,{"$f":"IF(C19=1,'Sjekkliste for utfylling'!H41,\" \")","v":" "}]
[{"$f":"'Sjekkliste for utfylling'!A42","v":19},{"$f":"IF('Sjekkliste for utfylling'!E42<>\"\",1,0)","v":0},0,null,{"$f":"IF($C20=1,'Sjekkliste for utfylling'!A42,\"\")","v":""},{"$f":"IF($C20=1,'Sjekkliste for utfylling'!B42,\"\")","v":""},null,{"$f":"IF(C20=1,'Sjekkliste for utfylling'!H42,\" \")","v":" "}]
[{"$f":"'Sjekkliste for utfylling'!A43","v":20},{"$f":"IF('Sjekkliste for utfylling'!E43<>\"\",1,0)","v":0},0,null,{"$f":"IF($C21=1,'Sjekkliste for utfylling'!A43,\"\")","v":""},{"$f":"IF($C21=1,'Sjekkliste for utfylling'!B43,\"\")","v":""},null,{"$f":"IF(C21=1,'Sjekkliste for utfylling'!H43,\" \")","v":" "}]
[{"$f":"'Sjekkliste for utfylling'!A44","v":21},{"$f":"IF('Sjekkliste for utfylling'!E44<>\"\",1,0)","v":0},0,null,{"$f":"IF($C22=1,'Sjekkliste for utfylling'!A44,\"\")","v":""},{"$f":"IF($C22=1,'Sjekkliste for utfylling'!B44,\"\")","v":""},null,{"$f":"IF(C22=1,'Sjekkliste for utfylling'!H44,\" \")","v":" "}]
[{"$f":"'Sjekkliste for utfylling'!A45","v":22},{"$f":"IF('Sjekkliste for utfylling'!E45<>\"\",1,0)","v":0},0,null,{"$f":"IF($C23=1,'Sjekkliste for utfylling'!A45,\"\")","v":""},{"$f":"IF($C23=1,'Sjekkliste for utfylling'!B45,\"\")","v":""},null,{"$f":"IF(C23=1,'Sjekkliste for utfylling'!H45,\" \")","v":" "}]
[{"$f":"'Sjekkliste for utfylling'!A46","v":23},{"$f":"IF('Sjekkliste for utfylling'!E46<>\"\",1,0)","v":0},0,null,{"$f":"IF($C24=1,'Sjekkliste for utfylling'!A46,\"\")","v":""},{"$f":"IF($C24=1,'Sjekkliste for utfylling'!B46,\"\")","v":""},null,{"$f":"IF(C24=1,'Sjekkliste for utfylling'!H46,\" \")","v":" "}]
[{"$f":"'Sjekkliste for utfylling'!A47","v":24},{"$f":"IF('Sjekkliste for utfylling'!E47<>\"\",1,0)","v":0},0,null,{"$f":"IF($C25=1,'Sjekkliste for utfylling'!A47,\"\")","v":""},{"$f":"IF($C25=1,'Sjekkliste for utfylling'!B47,\"\")","v":""},null,{"$f":"IF(C25=1,'Sjekkliste for utfylling'!H47,\" \")","v":" "}]
[{"$f":"'Sjekkliste for utfylling'!A48","v":25},{"$f":"IF('Sjekkliste for utfylling'!E48<>\"\",1,0)","v":0},0,null,{"$f":"IF($C26=1,'Sjekkliste for utfylling'!A48,\"\")","v":""},{"$f":"IF($C26=1,'Sjekkliste for utfylling'!B48,\"\")","v":""},null,{"$f":"IF(C26=1,'Sjekkliste for utfylling'!H48,\" \")","v":" "}]
[{"$f":"'Sjekkliste for utfylling'!A49","v":26},{"$f":"IF('Sjekkliste for utfylling'!E49<>\"\",1,0)","v":0},0,null,{"$f":"IF($C27=1,'Sjekkliste for utfylling'!A49,\"\")","v":""},{"$f":"IF($C27=1,'Sjekkliste for utfylling'!B49,\"\")","v":""},null,{"$f":"IF(C27=1,'Sjekkliste for utfylling'!H49,\" \")","v":" "}]
[{"$f":"'Sjekkliste for utfylling'!A50","v":27},{"$f":"IF('Sjekkliste for utfylling'!E50<>\"\",1,0)","v":0},0,null,{"$f":"IF($C28=1,'Sjekkliste for utfylling'!A50,\"\")","v":""},{"$f":"IF($C28=1,'Sjekkliste for utfylling'!B50,\"\")","v":""},null,{"$f":"IF(C28=1,'Sjekkliste for utfylling'!H50,\" \")","v":" "}]
[{"$f":"'Sjekkliste for utfylling'!A51","v":28},{"$f":"IF('Sjekkliste for utfylling'!E51<>\"\",1,0)","v":0},0,null,{"$f":"IF($C29=1,'Sjekkliste for utfylling'!A51,\"\")","v":""},{"$f":"IF($C29=1,'Sjekkliste for utfylling'!B51,\"\")","v":""},null,{"$f":"IF(C29=1,'Sjekkliste for utfylling'!H51,\" \")","v":" "}]
[{"$f":"'Sjekkliste for utfylling'!A53","v":29},{"$f":"IF('Sjekkliste for utfylling'!E53<>\"\",1,0)","v":0},0,null,{"$f":"IF($C30=1,'Sjekkliste for utfylling'!A53,\"\")","v":""},{"$f":"IF($C30=1,'Sjekkliste for utfylling'!B53,\"\")","v":""},null,{"$f":"IF(C30=1,'Sjekkliste for utfylling'!H53,\" \")","v":" "}]
[{"$f":"'Sjekkliste for utfylling'!A54","v":30},{"$f":"IF('Sjekkliste for utfylling'!E54<>\"\",1,0)","v":0},0,null,{"$f":"IF($C31=1,'Sjekkliste for utfylling'!A54,\"\")","v":""},{"$f":"IF($C31=1,'Sjekkliste for utfylling'!B54,\"\")","v":""},null,{"$f":"IF(C31=1,'Sjekkliste for utfylling'!H54,\" \")","v":" "}]
[{"$f":"'Sjekkliste for utfylling'!A56","v":31},{"$f":"IF('Sjekkliste for utfylling'!E56<>\"\",1,0)","v":0},0,null,{"$f":"IF($C32=1,'Sjekkliste for utfylling'!A56,\"\")","v":""},{"$f":"IF($C32=1,'Sjekkliste for utfylling'!B56,\"\")","v":""},null,{"$f":"IF(C32=1,'Sjekkliste for utfylling'!H56,\" \")","v":" "}]
[{"$f":"'Sjekkliste for utfylling'!A60","v":32},{"$f":"IF('Sjekkliste for utfylling'!E60<>\"\",1,0)","v":0},0,null,{"$f":"IF($C33=1,'Sjekkliste for utfylling'!A60,\"\")","v":""},{"$f":"IF($C33=1,'Sjekkliste for utfylling'!B60,\"\")","v":""},null,{"$f":"IF(C33=1,'Sjekkliste for utfylling'!H60,\" \")","v":" "}]
[{"$f":"'Sjekkliste for utfylling'!A64","v":33},{"$f":"IF('Sjekkliste for utfylling'!E64<>\"\",1,0)","v":0},0,null,{"$f":"IF($C34=1,'Sjekkliste for utfylling'!A64,\"\")","v":""},{"$f":"IF($C34=1,'Sjekkliste for utfylling'!B64,\"\")","v":""},null,{"$f":"IF(C34=1,'Sjekkliste for utfylling'!H64,\" \")","v":" "}]
[{"$f":"'Sjekkliste for utfylling'!A65","v":34},{"$f":"IF('Sjekkliste for utfylling'!E65<>\"\",1,0)","v":0},0,null,{"$f":"IF($C35=1,'Sjekkliste for utfylling'!A65,\"\")","v":""},{"$f":"IF($C35=1,'Sjekkliste for utfylling'!B65,\"\")","v":""},null,{"$f":"IF(C35=1,'Sjekkliste for utfylling'!H65,\" \")","v":" "}]
[{"$f":"'Sjekkliste for utfylling'!A66","v":35},{"$f":"IF('Sjekkliste for utfylling'!E66<>\"\",1,0)","v":0},0,null,{"$f":"IF($C36=1,'Sjekkliste for utfylling'!A66,\"\")","v":""},{"$f":"IF($C36=1,'Sjekkliste for utfylling'!B66,\"\")","v":""},null,{"$f":"IF(C36=1,'Sjekkliste for utfylling'!H66,\" \")","v":" "}]
[{"$f":"'Sjekkliste for utfylling'!A67","v":36},{"$f":"IF('Sjekkliste for utfylling'!E67<>\"\",1,0)","v":0},0,null,{"$f":"IF($C37=1,'Sjekkliste for utfylling'!A67,\"\")","v":""},{"$f":"IF($C37=1,'Sjekkliste for utfylling'!B67,\"\")","v":""},null,{"$f":"IF(C37=1,'Sjekkliste for utfylling'!H67,\" \")","v":" "}]
[{"$f":"'Sjekkliste for utfylling'!A68","v":37},{"$f":"IF('Sjekkliste for utfylling'!E68<>\"\",1,0)","v":0},0,null,{"$f":"IF($C38=1,'Sjekkliste for utfylling'!A68,\"\")","v":""},{"$f":"IF($C38=1,'Sjekkliste for utfylling'!B68,\"\")","v":""},null,{"$f":"IF(C38=1,'Sjekkliste for utfylling'!H68,\" \")","v":" "}]
[{"$f":"'Sjekkliste for utfylling'!A75","v":38},{"$f":"IF('Sjekkliste for utfylling'!E75<>\"\",1,0)","v":0},0,null,{"$f":"IF($C39=1,'Sjekkliste for utfylling'!A75,\"\")","v":""},{"$f":"IF($C39=1,'Sjekkliste for utfylling'!B75,\"\")","v":""},null,{"$f":"IF(C39=1,'Sjekkliste for utfylling'!H75,\" \")","v":" "}]
[{"$f":"'Sjekkliste for utfylling'!A76","v":39},{"$f":"IF('Sjekkliste for utfylling'!E76<>\"\",1,0)","v":0},0,null,{"$f":"IF($C40=1,'Sjekkliste for utfylling'!A76,\"\")","v":""},{"$f":"IF($C40=1,'Sjekkliste for utfylling'!B76,\"\")","v":""},null,{"$f":"IF(C40=1,'Sjekkliste for utfylling'!H76,\" \")","v":" "}]
[{"$f":"'Sjekkliste for utfylling'!A77","v":40},{"$f":"IF('Sjekkliste for utfylling'!E77<>\"\",1,0)","v":0},0,null,{"$f":"IF($C41=1,'Sjekkliste for utfylling'!A77,\"\")","v":""},{"$f":"IF($C41=1,'Sjekkliste for utfylling'!B77,\"\")","v":""},null,{"$f":"IF(C41=1,'Sjekkliste for utfylling'!H77,\" \")","v":" "}]
[{"$f":"'Sjekkliste for utfylling'!A78","v":41},{"$f":"IF('Sjekkliste for utfylling'!E78<>\"\",1,0)","v":0},0,null,{"$f":"IF($C42=1,'Sjekkliste for utfylling'!A78,\"\")","v":""},{"$f":"IF($C42=1,'Sjekkliste for utfylling'!B78,\"\")","v":""},null,{"$f":"IF(C42=1,'Sjekkliste for utfylling'!H78,\" \")","v":" "}]
[{"$f":"'Sjekkliste for utfylling'!A79","v":42},{"$f":"IF('Sjekkliste for utfylling'!E79<>\"\",1,0)","v":0},0,null,{"$f":"IF($C43=1,'Sjekkliste for utfylling'!A79,\"\")","v":""},{"$f":"IF($C43=1,'Sjekkliste for utfylling'!B79,\"\")","v":""},null,{"$f":"IF(C43=1,'Sjekkliste for utfylling'!H79,\" \")","v":" "}]
[{"$f":"'Sjekkliste for utfylling'!A81","v":43},{"$f":"IF('Sjekkliste for utfylling'!E81<>\"\",1,0)","v":0},0,null,{"$f":"IF($C44=1,'Sjekkliste for utfylling'!A81,\"\")","v":""},{"$f":"IF($C44=1,'Sjekkliste for utfylling'!B81,\"\")","v":""},null,{"$f":"IF(C44=1,'Sjekkliste for utfylling'!H81,\" \")","v":" "}]
[{"$f":"'Sjekkliste for utfylling'!A84","v":44},{"$f":"IF('Sjekkliste for utfylling'!E84<>\"\",1,0)","v":0},0,null,{"$f":"IF($C45=1,'Sjekkliste for utfylling'!A84,\"\")","v":""},{"$f":"IF($C45=1,'Sjekkliste for utfylling'!B84,\"\")","v":""},null,{"$f":"IF(C45=1,'Sjekkliste for utfylling'!H84,\" \")","v":" "}]
[{"$f":"'Sjekkliste for utfylling'!A85","v":45},{"$f":"IF('Sjekkliste for utfylling'!E85<>\"\",1,0)","v":0},0,null,{"$f":"IF($C46=1,'Sjekkliste for utfylling'!A85,\"\")","v":""},{"$f":"IF($C46=1,'Sjekkliste for utfylling'!B85,\"\")","v":""},null,{"$f":"IF(C46=1,'Sjekkliste for utfylling'!H85,\" \")","v":" "}]
[{"$f":"'Sjekkliste for utfylling'!A87","v":46},{"$f":"IF('Sjekkliste for utfylling'!E87<>\"\",1,0)","v":0},0,null,{"$f":"IF($C47=1,'Sjekkliste for utfylling'!A87,\"\")","v":""},{"$f":"IF($C47=1,'Sjekkliste for utfylling'!B87,\"\")","v":""},null,{"$f":"IF(C47=1,'Sjekkliste for utfylling'!H87,\" \")","v":" "}]
[{"$f":"'Sjekkliste for utfylling'!A88","v":47},{"$f":"IF('Sjekkliste for utfylling'!E88<>\"\",1,0)","v":0},0,null,{"$f":"IF($C48=1,'Sjekkliste for utfylling'!A88,\"\")","v":""},{"$f":"IF($C48=1,'Sjekkliste for utfylling'!B88,\"\")","v":""},null,{"$f":"IF(C48=1,'Sjekkliste for utfylling'!H88,\" \")","v":" "}]
[{"$f":"'Sjekkliste for utfylling'!A92","v":48},{"$f":"IF('Sjekkliste for utfylling'!E92<>\"\",1,0)","v":0},{"$f":"SUM(B49:B49)","v":0},null,{"$f":"IF($C49=1,'Sjekkliste for utfylling'!A92,\"\")","v":""},{"$f":"IF($C49=1,'Sjekkliste for utfylling'!B92,\"\")","v":""},null,{"$f":"IF(C49=1,'Sjekkliste for utfylling'!H92,\" \")","v":" "}]
[{"$f":"'Sjekkliste for utfylling'!A93","v":49},{"$f":"IF('Sjekkliste for utfylling'!E93<>\"\",1,0)","v":0},0,null,{"$f":"IF($C50=1,'Sjekkliste for utfylling'!A93,\"\")","v":""},{"$f":"IF($C50=1,'Sjekkliste for utfylling'!B93,\"\")","v":""},null,{"$f":"IF(C50=1,'Sjekkliste for utfylling'!H93,\" \")","v":" "}]
[{"$f":"'Sjekkliste for utfylling'!A99","v":50},{"$f":"IF('Sjekkliste for utfylling'!E99<>\"\",1,0)","v":0},{"$f":"SUM(B51:B51)","v":0},null,{"$f":"IF($C51=1,'Sjekkliste for utfylling'!A99,\"\")","v":""},{"$f":"IF($C51=1,'Sjekkliste for utfylling'!B99,\"\")","v":""},null,{"$f":"IF(C51=1,'Sjekkliste for utfylling'!H99,\" \")","v":" "}]
[{"$f":"'Sjekkliste for utfylling'!A101","v":51},{"$f":"IF('Sjekkliste for utfylling'!E101<>\"\",1,0)","v":0},0,null,{"$f":"IF($C52=1,'Sjekkliste for utfylling'!A101,\"\")","v":""},{"$f":"IF($C52=1,'Sjekkliste for utfylling'!B101,\"\")","v":""},null,{"$f":"IF(C52=1,'Sjekkliste for utfylling'!H101,\" \")","v":" "}]
[{"$f":"'Sjekkliste for utfylling'!A103","v":52},{"$f":"IF('Sjekkliste for utfylling'!E103<>\"\",1,0)","v":0},0,null,{"$f":"IF($C53=1,'Sjekkliste for utfylling'!A103,\"\")","v":""},{"$f":"IF($C53=1,'Sjekkliste for utfylling'!B103,\"\")","v":""},null,{"$f":"IF(C53=1,'Sjekkliste for utfylling'!H103,\" \")","v":" "}]
[{"$f":"'Sjekkliste for utfylling'!A104","v":53},{"$f":"IF('Sjekkliste for utfylling'!E104<>\"\",1,0)","v":0},0,null,{"$f":"IF($C54=1,'Sjekkliste for utfylling'!A104,\"\")","v":""},{"$f":"IF($C54=1,'Sjekkliste for utfylling'!B104,\"\")","v":""},null,{"$f":"IF(C54=1,'Sjekkliste for utfylling'!H104,\" \")","v":" "}]
[{"$f":"'Sjekkliste for utfylling'!A105","v":54},{"$f":"IF('Sjekkliste for utfylling'!E105<>\"\",1,0)","v":0},0,null,{"$f":"IF($C55=1,'Sjekkliste for utfylling'!A105,\"\")","v":""},{"$f":"IF($C55=1,'Sjekkliste for utfylling'!B105,\"\")","v":""},null,{"$f":"IF(C55=1,'Sjekkliste for utfylling'!H105,\" \")","v":" "}]
[{"$f":"'Sjekkliste for utfylling'!A107","v":55},{"$f":"IF('Sjekkliste for utfylling'!E107<>\"\",1,0)","v":0},0,null,{"$f":"IF($C56=1,'Sjekkliste for utfylling'!A107,\"\")","v":""},{"$f":"IF($C56=1,'Sjekkliste for utfylling'!B107,\"\")","v":""},null,{"$f":"IF(C56=1,'Sjekkliste for utfylling'!H107,\" \")","v":" "}]
[{"$f":"'Sjekkliste for utfylling'!A111","v":56},{"$f":"IF('Sjekkliste for utfylling'!E111<>\"\",1,0)","v":0},0,null,{"$f":"IF($C57=1,'Sjekkliste for utfylling'!A111,\"\")","v":""},{"$f":"IF($C57=1,'Sjekkliste for utfylling'!B111,\"\")","v":""},null,{"$f":"IF(C57=1,'Sjekkliste for utfylling'!H111,\" \")","v":" "}]
[{"$f":"'Sjekkliste for utfylling'!A119","v":57},{"$f":"IF('Sjekkliste for utfylling'!E119<>\"\",1,0)","v":0},0,null,{"$f":"IF($C58=1,'Sjekkliste for utfylling'!A119,\"\")","v":""},{"$f":"IF($C58=1,'Sjekkliste for utfylling'!B119,\"\")","v":""},null,{"$f":"IF(C58=1,'Sjekkliste for utfylling'!H119,\" \")","v":" "}]
[{"$f":"'Sjekkliste for utfylling'!A120","v":58},{"$f":"IF('Sjekkliste for utfylling'!E120<>\"\",1,0)","v":0},0,null,{"$f":"IF($C59=1,'Sjekkliste for utfylling'!A120,\"\")","v":""},{"$f":"IF($C59=1,'Sjekkliste for utfylling'!B120,\"\")","v":""},null,{"$f":"IF(C59=1,'Sjekkliste for utfylling'!H120,\" \")","v":" "}]
[{"$f":"'Sjekkliste for utfylling'!A121","v":59},{"$f":"IF('Sjekkliste for utfylling'!E121<>\"\",1,0)","v":0},0,null,{"$f":"IF($C60=1,'Sjekkliste for utfylling'!A121,\"\")","v":""},{"$f":"IF($C60=1,'Sjekkliste for utfylling'!B121,\"\")","v":""},null,{"$f":"IF(C60=1,'Sjekkliste for utfylling'!H121,\" \")","v":" "}]
[{"$f":"'Sjekkliste for utfylling'!A122","v":60},{"$f":"IF('Sjekkliste for utfylling'!E122<>\"\",1,0)","v":0},0,null,{"$f":"IF($C61=1,'Sjekkliste for utfylling'!A122,\"\")","v":""},{"$f":"IF($C61=1,'Sjekkliste for utfylling'!B122,\"\")","v":""},null,{"$f":"IF(C61=1,'Sjekkliste for utfylling'!H122,\" \")","v":" "}]
[{"$f":"'Sjekkliste for utfylling'!A123","v":61},{"$f":"IF('Sjekkliste for utfylling'!E123<>\"\",1,0)","v":0},0,null,{"$f":"IF($C62=1,'Sjekkliste for utfylling'!A123,\"\")","v":""},{"$f":"IF($C62=1,'Sjekkliste for utfylling'!B123,\"\")","v":""},null,{"$f":"IF(C62=1,'Sjekkliste for utfylling'!H123,\" \")","v":" "}]
[{"$f":"'Sjekkliste for utfylling'!A124","v":62},{"$f":"IF('Sjekkliste for utfylling'!E124<>\"\",1,0)","v":0},0,null,{"$f":"IF($C63=1,'Sjekkliste for utfylling'!A124,\"\")","v":""},{"$f":"IF($C63=1,'Sjekkliste for utfylling'!B124,\"\")","v":""},null,{"$f":"IF(C63=1,'Sjekkliste for utfylling'!H124,\" \")","v":" "}]
[{"$f":"'Sjekkliste for utfylling'!A129","v":63},{"$f":"IF('Sjekkliste for utfylling'!E129<>\"\",1,0)","v":0},0,null,{"$f":"IF($C64=1,'Sjekkliste for utfylling'!A129,\"\")","v":""},{"$f":"IF($C64=1,'Sjekkliste for utfylling'!B129,\"\")","v":""},null,{"$f":"IF(C64=1,'Sjekkliste for utfylling'!H129,\" \")","v":" "}]
[{"$f":"'Sjekkliste for utfylling'!A131","v":64},{"$f":"IF('Sjekkliste for utfylling'!E131<>\"\",1,0)","v":0},0,null,{"$f":"IF($C65=1,'Sjekkliste for utfylling'!A131,\"\")","v":""},{"$f":"IF($C65=1,'Sjekkliste for utfylling'!B131,\"\")","v":""},null,{"$f":"IF(C65=1,'Sjekkliste for utfylling'!H131,\" \")","v":" "}]
[{"$f":"'Sjekkliste for utfylling'!A132","v":65},{"$f":"IF('Sjekkliste for utfylling'!E132<>\"\",1,0)","v":0},0,null,{"$f":"IF($C66=1,'Sjekkliste for utfylling'!A132,\"\")","v":""},{"$f":"IF($C66=1,'Sjekkliste for utfylling'!B132,\"\")","v":""},null,{"$f":"IF(C66=1,'Sjekkliste for utfylling'!H132,\" \")","v":" "}]
[{"$f":"'Sjekkliste for utfylling'!A133","v":66},{"$f":"IF('Sjekkliste for utfylling'!E133<>\"\",1,0)","v":0},0,null,{"$f":"IF($C67=1,'Sjekkliste for utfylling'!A133,\"\")","v":""},{"$f":"IF($C67=1,'Sjekkliste for utfylling'!B133,\"\")","v":""},null,{"$f":"IF(C67=1,'Sjekkliste for utfylling'!H133,\" \")","v":" "}]
[{"$f":"'Sjekkliste for utfylling'!A138","v":67},{"$f":"IF('Sjekkliste for utfylling'!E138<>\"\",1,0)","v":0},0,null,{"$f":"IF($C68=1,'Sjekkliste for utfylling'!A138,\"\")","v":""},{"$f":"IF($C68=1,'Sjekkliste for utfylling'!B138,\"\")","v":""},null,{"$f":"IF(C68=1,'Sjekkliste for utfylling'!H138,\" \")","v":" "}]
[{"$f":"'Sjekkliste for utfylling'!A139","v":68},{"$f":"IF('Sjekkliste for utfylling'!E139<>\"\",1,0)","v":0},0,null,{"$f":"IF($C69=1,'Sjekkliste for utfylling'!A139,\"\")","v":""},{"$f":"IF($C69=1,'Sjekkliste for utfylling'!B139,\"\")","v":""},null,{"$f":"IF(C69=1,'Sjekkliste for utfylling'!H139,\" \")","v":" "}]
[{"$f":"'Sjekkliste for utfylling'!A140","v":69},{"$f":"IF('Sjekkliste for utfylling'!E140<>\"\",1,0)","v":0},0,null,{"$f":"IF($C70=1,'Sjekkliste for utfylling'!A140,\"\")","v":""},{"$f":"IF($C70=1,'Sjekkliste for utfylling'!B140,\"\")","v":""},null,{"$f":"IF(C70=1,'Sjekkliste for utfylling'!H140,\" \")","v":" "}]
[{"$f":"'Sjekkliste for utfylling'!A142","v":70},{"$f":"IF('Sjekkliste for utfylling'!E142<>\"\",1,0)","v":0},{"$f":"SUM(B71:B71)","v":0},null,{"$f":"IF($C71=1,'Sjekkliste for utfylling'!A142,\"\")","v":""},{"$f":"IF($C71=1,'Sjekkliste for utfylling'!B142,\"\")","v":""},null,{"$f":"IF(C71=1,'Sjekkliste for utfylling'!H142,\" \")","v":" "}]
[{"$f":"'Sjekkliste for utfylling'!A144","v":71},{"$f":"IF('Sjekkliste for utfylling'!E144<>\"\",1,0)","v":0},{"$f":"SUM(B72:B72)","v":0},null,{"$f":"IF($C72=1,'Sjekkliste for utfylling'!A144,\"\")","v":""},{"$f":"IF($C72=1,'Sjekkliste for utfylling'!B144,\"\")","v":""},null,{"$f":"IF(C72=1,'Sjekkliste for utfylling'!H144,\" \")","v":" "}]
[{"$f":"'Sjekkliste for utfylling'!A146","v":72},{"$f":"IF('Sjekkliste for utfylling'!E146<>\"\",1,0)","v":0},{"$f":"SUM(B73:B73)","v":0},null,{"$f":"IF($C73=1,'Sjekkliste for utfylling'!A146,\"\")","v":""},{"$f":"IF($C73=1,'Sjekkliste for utfylling'!B146,\"\")","v":""},null,{"$f":"IF(C73=1,'Sjekkliste for utfylling'!H146,\" \")","v":" "}]
[{"$f":"'Sjekkliste for utfylling'!A149","v":73},{"$f":"IF('Sjekkliste for utfylling'!E149<>\"\",1,0)","v":0},{"$f":"SUM(B74:B74)","v":0},null,{"$f":"IF($C74=1,'Sjekkliste for utfylling'!A149,\"\")","v":""},{"$f":"IF($C74=1,'Sjekkliste for utfylling'!B149,\"\")","v":""},null,{"$f":"IF(C74=1,'Sjekkliste for utfylling'!H149,\" \")","v":" "}]
[{"$f":"'Sjekkliste for utfylling'!A150","v":74},{"$f":"IF('Sjekkliste for utfylling'!E150<>\"\",1,0)","v":0},0,null,{"$f":"IF($C75=1,'Sjekkliste for utfylling'!A150,\"\")","v":""},{"$f":"IF($C75=1,'Sjekkliste for utfylling'!B150,\"\")","v":""},null,{"$f":"IF(C75=1,'Sjekkliste for utfylling'!H150,\" \")","v":" "}]
[{"$f":"'Sjekkliste for utfylling'!A151","v":75},{"$f":"IF('Sjekkliste for utfylling'!E151<>\"\",1,0)","v":0},0,null,{"$f":"IF($C76=1,'Sjekkliste for utfylling'!A151,\"\")","v":""},{"$f":"IF($C76=1,'Sjekkliste for utfylling'!B151,\"\")","v":""},null,{"$f":"IF(C76=1,'Sjekkliste for utfylling'!H151,\" \")","v":" "}]
[{"$f":"'Sjekkliste for utfylling'!A152","v":76},{"$f":"IF('Sjekkliste for utfylling'!E152<>\"\",1,0)","v":0},0,null,{"$f":"IF($C77=1,'Sjekkliste for utfylling'!A152,\"\")","v":""},{"$f":"IF($C77=1,'Sjekkliste for utfylling'!B152,\"\")","v":""},null,{"$f":"IF(C77=1,'Sjekkliste for utfylling'!H152,\" \")","v":" "}]
[{"$f":"'Sjekkliste for utfylling'!A154","v":77},{"$f":"IF('Sjekkliste for utfylling'!E154<>\"\",1,0)","v":0},0,null,{"$f":"IF($C78=1,'Sjekkliste for utfylling'!A154,\"\")","v":""},{"$f":"IF($C78=1,'Sjekkliste for utfylling'!B154,\"\")","v":""},null,{"$f":"IF(C78=1,'Sjekkliste for utfylling'!H154,\" \")","v":" "}]
[{"$f":"'Sjekkliste for utfylling'!A158","v":78},{"$f":"IF('Sjekkliste for utfylling'!E158<>\"\",1,0)","v":0},0,null,{"$f":"IF($C79=1,'Sjekkliste for utfylling'!A158,\"\")","v":""},{"$f":"IF($C79=1,'Sjekkliste for utfylling'!B158,\"\")","v":""},null,{"$f":"IF(C79=1,'Sjekkliste for utfylling'!H158,\" \")","v":" "}]
[{"$f":"'Sjekkliste for utfylling'!A160","v":79},{"$f":"IF('Sjekkliste for utfylling'!E160<>\"\",1,0)","v":0},{"$f":"SUM(B80:B80)","v":0},null,{"$f":"IF($C80=1,'Sjekkliste for utfylling'!A160,\"\")","v":""},{"$f":"IF($C80=1,'Sjekkliste for utfylling'!B160,\"\")","v":""},null,{"$f":"IF(C80=1,'Sjekkliste for utfylling'!H160,\" \")","v":" "}]
[{"$f":"'Sjekkliste for utfylling'!A161","v":80},{"$f":"IF('Sjekkliste for utfylling'!E161<>\"\",1,0)","v":0},0,null,{"$f":"IF($C81=1,'Sjekkliste for utfylling'!A161,\"\")","v":""},{"$f":"IF($C81=1,'Sjekkliste for utfylling'!B161,\"\")","v":""},null,{"$f":"IF(C81=1,'Sjekkliste for utfylling'!H161,\" \")","v":" "}]
[{"$f":"'Sjekkliste for utfylling'!A162","v":81},{"$f":"IF('Sjekkliste for utfylling'!E162<>\"\",1,0)","v":0},0,null,{"$f":"IF($C82=1,'Sjekkliste for utfylling'!A162,\"\")","v":""},{"$f":"IF($C82=1,'Sjekkliste for utfylling'!B162,\"\")","v":""},null,{"$f":"IF(C82=1,'Sjekkliste for utfylling'!H162,\" \")","v":" "}]
[{"$f":"'Sjekkliste for utfylling'!A169","v":82},{"$f":"IF('Sjekkliste for utfylling'!E169<>\"\",1,0)","v":0},{"$f":"SUM(B83:B83)","v":0},null,{"$f":"IF($C83=1,'Sjekkliste for utfylling'!A169,\"\")","v":""},{"$f":"IF($C83=1,'Sjekkliste for utfylling'!B169,\"\")","v":""},null,{"$f":"IF(C83=1,'Sjekkliste for utfylling'!H169,\" \")","v":" "}]
[{"$f":"'Sjekkliste for utfylling'!A170","v":83},{"$f":"IF('Sjekkliste for utfylling'!E170<>\"\",1,0)","v":0},{"$f":"SUM(B84:B84)","v":0},null,{"$f":"IF($C84=1,'Sjekkliste for utfylling'!A170,\"\")","v":""},{"$f":"IF($C84=1,'Sjekkliste for utfylling'!B170,\"\")","v":""},null,{"$f":"IF(C84=1,'Sjekkliste for utfylling'!H170,\" \")","v":" "}]
[{"$f":"'Sjekkliste for utfylling'!A171","v":84},{"$f":"IF('Sjekkliste for utfylling'!E171<>\"\",1,0)","v":0},{"$f":"SUM(B85:B85)","v":0},null,{"$f":"IF($C85=1,'Sjekkliste for utfylling'!A171,\"\")","v":""},{"$f":"IF($C85=1,'Sjekkliste for utfylling'!B171,\"\")","v":""},null,{"$f":"IF(C85=1,'Sjekkliste for utfylling'!H171,\" \")","v":" "}]
[{"$f":"'Sjekkliste for utfylling'!A173","v":85},{"$f":"IF('Sjekkliste for utfylling'!E173<>\"\",1,0)","v":0},{"$f":"SUM(B86:B86)","v":0},null,{"$f":"IF($C86=1,'Sjekkliste for utfylling'!A173,\"\")","v":""},{"$f":"IF($C86=1,'Sjekkliste for utfylling'!B173,\"\")","v":""},null,{"$f":"IF(C86=1,'Sjekkliste for utfylling'!H173,\" \")","v":" "}]
[{"$f":"'Sjekkliste for utfylling'!A174","v":86},{"$f":"IF('Sjekkliste for utfylling'!E174<>\"\",1,0)","v":0},0,null,{"$f":"IF($C87=1,'Sjekkliste for utfylling'!A174,\"\")","v":""},{"$f":"IF($C87=1,'Sjekkliste for utfylling'!B174,\"\")","v":""},null,{"$f":"IF(C87=1,'Sjekkliste for utfylling'!H174,\" \")","v":" "}]
[{"$f":"'Sjekkliste for utfylling'!A175","v":87},{"$f":"IF('Sjekkliste for utfylling'!E175<>\"\",1,0)","v":0},0,null,{"$f":"IF($C88=1,'Sjekkliste for utfylling'!A175,\"\")","v":""},{"$f":"IF($C88=1,'Sjekkliste for utfylling'!B175,\"\")","v":""},null,{"$f":"IF(C88=1,'Sjekkliste for utfylling'!H175,\" \")","v":" "}]
[{"$f":"'Sjekkliste for utfylling'!A177","v":88},{"$f":"IF('Sjekkliste for utfylling'!E177<>\"\",1,0)","v":0},{"$f":"SUM(B89:B89)","v":0},null,{"$f":"IF($C89=1,'Sjekkliste for utfylling'!A177,\"\")","v":""},{"$f":"IF($C89=1,'Sjekkliste for utfylling'!B177,\"\")","v":""},null,{"$f":"IF(C89=1,'Sjekkliste for utfylling'!H177,\" \")","v":" "}]
[{"$f":"'Sjekkliste for utfylling'!A178","v":89},{"$f":"IF('Sjekkliste for utfylling'!E178<>\"\",1,0)","v":0},0,null,{"$f":"IF($C90=1,'Sjekkliste for utfylling'!A178,\"\")","v":""},{"$f":"IF($C90=1,'Sjekkliste for utfylling'!B178,\"\")","v":""},null,{"$f":"IF(C90=1,'Sjekkliste for utfylling'!H178,\" \")","v":" "}]
[{"$f":"'Sjekkliste for utfylling'!A179","v":90},{"$f":"IF('Sjekkliste for utfylling'!E179<>\"\",1,0)","v":0},0,null,{"$f":"IF($C91=1,'Sjekkliste for utfylling'!A179,\"\")","v":""},{"$f":"IF($C91=1,'Sjekkliste for utfylling'!B179,\"\")","v":""},null,{"$f":"IF(C91=1,'Sjekkliste for utfylling'!H179,\" \")","v":" "}]
[{"$f":"'Sjekkliste for utfylling'!A180","v":91},{"$f":"IF('Sjekkliste for utfylling'!E180<>\"\",1,0)","v":0},0,null,{"$f":"IF($C92=1,'Sjekkliste for utfylling'!A180,\"\")","v":""},{"$f":"IF($C92=1,'Sjekkliste for utfylling'!B180,\"\")","v":""},null,{"$f":"IF(C92=1,'Sjekkliste for utfylling'!H180,\" \")","v":" "}]
[{"$f":"'Sjekkliste for utfylling'!A181","v":92},{"$f":"IF('Sjekkliste for utfylling'!E181<>\"\",1,0)","v":0},0,null,{"$f":"IF($C93=1,'Sjekkliste for utfylling'!A181,\"\")","v":""},{"$f":"IF($C93=1,'Sjekkliste for utfylling'!B181,\"\")","v":""},null,{"$f":"IF(C93=1,'Sjekkliste for utfylling'!H181,\" \")","v":" "}]
[{"$f":"'Sjekkliste for utfylling'!A193","v":93},{"$f":"IF('Sjekkliste for utfylling'!E193<>\"\",1,0)","v":0},0,null,{"$f":"IF($C94=1,'Sjekkliste for utfylling'!A193,\"\")","v":""},{"$f":"IF($C94=1,'Sjekkliste for utfylling'!B193,\"\")","v":""},null,{"$f":"IF(C94=1,'Sjekkliste for utfylling'!H193,\" \")","v":" "}]
[{"$f":"'Sjekkliste for utfylling'!A195","v":94},{"$f":"IF('Sjekkliste for utfylling'!E195<>\"\",1,0)","v":0},0,null,{"$f":"IF($C95=1,'Sjekkliste for utfylling'!A195,\"\")","v":""},{"$f":"IF($C95=1,'Sjekkliste for utfylling'!B195,\"\")","v":""},null,{"$f":"IF(C95=1,'Sjekkliste for utfylling'!H195,\" \")","v":" "}]
[{"$f":"'Sjekkliste for utfylling'!A196","v":95},{"$f":"IF('Sjekkliste for utfylling'!E196<>\"\",1,0)","v":0},0,null,{"$f":"IF($C96=1,'Sjekkliste for utfylling'!A196,\"\")","v":""},{"$f":"IF($C96=1,'Sjekkliste for utfylling'!B196,\"\")","v":""},null,{"$f":"IF(C96=1,'Sjekkliste for utfylling'!H196,\" \")","v":" "}]
[{"$f":"'Sjekkliste for utfylling'!A197","v":96},{"$f":"IF('Sjekkliste for utfylling'!E197<>\"\",1,0)","v":0},0,null,{"$f":"IF($C97=1,'Sjekkliste for utfylling'!A197,\"\")","v":""},{"$f":"IF($C97=1,'Sjekkliste for utfylling'!B197,\"\")","v":""},null,{"$f":"IF(C97=1,'Sjekkliste for utfylling'!H197,\" \")","v":" "}]
[{"$f":"'Sjekkliste for utfylling'!A198","v":97},{"$f":"IF('Sjekkliste for utfylling'!E198<>\"\",1,0)","v":0},0,null,{"$f":"IF($C98=1,'Sjekkliste for utfylling'!A198,\"\")","v":""},{"$f":"IF($C98=1,'Sjekkliste for utfylling'!B198,\"\")","v":""},null,{"$f":"IF(C98=1,'Sjekkliste for utfylling'!H198,\" \")","v":" "}]
[{"$f":"'Sjekkliste for utfylling'!A199","v":98},{"$f":"IF('Sjekkliste for utfylling'!E199<>\"\",1,0)","v":0},0,null,{"$f":"IF($C99=1,'Sjekkliste for utfylling'!A199,\"\")","v":""},{"$f":"IF($C99=1,'Sjekkliste for utfylling'!B199,\"\")","v":""},null,{"$f":"IF(C99=1,'Sjekkliste for utfylling'!H199,\" \")","v":" "}]
[{"$f":"'Sjekkliste for utfylling'!A201","v":99},{"$f":"IF('Sjekkliste for utfylling'!E201<>\"\",1,0)","v":0},0,null,{"$f":"IF($C100=1,'Sjekkliste for utfylling'!A201,\"\")","v":""},{"$f":"IF($C100=1,'Sjekkliste for utfylling'!B201,\"\")","v":""},null,{"$f":"IF(C100=1,'Sjekkliste for utfylling'!H201,\" \")","v":" "}]
[{"$f":"'Sjekkliste for utfylling'!A202","v":100},{"$f":"IF('Sjekkliste for utfylling'!E202<>\"\",1,0)","v":0},0,null,{"$f":"IF($C101=1,'Sjekkliste for utfylling'!A202,\"\")","v":""},{"$f":"IF($C101=1,'Sjekkliste for utfylling'!B202,\"\")","v":""},null,{"$f":"IF(C101=1,'Sjekkliste for utfylling'!H202,\" \")","v":" "}]
[{"$f":"'Sjekkliste for utfylling'!A205","v":101},{"$f":"IF('Sjekkliste for utfylling'!E205<>\"\",1,0)","v":0},0,null,{"$f":"IF($C102=1,'Sjekkliste for utfylling'!A205,\"\")","v":""},{"$f":"IF($C102=1,'Sjekkliste for utfylling'!B205,\"\")","v":""},null,{"$f":"IF(C102=1,'Sjekkliste for utfylling'!H205,\" \")","v":" "}]
[{"$f":"'Sjekkliste for utfylling'!A206","v":102},{"$f":"IF('Sjekkliste for utfylling'!E206<>\"\",1,0)","v":0},0,null,{"$f":"IF($C103=1,'Sjekkliste for utfylling'!A206,\"\")","v":""},{"$f":"IF($C103=1,'Sjekkliste for utfylling'!B206,\"\")","v":""},null,{"$f":"IF(C103=1,'Sjekkliste for utfylling'!H206,\" \")","v":" "}]
[{"$f":"'Sjekkliste for utfylling'!A207","v":103},{"$f":"IF('Sjekkliste for utfylling'!E207<>\"\",1,0)","v":0},0,null,{"$f":"IF($C104=1,'Sjekkliste for utfylling'!A207,\"\")","v":""},{"$f":"IF($C104=1,'Sjekkliste for utfylling'!B207,\"\")","v":""},null,{"$f":"IF(C104=1,'Sjekkliste for utfylling'!H207,\" \")","v":" "}]
[{"$f":"'Sjekkliste for utfylling'!A209","v":104},{"$f":"IF('Sjekkliste for utfylling'!E209<>\"\",1,0)","v":0},0,null,{"$f":"IF($C105=1,'Sjekkliste for utfylling'!A209,\"\")","v":""},{"$f":"IF($C105=1,'Sjekkliste for utfylling'!B209,\"\")","v":""},null,{"$f":"IF(C105=1,'Sjekkliste for utfylling'!H209,\" \")","v":" "}]
[{"$f":"'Sjekkliste for utfylling'!A211","v":105},{"$f":"IF('Sjekkliste for utfylling'!E211<>\"\",1,0)","v":0},0,null,{"$f":"IF($C106=1,'Sjekkliste for utfylling'!A211,\"\")","v":""},{"$f":"IF($C106=1,'Sjekkliste for utfylling'!B211,\"\")","v":""},null,{"$f":"IF(C106=1,'Sjekkliste for utfylling'!H211,\" \")","v":" "}]
[{"$f":"'Sjekkliste for utfylling'!A212","v":106},{"$f":"IF('Sjekkliste for utfylling'!E212<>\"\",1,0)","v":0},0,null,{"$f":"IF($C107=1,'Sjekkliste for utfylling'!A212,\"\")","v":""},{"$f":"IF($C107=1,'Sjekkliste for utfylling'!B212,\"\")","v":""},null,{"$f":"IF(C107=1,'Sjekkliste for utfylling'!H212,\" \")","v":" "}]
[{"$f":"'Sjekkliste for utfylling'!A213","v":107},{"$f":"IF('Sjekkliste for utfylling'!E213<>\"\",1,0)","v":0},0,null,{"$f":"IF($C108=1,'Sjekkliste for utfylling'!A213,\"\")","v":""},{"$f":"IF($C108=1,'Sjekkliste for utfylling'!B213,\"\")","v":""},null,{"$f":"IF(C108=1,'Sjekkliste for utfylling'!H213,\" \")","v":" "}]
[{"$f":"'Sjekkliste for utfylling'!A214","v":108},{"$f":"IF('Sjekkliste for utfylling'!E214<>\"\",1,0)","v":0},0,null,{"$f":"IF($C109=1,'Sjekkliste for utfylling'!A214,\"\")","v":""},{"$f":"IF($C109=1,'Sjekkliste for utfylling'!B214,\"\")","v":""},null,{"$f":"IF(C109=1,'Sjekkliste for utfylling'!H214,\" \")","v":" "}]
[{"$f":"'Sjekkliste for utfylling'!A215","v":109},{"$f":"IF('Sjekkliste for utfylling'!E215<>\"\",1,0)","v":0},0,null,{"$f":"IF($C110=1,'Sjekkliste for utfylling'!A215,\"\")","v":""},{"$f":"IF($C110=1,'Sjekkliste for utfylling'!B215,\"\")","v":""},null,{"$f":"IF(C110=1,'Sjekkliste for utfylling'!H215,\" \")","v":" "}]
[{"$f":"'Sjekkliste for utfylling'!A216","v":110},{"$f":"IF('Sjekkliste for utfylling'!E216<>\"\",1,0)","v":0},0,null,{"$f":"IF($C111=1,'Sjekkliste for utfylling'!A216,\"\")","v":""},{"$f":"IF($C111=1,'Sjekkliste for utfylling'!B216,\"\")","v":""},null,{"$f":"IF(C111=1,'Sjekkliste for utfylling'!H216,\" \")","v":" "}]
[{"$f":"'Sjekkliste for utfylling'!A217","v":111},{"$f":"IF('Sjekkliste for utfylling'!E217<>\"\",1,0)","v":0},0,null,{"$f":"IF($C112=1,'Sjekkliste for utfylling'!A217,\"\")","v":""},{"$f":"IF($C112=1,'Sjekkliste for utfylling'!B217,\"\")","v":""},null,{"$f":"IF(C112=1,'Sjekkliste for utfylling'!H217,\" \")","v":" "}]
[{"$f":"'Sjekkliste for utfylling'!A218","v":112},{"$f":"IF('Sjekkliste for utfylling'!E218<>\"\",1,0)","v":0},0,null,{"$f":"IF($C113=1,'Sjekkliste for utfylling'!A218,\"\")","v":""},{"$f":"IF($C113=1,'Sjekkliste for utfylling'!B218,\"\")","v":""},null,{"$f":"IF(C113=1,'Sjekkliste for utfylling'!H218,\" \")","v":" "}]
[{"$f":"'Sjekkliste for utfylling'!A219","v":113},{"$f":"IF('Sjekkliste for utfylling'!E219<>\"\",1,0)","v":0},0,null,{"$f":"IF($C114=1,'Sjekkliste for utfylling'!A219,\"\")","v":""},{"$f":"IF($C114=1,'Sjekkliste for utfylling'!B219,\"\")","v":""},null,{"$f":"IF(C114=1,'Sjekkliste for utfylling'!H219,\" \")","v":" "}]
[{"$f":"'Sjekkliste for utfylling'!A220","v":114},{"$f":"IF('Sjekkliste for utfylling'!E220<>\"\",1,0)","v":0},0,null,{"$f":"IF($C115=1,'Sjekkliste for utfylling'!A220,\"\")","v":""},{"$f":"IF($C115=1,'Sjekkliste for utfylling'!B220,\"\")","v":""},null,{"$f":"IF(C115=1,'Sjekkliste for utfylling'!H220,\" \")","v":" "}]
[{"$f":"'Sjekkliste for utfylling'!A224","v":115},{"$f":"IF('Sjekkliste for utfylling'!E224<>\"\",1,0)","v":0},0,null,{"$f":"IF($C116=1,'Sjekkliste for utfylling'!A224,\"\")","v":""},{"$f":"IF($C116=1,'Sjekkliste for utfylling'!B224,\"\")","v":""},null,{"$f":"IF(C116=1,'Sjekkliste for utfylling'!H224,\" \")","v":" "}]
[{"$f":"'Sjekkliste for utfylling'!A227","v":116},{"$f":"IF('Sjekkliste for utfylling'!E227<>\"\",1,0)","v":0},0,null,{"$f":"IF($C117=1,'Sjekkliste for utfylling'!A227,\"\")","v":""},{"$f":"IF($C117=1,'Sjekkliste for utfylling'!B227,\"\")","v":""},null,{"$f":"IF(C117=1,'Sjekkliste for utfylling'!H227,\" \")","v":" "}]
[{"$f":"'Sjekkliste for utfylling'!A229","v":117},{"$f":"IF('Sjekkliste for utfylling'!E229<>\"\",1,0)","v":0},0,null,{"$f":"IF($C118=1,'Sjekkliste for utfylling'!A229,\"\")","v":""},{"$f":"IF($C118=1,'Sjekkliste for utfylling'!B229,\"\")","v":""},null,{"$f":"IF(C118=1,'Sjekkliste for utfylling'!H229,\" \")","v":" "}]
[{"$f":"'Sjekkliste for utfylling'!A231","v":118},{"$f":"IF('Sjekkliste for utfylling'!E231<>\"\",1,0)","v":0},0,null,{"$f":"IF($C119=1,'Sjekkliste for utfylling'!A231,\"\")","v":""},{"$f":"IF($C119=1,'Sjekkliste for utfylling'!B231,\"\")","v":""},null,{"$f":"IF(C119=1,'Sjekkliste for utfylling'!H231,\" \")","v":" "}]
[{"$f":"'Sjekkliste for utfylling'!A235","v":119},{"$f":"IF('Sjekkliste for utfylling'!E235<>\"\",1,0)","v":0},0,null,{"$f":"IF($C120=1,'Sjekkliste for utfylling'!A235,\"\")","v":""},{"$f":"IF($C120=1,'Sjekkliste for utfylling'!B235,\"\")","v":""},null,{"$f":"IF(C120=1,'Sjekkliste for utfylling'!H235,\" \")","v":" "}]
[{"$f":"'Sjekkliste for utfylling'!A236","v":120},{"$f":"IF('Sjekkliste for utfylling'!E236<>\"\",1,0)","v":0},0,null,{"$f":"IF($C121=1,'Sjekkliste for utfylling'!A236,\"\")","v":""},{"$f":"IF($C121=1,'Sjekkliste for utfylling'!B236,\"\")","v":""},null,{"$f":"IF(C121=1,'Sjekkliste for utfylling'!H236,\" \")","v":" "}]
[{"$f":"'Sjekkliste for utfylling'!A237","v":121},{"$f":"IF('Sjekkliste for utfylling'!E237<>\"\",1,0)","v":0},0,null,{"$f":"IF($C122=1,'Sjekkliste for utfylling'!A237,\"\")","v":""},{"$f":"IF($C122=1,'Sjekkliste for utfylling'!B237,\"\")","v":""},null,{"$f":"IF(C122=1,'Sjekkliste for utfylling'!H237,\" \")","v":" "}]
[{"$f":"'Sjekkliste for utfylling'!A238","v":122},{"$f":"IF('Sjekkliste for utfylling'!E238<>\"\",1,0)","v":0},0,null,{"$f":"IF($C123=1,'Sjekkliste for utfylling'!A238,\"\")","v":""},{"$f":"IF($C123=1,'Sjekkliste for utfylling'!B238,\"\")","v":""},null,{"$f":"IF(C123=1,'Sjekkliste for utfylling'!H238,\" \")","v":" "}]
[{"$f":"'Sjekkliste for utfylling'!A239","v":123},{"$f":"IF('Sjekkliste for utfylling'!E239<>\"\",1,0)","v":0},0,null,{"$f":"IF($C124=1,'Sjekkliste for utfylling'!A239,\"\")","v":""},{"$f":"IF($C124=1,'Sjekkliste for utfylling'!B239,\"\")","v":""},null,{"$f":"IF(C124=1,'Sjekkliste for utfylling'!H239,\" \")","v":" "}]
[{"$f":"'Sjekkliste for utfylling'!A243","v":124},{"$f":"IF('Sjekkliste for utfylling'!E243<>\"\",1,0)","v":0},0,null,{"$f":"IF($C125=1,'Sjekkliste for utfylling'!A243,\"\")","v":""},{"$f":"IF($C125=1,'Sjekkliste for utfylling'!B243,\"\")","v":""},null,{"$f":"IF(C125=1,'Sjekkliste for utfylling'!H243,\" \")","v":" "}]
[{"$f":"'Sjekkliste for utfylling'!A246","v":125},{"$f":"IF('Sjekkliste for utfylling'!E246<>\"\",1,0)","v":0},0,null,{"$f":"IF($C126=1,'Sjekkliste for utfylling'!A246,\"\")","v":""},{"$f":"IF($C126=1,'Sjekkliste for utfylling'!B246,\"\")","v":""},null,{"$f":"IF(C126=1,'Sjekkliste for utfylling'!H246,\" \")","v":" "}]
[{"$f":"'Sjekkliste for utfylling'!A247","v":126},{"$f":"IF('Sjekkliste for utfylling'!E247<>\"\",1,0)","v":0},0,null,{"$f":"IF($C127=1,'Sjekkliste for utfylling'!A247,\"\")","v":""},{"$f":"IF($C127=1,'Sjekkliste for utfylling'!B247,\"\")","v":""},null,{"$f":"IF(C127=1,'Sjekkliste for utfylling'!H247,\" \")","v":" "}]
[{"$f":"'Sjekkliste for utfylling'!A248","v":127},{"$f":"IF('Sjekkliste for utfylling'!E248<>\"\",1,0)","v":0},0,null,{"$f":"IF($C128=1,'Sjekkliste for utfylling'!A248,\"\")","v":""},{"$f":"IF($C128=1,'Sjekkliste for utfylling'!B248,\"\")","v":""},null,{"$f":"IF(C128=1,'Sjekkliste for utfylling'!H248,\" \")","v":" "}]
[{"$f":"'Sjekkliste for utfylling'!A249","v":128},{"$f":"IF('Sjekkliste for utfylling'!E249<>\"\",1,0)","v":0},0,null,{"$f":"IF($C129=1,'Sjekkliste for utfylling'!A249,\"\")","v":""},{"$f":"IF($C129=1,'Sjekkliste for utfylling'!B249,\"\")","v":""},null,{"$f":"IF(C129=1,'Sjekkliste for utfylling'!H249,\" \")","v":" "}]
[{"$f":"'Sjekkliste for utfylling'!A250","v":129},{"$f":"IF('Sjekkliste for utfylling'!E250<>\"\",1,0)","v":0},{"$f":"SUM(B130:B130)","v":0},null,{"$f":"IF($C130=1,'Sjekkliste for utfylling'!A250,\"\")","v":""},{"$f":"IF($C130=1,'Sjekkliste for utfylling'!B250,\"\")","v":""},null,{"$f":"IF(C130=1,'Sjekkliste for utfylling'!H250,\" \")","v":" "}]
[{"$f":"'Sjekkliste for utfylling'!A251","v":130},{"$f":"IF('Sjekkliste for utfylling'!E251<>\"\",1,0)","v":0},0,null,{"$f":"IF($C131=1,'Sjekkliste for utfylling'!A251,\"\")","v":""},{"$f":"IF($C131=1,'Sjekkliste for utfylling'!B251,\"\")","v":""},null,{"$f":"IF(C131=1,'Sjekkliste for utfylling'!H251,\" \")","v":" "}]
[{"$f":"'Sjekkliste for utfylling'!A254","v":131},{"$f":"IF('Sjekkliste for utfylling'!E254<>\"\",1,0)","v":0},{"$f":"SUM(B132:B132)","v":0},null,{"$f":"IF($C132=1,'Sjekkliste for utfylling'!A254,\"\")","v":""},{"$f":"IF($C132=1,'Sjekkliste for utfylling'!B254,\"\")","v":""},null,{"$f":"IF(C132=1,'Sjekkliste for utfylling'!H254,\" \")","v":" "}]

{"sheet":"Nei-svar","index":7,"n_rows":132,"n_cols":8,"rows_kept":132,"cut":false,"hidden":true,"merged":[]}
[null,null,{"$f":"COUNTIF(C2:C60,\"=1\")-D1","v":0},{"$f":"SUM(D2:D25)","v":0},"Nei-svar",{"$f":"'Sjekkliste for utfylling'!B2","v":0},{"$f":"'Sjekkliste for utfylling'!B3","v":2024},{"$f":"'Sjekkliste for utfylling'!C3","v":0}]
[{"$f":"'Sjekkliste for utfylling'!A13","v":1},{"$f":"IF('Sjekkliste for utfylling'!F13<>\"\",1,0)","v":0},{"$f":"SUM(B2:B2)","v":0},null,{"$f":"IF($C2=1,'Sjekkliste for utfylling'!A13,\"\")","v":""},{"$f":"IF($C2=1,'Sjekkliste for utfylling'!B13,\"\")","v":""},null,{"$f":"IF(C2=1,'Sjekkliste for utfylling'!H13,\" \")","v":" "}]
[{"$f":"'Sjekkliste for utfylling'!A14","v":2},{"$f":"IF('Sjekkliste for utfylling'!F14<>\"\",1,0)","v":0},0,null,{"$f":"IF($C3=1,'Sjekkliste for utfylling'!A14,\"\")","v":""},{"$f":"IF($C3=1,'Sjekkliste for utfylling'!B14,\"\")","v":""},null,{"$f":"IF(C3=1,'Sjekkliste for utfylling'!H14,\" \")","v":" "}]
[{"$f":"'Sjekkliste for utfylling'!A15","v":3},{"$f":"IF('Sjekkliste for utfylling'!F15<>\"\",1,0)","v":0},0,null,{"$f":"IF($C4=1,'Sjekkliste for utfylling'!A15,\"\")","v":""},{"$f":"IF($C4=1,'Sjekkliste for utfylling'!B15,\"\")","v":""},null,{"$f":"IF(C4=1,'Sjekkliste for utfylling'!H15,\" \")","v":" "}]
[{"$f":"'Sjekkliste for utfylling'!A18","v":4},{"$f":"IF('Sjekkliste for utfylling'!F18<>\"\",1,0)","v":0},0,null,{"$f":"IF($C5=1,'Sjekkliste for utfylling'!A18,\"\")","v":""},{"$f":"IF($C5=1,'Sjekkliste for utfylling'!B18,\"\")","v":""},null,{"$f":"IF(C5=1,'Sjekkliste for utfylling'!H18,\" \")","v":" "}]
[{"$f":"'Sjekkliste for utfylling'!A21","v":5},{"$f":"IF('Sjekkliste for utfylling'!F21<>\"\",1,0)","v":0},0,null,{"$f":"IF($C6=1,'Sjekkliste for utfylling'!A21,\"\")","v":""},{"$f":"IF($C6=1,'Sjekkliste for utfylling'!B21,\"\")","v":""},null,{"$f":"IF(C6=1,'Sjekkliste for utfylling'!H21,\" \")","v":" "}]
[{"$f":"'Sjekkliste for utfylling'!A22","v":6},{"$f":"IF('Sjekkliste for utfylling'!F22<>\"\",1,0)","v":0},0,null,{"$f":"IF($C7=1,'Sjekkliste for utfylling'!A22,\"\")","v":""},{"$f":"IF($C7=1,'Sjekkliste for utfylling'!B22,\"\")","v":""},null,{"$f":"IF(C7=1,'Sjekkliste for utfylling'!H22,\" \")","v":" "}]
[{"$f":"'Sjekkliste for utfylling'!A23","v":7},{"$f":"IF('Sjekkliste for utfylling'!F23<>\"\",1,0)","v":0},0,null,{"$f":"IF($C8=1,'Sjekkliste for utfylling'!A23,\"\")","v":""},{"$f":"IF($C8=1,'Sjekkliste for utfylling'!B23,\"\")","v":""},null,{"$f":"IF(C8=1,'Sjekkliste for utfylling'!H23,\" \")","v":" "}]
[{"$f":"'Sjekkliste for utfylling'!A24","v":8},{"$f":"IF('Sjekkliste for utfylling'!F24<>\"\",1,0)","v":0},0,null,{"$f":"IF($C9=1,'Sjekkliste for utfylling'!A24,\"\")","v":""},{"$f":"IF($C9=1,'Sjekkliste for utfylling'!B24,\"\")","v":""},null,{"$f":"IF(C9=1,'Sjekkliste for utfylling'!H24,\" \")","v":" "}]
[{"$f":"'Sjekkliste for utfylling'!A25","v":9},{"$f":"IF('Sjekkliste for utfylling'!F25<>\"\",1,0)","v":0},0,null,{"$f":"IF($C10=1,'Sjekkliste for utfylling'!A25,\"\")","v":""},{"$f":"IF($C10=1,'Sjekkliste for utfylling'!B25,\"\")","v":""},null,{"$f":"IF(C10=1,'Sjekkliste for utfylling'!H25,\" \")","v":" "}]
[{"$f":"'Sjekkliste for utfylling'!A26","v":10},{"$f":"IF('Sjekkliste for utfylling'!F26<>\"\",1,0)","v":0},0,null,{"$f":"IF($C11=1,'Sjekkliste for utfylling'!A26,\"\")","v":""},{"$f":"IF($C11=1,'Sjekkliste for utfylling'!B26,\"\")","v":""},null,{"$f":"IF(C11=1,'Sjekkliste for utfylling'!H26,\" \")","v":" "}]
[{"$f":"'Sjekkliste for utfylling'!A27","v":11},{"$f":"IF('Sjekkliste for utfylling'!F27<>\"\",1,0)","v":0},0,null,{"$f":"IF($C12=1,'Sjekkliste for utfylling'!A27,\"\")","v":""},{"$f":"IF($C12=1,'Sjekkliste for utfylling'!B27,\"\")","v":""},null,{"$f":"IF(C12=1,'Sjekkliste for utfylling'!H27,\" \")","v":" "}]
[{"$f":"'Sjekkliste for utfylling'!A29","v":12},{"$f":"IF('Sjekkliste for utfylling'!F29<>\"\",1,0)","v":0},0,null,{"$f":"IF($C13=1,'Sjekkliste for utfylling'!A29,\"\")","v":""},{"$f":"IF($C13=1,'Sjekkliste for utfylling'!B29,\"\")","v":""},null,{"$f":"IF(C13=1,'Sjekkliste for utfylling'!H29,\" \")","v":" "}]
[{"$f":"'Sjekkliste for utfylling'!A32","v":13},{"$f":"IF('Sjekkliste for utfylling'!F32<>\"\",1,0)","v":0},0,null,{"$f":"IF($C14=1,'Sjekkliste for utfylling'!A32,\"\")","v":""},{"$f":"IF($C14=1,'Sjekkliste for utfylling'!B32,\"\")","v":""},null,{"$f":"IF(C14=1,'Sjekkliste for utfylling'!H32,\" \")","v":" "}]
[{"$f":"'Sjekkliste for utfylling'!A33","v":14},{"$f":"IF('Sjekkliste for utfylling'!F33<>\"\",1,0)","v":0},0,null,{"$f":"IF($C15=1,'Sjekkliste for utfylling'!A33,\"\")","v":""},{"$f":"IF($C15=1,'Sjekkliste for utfylling'!B33,\"\")","v":""},null,{"$f":"IF(C15=1,'Sjekkliste for utfylling'!H33,\" \")","v":" "}]
[{"$f":"'Sjekkliste for utfylling'!A34","v":15},{"$f":"IF('Sjekkliste for utfylling'!F34<>\"\",1,0)","v":0},0,null,{"$f":"IF($C16=1,'Sjekkliste for utfylling'!A34,\"\")","v":""},{"$f":"IF($C16=1,'Sjekkliste for utfylling'!B34,\"\")","v":""},null,{"$f":"IF(C16=1,'Sjekkliste for utfylling'!H34,\" \")","v":" "}]
[{"$f":"'Sjekkliste for utfylling'!A35","v":16},{"$f":"IF('Sjekkliste for utfylling'!F35<>\"\",1,0)","v":0},0,null,{"$f":"IF($C17=1,'Sjekkliste for utfylling'!A35,\"\")","v":""},{"$f":"IF($C17=1,'Sjekkliste for utfylling'!B35,\"\")","v":""},null,{"$f":"IF(C17=1,'Sjekkliste for utfylling'!H35,\" \")","v":" "}]
[{"$f":"'Sjekkliste for utfylling'!A40","v":17},{"$f":"IF('Sjekkliste for utfylling'!F40<>\"\",1,0)","v":0},0,null,{"$f":"IF($C18=1,'Sjekkliste for utfylling'!A40,\"\")","v":""},{"$f":"IF($C18=1,'Sjekkliste for utfylling'!B40,\"\")","v":""},null,{"$f":"IF(C18=1,'Sjekkliste for utfylling'!H40,\" \")","v":" "}]
[{"$f":"'Sjekkliste for utfylling'!A41","v":18},{"$f":"IF('Sjekkliste for utfylling'!F41<>\"\",1,0)","v":0},0,null,{"$f":"IF($C19=1,'Sjekkliste for utfylling'!A41,\"\")","v":""},{"$f":"IF($C19=1,'Sjekkliste for utfylling'!B41,\"\")","v":""},null,{"$f":"IF(C19=1,'Sjekkliste for utfylling'!H41,\" \")","v":" "}]
[{"$f":"'Sjekkliste for utfylling'!A42","v":19},{"$f":"IF('Sjekkliste for utfylling'!F42<>\"\",1,0)","v":0},0,null,{"$f":"IF($C20=1,'Sjekkliste for utfylling'!A42,\"\")","v":""},{"$f":"IF($C20=1,'Sjekkliste for utfylling'!B42,\"\")","v":""},null,{"$f":"IF(C20=1,'Sjekkliste for utfylling'!H42,\" \")","v":" "}]
[{"$f":"'Sjekkliste for utfylling'!A43","v":20},{"$f":"IF('Sjekkliste for utfylling'!F43<>\"\",1,0)","v":0},0,null,{"$f":"IF($C21=1,'Sjekkliste for utfylling'!A43,\"\")","v":""},{"$f":"IF($C21=1,'Sjekkliste for utfylling'!B43,\"\")","v":""},null,{"$f":"IF(C21=1,'Sjekkliste for utfylling'!H43,\" \")","v":" "}]
[{"$f":"'Sjekkliste for utfylling'!A44","v":21},{"$f":"IF('Sjekkliste for utfylling'!F44<>\"\",1,0)","v":0},0,null,{"$f":"IF($C22=1,'Sjekkliste for utfylling'!A44,\"\")","v":""},{"$f":"IF($C22=1,'Sjekkliste for utfylling'!B44,\"\")","v":""},null,{"$f":"IF(C22=1,'Sjekkliste for utfylling'!H44,\" \")","v":" "}]
[{"$f":"'Sjekkliste for utfylling'!A45","v":22},{"$f":"IF('Sjekkliste for utfylling'!F45<>\"\",1,0)","v":0},0,null,{"$f":"IF($C23=1,'Sjekkliste for utfylling'!A45,\"\")","v":""},{"$f":"IF($C23=1,'Sjekkliste for utfylling'!B45,\"\")","v":""},null,{"$f":"IF(C23=1,'Sjekkliste for utfylling'!H45,\" \")","v":" "}]
[{"$f":"'Sjekkliste for utfylling'!A46","v":23},{"$f":"IF('Sjekkliste for utfylling'!F46<>\"\",1,0)","v":0},0,null,{"$f":"IF($C24=1,'Sjekkliste for utfylling'!A46,\"\")","v":""},{"$f":"IF($C24=1,'Sjekkliste for utfylling'!B46,\"\")","v":""},null,{"$f":"IF(C24=1,'Sjekkliste for utfylling'!H46,\" \")","v":" "}]
[{"$f":"'Sjekkliste for utfylling'!A47","v":24},{"$f":"IF('Sjekkliste for utfylling'!F47<>\"\",1,0)","v":0},0,null,{"$f":"IF($C25=1,'Sjekkliste for utfylling'!A47,\"\")","v":""},{"$f":"IF($C25=1,'Sjekkliste for utfylling'!B47,\"\")","v":""},null,{"$f":"IF(C25=1,'Sjekkliste for utfylling'!H47,\" \")","v":" "}]
[{"$f":"'Sjekkliste for utfylling'!A48","v":25},{"$f":"IF('Sjekkliste for utfylling'!F48<>\"\",1,0)","v":0},0,null,{"$f":"IF($C26=1,'Sjekkliste for utfylling'!A48,\"\")","v":""},{"$f":"IF($C26=1,'Sjekkliste for utfylling'!B48,\"\")","v":""},null,{"$f":"IF(C26=1,'Sjekkliste for utfylling'!H48,\" \")","v":" "}]
[{"$f":"'Sjekkliste for utfylling'!A49","v":26},{"$f":"IF('Sjekkliste for utfylling'!F49<>\"\",1,0)","v":0},0,null,{"$f":"IF($C27=1,'Sjekkliste for utfylling'!A49,\"\")","v":""},{"$f":"IF($C27=1,'Sjekkliste for utfylling'!B49,\"\")","v":""},null,{"$f":"IF(C27=1,'Sjekkliste for utfylling'!H49,\" \")","v":" "}]
[{"$f":"'Sjekkliste for utfylling'!A50","v":27},{"$f":"IF('Sjekkliste for utfylling'!F50<>\"\",1,0)","v":0},0,null,{"$f":"IF($C28=1,'Sjekkliste for utfylling'!A50,\"\")","v":""},{"$f":"IF($C28=1,'Sjekkliste for utfylling'!B50,\"\")","v":""},null,{"$f":"IF(C28=1,'Sjekkliste for utfylling'!H50,\" \")","v":" "}]
[{"$f":"'Sjekkliste for utfylling'!A51","v":28},{"$f":"IF('Sjekkliste for utfylling'!F51<>\"\",1,0)","v":0},0,null,{"$f":"IF($C29=1,'Sjekkliste for utfylling'!A51,\"\")","v":""},{"$f":"IF($C29=1,'Sjekkliste for utfylling'!B51,\"\")","v":""},null,{"$f":"IF(C29=1,'Sjekkliste for utfylling'!H51,\" \")","v":" "}]
[{"$f":"'Sjekkliste for utfylling'!A53","v":29},{"$f":"IF('Sjekkliste for utfylling'!F53<>\"\",1,0)","v":0},0,null,{"$f":"IF($C30=1,'Sjekkliste for utfylling'!A53,\"\")","v":""},{"$f":"IF($C30=1,'Sjekkliste for utfylling'!B53,\"\")","v":""},null,{"$f":"IF(C30=1,'Sjekkliste for utfylling'!H53,\" \")","v":" "}]
[{"$f":"'Sjekkliste for utfylling'!A54","v":30},{"$f":"IF('Sjekkliste for utfylling'!F54<>\"\",1,0)","v":0},0,null,{"$f":"IF($C31=1,'Sjekkliste for utfylling'!A54,\"\")","v":""},{"$f":"IF($C31=1,'Sjekkliste for utfylling'!B54,\"\")","v":""},null,{"$f":"IF(C31=1,'Sjekkliste for utfylling'!H54,\" \")","v":" "}]
[{"$f":"'Sjekkliste for utfylling'!A56","v":31},{"$f":"IF('Sjekkliste for utfylling'!F56<>\"\",1,0)","v":0},0,null,{"$f":"IF($C32=1,'Sjekkliste for utfylling'!A56,\"\")","v":""},{"$f":"IF($C32=1,'Sjekkliste for utfylling'!B56,\"\")","v":""},null,{"$f":"IF(C32=1,'Sjekkliste for utfylling'!H56,\" \")","v":" "}]
[{"$f":"'Sjekkliste for utfylling'!A60","v":32},{"$f":"IF('Sjekkliste for utfylling'!F60<>\"\",1,0)","v":0},0,null,{"$f":"IF($C33=1,'Sjekkliste for utfylling'!A60,\"\")","v":""},{"$f":"IF($C33=1,'Sjekkliste for utfylling'!B60,\"\")","v":""},null,{"$f":"IF(C33=1,'Sjekkliste for utfylling'!H60,\" \")","v":" "}]
[{"$f":"'Sjekkliste for utfylling'!A64","v":33},{"$f":"IF('Sjekkliste for utfylling'!F64<>\"\",1,0)","v":0},{"$f":"SUM(B34:B34)","v":0},null,{"$f":"IF($C34=1,'Sjekkliste for utfylling'!A64,\"\")","v":""},{"$f":"IF($C34=1,'Sjekkliste for utfylling'!B64,\"\")","v":""},null,{"$f":"IF(C34=1,'Sjekkliste for utfylling'!H64,\" \")","v":" "}]
[{"$f":"'Sjekkliste for utfylling'!A65","v":34},{"$f":"IF('Sjekkliste for utfylling'!F65<>\"\",1,0)","v":0},0,null,{"$f":"IF($C35=1,'Sjekkliste for utfylling'!A65,\"\")","v":""},{"$f":"IF($C35=1,'Sjekkliste for utfylling'!B65,\"\")","v":""},null,{"$f":"IF(C35=1,'Sjekkliste for utfylling'!H65,\" \")","v":" "}]
[{"$f":"'Sjekkliste for utfylling'!A66","v":35},{"$f":"IF('Sjekkliste for utfylling'!F66<>\"\",1,0)","v":0},0,null,{"$f":"IF($C36=1,'Sjekkliste for utfylling'!A66,\"\")","v":""},{"$f":"IF($C36=1,'Sjekkliste for utfylling'!B66,\"\")","v":""},null,{"$f":"IF(C36=1,'Sjekkliste for utfylling'!H66,\" \")","v":" "}]
[{"$f":"'Sjekkliste for utfylling'!A67","v":36},{"$f":"IF('Sjekkliste for utfylling'!F67<>\"\",1,0)","v":0},0,null,{"$f":"IF($C37=1,'Sjekkliste for utfylling'!A67,\"\")","v":""},{"$f":"IF($C37=1,'Sjekkliste for utfylling'!B67,\"\")","v":""},null,{"$f":"IF(C37=1,'Sjekkliste for utfylling'!H67,\" \")","v":" "}]
[{"$f":"'Sjekkliste for utfylling'!A68","v":37},{"$f":"IF('Sjekkliste for utfylling'!F68<>\"\",1,0)","v":0},0,null,{"$f":"IF($C38=1,'Sjekkliste for utfylling'!A68,\"\")","v":""},{"$f":"IF($C38=1,'Sjekkliste for utfylling'!B68,\"\")","v":""},null,{"$f":"IF(C38=1,'Sjekkliste for utfylling'!H68,\" \")","v":" "}]
[{"$f":"'Sjekkliste for utfylling'!A75","v":38},{"$f":"IF('Sjekkliste for utfylling'!F75<>\"\",1,0)","v":0},0,null,{"$f":"IF($C39=1,'Sjekkliste for utfylling'!A75,\"\")","v":""},{"$f":"IF($C39=1,'Sjekkliste for utfylling'!B75,\"\")","v":""},null,{"$f":"IF(C39=1,'Sjekkliste for utfylling'!H75,\" \")","v":" "}]
[{"$f":"'Sjekkliste for utfylling'!A76","v":39},{"$f":"IF('Sjekkliste for utfylling'!F76<>\"\",1,0)","v":0},0,null,{"$f":"IF($C40=1,'Sjekkliste for utfylling'!A76,\"\")","v":""},{"$f":"IF($C40=1,'Sjekkliste for utfylling'!B76,\"\")","v":""},null,{"$f":"IF(C40=1,'Sjekkliste for utfylling'!H76,\" \")","v":" "}]
[{"$f":"'Sjekkliste for utfylling'!A77","v":40},{"$f":"IF('Sjekkliste for utfylling'!F77<>\"\",1,0)","v":0},0,null,{"$f":"IF($C41=1,'Sjekkliste for utfylling'!A77,\"\")","v":""},{"$f":"IF($C41=1,'Sjekkliste for utfylling'!B77,\"\")","v":""},null,{"$f":"IF(C41=1,'Sjekkliste for utfylling'!H77,\" \")","v":" "}]
[{"$f":"'Sjekkliste for utfylling'!A78","v":41},{"$f":"IF('Sjekkliste for utfylling'!F78<>\"\",1,0)","v":0},0,null,{"$f":"IF($C42=1,'Sjekkliste for utfylling'!A78,\"\")","v":""},{"$f":"IF($C42=1,'Sjekkliste for utfylling'!B78,\"\")","v":""},null,{"$f":"IF(C42=1,'Sjekkliste for utfylling'!H78,\" \")","v":" "}]
[{"$f":"'Sjekkliste for utfylling'!A79","v":42},{"$f":"IF('Sjekkliste for utfylling'!F79<>\"\",1,0)","v":0},0,null,{"$f":"IF($C43=1,'Sjekkliste for utfylling'!A79,\"\")","v":""},{"$f":"IF($C43=1,'Sjekkliste for utfylling'!B79,\"\")","v":""},null,{"$f":"IF(C43=1,'Sjekkliste for utfylling'!H79,\" \")","v":" "}]
[{"$f":"'Sjekkliste for utfylling'!A81","v":43},{"$f":"IF('Sjekkliste for utfylling'!F81<>\"\",1,0)","v":0},0,null,{"$f":"IF($C44=1,'Sjekkliste for utfylling'!A81,\"\")","v":""},{"$f":"IF($C44=1,'Sjekkliste for utfylling'!B81,\"\")","v":""},null,{"$f":"IF(C44=1,'Sjekkliste for utfylling'!H81,\" \")","v":" "}]
[{"$f":"'Sjekkliste for utfylling'!A84","v":44},{"$f":"IF('Sjekkliste for utfylling'!F84<>\"\",1,0)","v":0},0,null,{"$f":"IF($C45=1,'Sjekkliste for utfylling'!A84,\"\")","v":""},{"$f":"IF($C45=1,'Sjekkliste for utfylling'!B84,\"\")","v":""},null,{"$f":"IF(C45=1,'Sjekkliste for utfylling'!H84,\" \")","v":" "}]
[{"$f":"'Sjekkliste for utfylling'!A85","v":45},{"$f":"IF('Sjekkliste for utfylling'!F85<>\"\",1,0)","v":0},0,null,{"$f":"IF($C46=1,'Sjekkliste for utfylling'!A85,\"\")","v":""},{"$f":"IF($C46=1,'Sjekkliste for utfylling'!B85,\"\")","v":""},null,{"$f":"IF(C46=1,'Sjekkliste for utfylling'!H85,\" \")","v":" "}]
[{"$f":"'Sjekkliste for utfylling'!A87","v":46},{"$f":"IF('Sjekkliste for utfylling'!F87<>\"\",1,0)","v":0},0,null,{"$f":"IF($C47=1,'Sjekkliste for utfylling'!A87,\"\")","v":""},{"$f":"IF($C47=1,'Sjekkliste for utfylling'!B87,\"\")","v":""},null,{"$f":"IF(C47=1,'Sjekkliste for utfylling'!H87,\" \")","v":" "}]
[{"$f":"'Sjekkliste for utfylling'!A88","v":47},{"$f":"IF('Sjekkliste for utfylling'!F88<>\"\",1,0)","v":0},0,null,{"$f":"IF($C48=1,'Sjekkliste for utfylling'!A88,\"\")","v":""},{"$f":"IF($C48=1,'Sjekkliste for utfylling'!B88,\"\")","v":""},null,{"$f":"IF(C48=1,'Sjekkliste for utfylling'!H88,\" \")","v":" "}]
[{"$f":"'Sjekkliste for utfylling'!A92","v":48},{"$f":"IF('Sjekkliste for utfylling'!F92<>\"\",1,0)","v":0},0,null,{"$f":"IF($C49=1,'Sjekkliste for utfylling'!A92,\"\")","v":""},{"$f":"IF($C49=1,'Sjekkliste for utfylling'!B92,\"\")","v":""},null,{"$f":"IF(C49=1,'Sjekkliste for utfylling'!H92,\" \")","v":" "}]
[{"$f":"'Sjekkliste for utfylling'!A93","v":49},{"$f":"IF('Sjekkliste for utfylling'!F93<>\"\",1,0)","v":0},0,null,{"$f":"IF($C50=1,'Sjekkliste for utfylling'!A93,\"\")","v":""},{"$f":"IF($C50=1,'Sjekkliste for utfylling'!B93,\"\")","v":""},null,{"$f":"IF(C50=1,'Sjekkliste for utfylling'!H93,\" \")","v":" "}]
[{"$f":"'Sjekkliste for utfylling'!A99","v":50},{"$f":"IF('Sjekkliste for utfylling'!F99<>\"\",1,0)","v":0},0,null,{"$f":"IF($C51=1,'Sjekkliste for utfylling'!A99,\"\")","v":""},{"$f":"IF($C51=1,'Sjekkliste for utfylling'!B99,\"\")","v":""},null,{"$f":"IF(C51=1,'Sjekkliste for utfylling'!H99,\" \")","v":" "}]
[{"$f":"'Sjekkliste for utfylling'!A101","v":51},{"$f":"IF('Sjekkliste for utfylling'!F101<>\"\",1,0)","v":0},0,null,{"$f":"IF($C52=1,'Sjekkliste for utfylling'!A101,\"\")","v":""},{"$f":"IF($C52=1,'Sjekkliste for utfylling'!B101,\"\")","v":""},null,{"$f":"IF(C52=1,'Sjekkliste for utfylling'!H101,\" \")","v":" "}]
[{"$f":"'Sjekkliste for utfylling'!A103","v":52},{"$f":"IF('Sjekkliste for utfylling'!F103<>\"\",1,0)","v":0},0,null,{"$f":"IF($C53=1,'Sjekkliste for utfylling'!A103,\"\")","v":""},{"$f":"IF($C53=1,'Sjekkliste for utfylling'!B103,\"\")","v":""},null,{"$f":"IF(C53=1,'Sjekkliste for utfylling'!H103,\" \")","v":" "}]
[{"$f":"'Sjekkliste for utfylling'!A104","v":53},{"$f":"IF('Sjekkliste for utfylling'!F104<>\"\",1,0)","v":0},0,null,{"$f":"IF($C54=1,'Sjekkliste for utfylling'!A104,\"\")","v":""},{"$f":"IF($C54=1,'Sjekkliste for utfylling'!B104,\"\")","v":""},null,{"$f":"IF(C54=1,'Sjekkliste for utfylling'!H104,\" \")","v":" "}]
[{"$f":"'Sjekkliste for utfylling'!A105","v":54},{"$f":"IF('Sjekkliste for utfylling'!F105<>\"\",1,0)","v":0},0,null,{"$f":"IF($C55=1,'Sjekkliste for utfylling'!A105,\"\")","v":""},{"$f":"IF($C55=1,'Sjekkliste for utfylling'!B105,\"\")","v":""},null,{"$f":"IF(C55=1,'Sjekkliste for utfylling'!H105,\" \")","v":" "}]
[{"$f":"'Sjekkliste for utfylling'!A107","v":55},{"$f":"IF('Sjekkliste for utfylling'!F107<>\"\",1,0)","v":0},0,null,{"$f":"IF($C56=1,'Sjekkliste for utfylling'!A107,\"\")","v":""},{"$f":"IF($C56=1,'Sjekkliste for utfylling'!B107,\"\")","v":""},null,{"$f":"IF(C56=1,'Sjekkliste for utfylling'!H107,\" \")","v":" "}]
[{"$f":"'Sjekkliste for utfylling'!A111","v":56},{"$f":"IF('Sjekkliste for utfylling'!F111<>\"\",1,0)","v":0},0,null,{"$f":"IF($C57=1,'Sjekkliste for utfylling'!A111,\"\")","v":""},{"$f":"IF($C57=1,'Sjekkliste for utfylling'!B111,\"\")","v":""},null,{"$f":"IF(C57=1,'Sjekkliste for utfylling'!H111,\" \")","v":" "}]
[{"$f":"'Sjekkliste for utfylling'!A119","v":57},{"$f":"IF('Sjekkliste for utfylling'!F119<>\"\",1,0)","v":0},0,null,{"$f":"IF($C58=1,'Sjekkliste for utfylling'!A119,\"\")","v":""},{"$f":"IF($C58=1,'Sjekkliste for utfylling'!B119,\"\")","v":""},null,{"$f":"IF(C58=1,'Sjekkliste for utfylling'!H119,\" \")","v":" "}]
[{"$f":"'Sjekkliste for utfylling'!A120","v":58},{"$f":"IF('Sjekkliste for utfylling'!F120<>\"\",1,0)","v":0},0,null,{"$f":"IF($C59=1,'Sjekkliste for utfylling'!A120,\"\")","v":""},{"$f":"IF($C59=1,'Sjekkliste for utfylling'!B120,\"\")","v":""},null,{"$f":"IF(C59=1,'Sjekkliste for utfylling'!H120,\" \")","v":" "}]
[{"$f":"'Sjekkliste for utfylling'!A121","v":59},{"$f":"IF('Sjekkliste for utfylling'!F121<>\"\",1,0)","v":0},0,null,{"$f":"IF($C60=1,'Sjekkliste for utfylling'!A121,\"\")","v":""},{"$f":"IF($C60=1,'Sjekkliste for utfylling'!B121,\"\")","v":""},null,{"$f":"IF(C60=1,'Sjekkliste for utfylling'!H121,\" \")","v":" "}]
[{"$f":"'Sjekkliste for utfylling'!A122","v":60},{"$f":"IF('Sjekkliste for utfylling'!F122<>\"\",1,0)","v":0},0,null,{"$f":"IF($C61=1,'Sjekkliste for utfylling'!A122,\"\")","v":""},{"$f":"IF($C61=1,'Sjekkliste for utfylling'!B122,\"\")","v":""},null,{"$f":"IF(C61=1,'Sjekkliste for utfylling'!H122,\" \")","v":" "}]
[{"$f":"'Sjekkliste for utfylling'!A123","v":61},{"$f":"IF('Sjekkliste for utfylling'!F123<>\"\",1,0)","v":0},0,null,{"$f":"IF($C62=1,'Sjekkliste for utfylling'!A123,\"\")","v":""},{"$f":"IF($C62=1,'Sjekkliste for utfylling'!B123,\"\")","v":""},null,{"$f":"IF(C62=1,'Sjekkliste for utfylling'!H123,\" \")","v":" "}]
[{"$f":"'Sjekkliste for utfylling'!A124","v":62},{"$f":"IF('Sjekkliste for utfylling'!F124<>\"\",1,0)","v":0},0,null,{"$f":"IF($C63=1,'Sjekkliste for utfylling'!A124,\"\")","v":""},{"$f":"IF($C63=1,'Sjekkliste for utfylling'!B124,\"\")","v":""},null,{"$f":"IF(C63=1,'Sjekkliste for utfylling'!H124,\" \")","v":" "}]
[{"$f":"'Sjekkliste for utfylling'!A129","v":63},{"$f":"IF('Sjekkliste for utfylling'!F129<>\"\",1,0)","v":0},0,null,{"$f":"IF($C64=1,'Sjekkliste for utfylling'!A129,\"\")","v":""},{"$f":"IF($C64=1,'Sjekkliste for utfylling'!B129,\"\")","v":""},null,{"$f":"IF(C64=1,'Sjekkliste for utfylling'!H129,\" \")","v":" "}]
[{"$f":"'Sjekkliste for utfylling'!A131","v":64},{"$f":"IF('Sjekkliste for utfylling'!F131<>\"\",1,0)","v":0},0,null,{"$f":"IF($C65=1,'Sjekkliste for utfylling'!A131,\"\")","v":""},{"$f":"IF($C65=1,'Sjekkliste for utfylling'!B131,\"\")","v":""},null,{"$f":"IF(C65=1,'Sjekkliste for utfylling'!H131,\" \")","v":" "}]
[{"$f":"'Sjekkliste for utfylling'!A132","v":65},{"$f":"IF('Sjekkliste for utfylling'!F132<>\"\",1,0)","v":0},{"$f":"SUM(B66:B66)","v":0},null,{"$f":"IF($C66=1,'Sjekkliste for utfylling'!A132,\"\")","v":""},{"$f":"IF($C66=1,'Sjekkliste for utfylling'!B132,\"\")","v":""},null,{"$f":"IF(C66=1,'Sjekkliste for utfylling'!H132,\" \")","v":" "}]
[{"$f":"'Sjekkliste for utfylling'!A133","v":66},{"$f":"IF('Sjekkliste for utfylling'!F133<>\"\",1,0)","v":0},0,null,{"$f":"IF($C67=1,'Sjekkliste for utfylling'!A133,\"\")","v":""},{"$f":"IF($C67=1,'Sjekkliste for utfylling'!B133,\"\")","v":""},null,{"$f":"IF(C67=1,'Sjekkliste for utfylling'!H133,\" \")","v":" "}]
[{"$f":"'Sjekkliste for utfylling'!A138","v":67},{"$f":"IF('Sjekkliste for utfylling'!F138<>\"\",1,0)","v":0},0,null,{"$f":"IF($C68=1,'Sjekkliste for utfylling'!A138,\"\")","v":""},{"$f":"IF($C68=1,'Sjekkliste for utfylling'!B138,\"\")","v":""},null,{"$f":"IF(C68=1,'Sjekkliste for utfylling'!H138,\" \")","v":" "}]
[{"$f":"'Sjekkliste for utfylling'!A139","v":68},{"$f":"IF('Sjekkliste for utfylling'!F139<>\"\",1,0)","v":0},0,null,{"$f":"IF($C69=1,'Sjekkliste for utfylling'!A139,\"\")","v":""},{"$f":"IF($C69=1,'Sjekkliste for utfylling'!B139,\"\")","v":""},null,{"$f":"IF(C69=1,'Sjekkliste for utfylling'!H139,\" \")","v":" "}]
[{"$f":"'Sjekkliste for utfylling'!A140","v":69},{"$f":"IF('Sjekkliste for utfylling'!F140<>\"\",1,0)","v":0},0,null,{"$f":"IF($C70=1,'Sjekkliste for utfylling'!A140,\"\")","v":""},{"$f":"IF($C70=1,'Sjekkliste for utfylling'!B140,\"\")","v":""},null,{"$f":"IF(C70=1,'Sjekkliste for utfylling'!H140,\" \")","v":" "}]
[{"$f":"'Sjekkliste for utfylling'!A142","v":70},{"$f":"IF('Sjekkliste for utfylling'!F142<>\"\",1,0)","v":0},0,null,{"$f":"IF($C71=1,'Sjekkliste for utfylling'!A142,\"\")","v":""},{"$f":"IF($C71=1,'Sjekkliste for utfylling'!B142,\"\")","v":""},null,{"$f":"IF(C71=1,'Sjekkliste for utfylling'!H142,\" \")","v":" "}]
[{"$f":"'Sjekkliste for utfylling'!A144","v":71},{"$f":"IF('Sjekkliste for utfylling'!F144<>\"\",1,0)","v":0},0,null,{"$f":"IF($C72=1,'Sjekkliste for utfylling'!A144,\"\")","v":""},{"$f":"IF($C72=1,'Sjekkliste for utfylling'!B144,\"\")","v":""},null,{"$f":"IF(C72=1,'Sjekkliste for utfylling'!H144,\" \")","v":" "}]
[{"$f":"'Sjekkliste for utfylling'!A146","v":72},{"$f":"IF('Sjekkliste for utfylling'!F146<>\"\",1,0)","v":0},0,null,{"$f":"IF($C73=1,'Sjekkliste for utfylling'!A146,\"\")","v":""},{"$f":"IF($C73=1,'Sjekkliste for utfylling'!B146,\"\")","v":""},null,{"$f":"IF(C73=1,'Sjekkliste for utfylling'!H146,\" \")","v":" "}]
[{"$f":"'Sjekkliste for utfylling'!A149","v":73},{"$f":"IF('Sjekkliste for utfylling'!F149<>\"\",1,0)","v":0},0,null,{"$f":"IF($C74=1,'Sjekkliste for utfylling'!A149,\"\")","v":""},{"$f":"IF($C74=1,'Sjekkliste for utfylling'!B149,\"\")","v":""},null,{"$f":"IF(C74=1,'Sjekkliste for utfylling'!H149,\" \")","v":" "}]
[{"$f":"'Sjekkliste for utfylling'!A150","v":74},{"$f":"IF('Sjekkliste for utfylling'!F150<>\"\",1,0)","v":0},0,null,{"$f":"IF($C75=1,'Sjekkliste for utfylling'!A150,\"\")","v":""},{"$f":"IF($C75=1,'Sjekkliste for utfylling'!B150,\"\")","v":""},null,{"$f":"IF(C75=1,'Sjekkliste for utfylling'!H150,\" \")","v":" "}]
[{"$f":"'Sjekkliste for utfylling'!A151","v":75},{"$f":"IF('Sjekkliste for utfylling'!F151<>\"\",1,0)","v":0},0,null,{"$f":"IF($C76=1,'Sjekkliste for utfylling'!A151,\"\")","v":""},{"$f":"IF($C76=1,'Sjekkliste for utfylling'!B151,\"\")","v":""},null,{"$f":"IF(C76=1,'Sjekkliste for utfylling'!H151,\" \")","v":" "}]
[{"$f":"'Sjekkliste for utfylling'!A152","v":76},{"$f":"IF('Sjekkliste for utfylling'!F152<>\"\",1,0)","v":0},0,null,{"$f":"IF($C77=1,'Sjekkliste for utfylling'!A152,\"\")","v":""},{"$f":"IF($C77=1,'Sjekkliste for utfylling'!B152,\"\")","v":""},null,{"$f":"IF(C77=1,'Sjekkliste for utfylling'!H152,\" \")","v":" "}]
[{"$f":"'Sjekkliste for utfylling'!A154","v":77},{"$f":"IF('Sjekkliste for utfylling'!F154<>\"\",1,0)","v":0},0,null,{"$f":"IF($C78=1,'Sjekkliste for utfylling'!A154,\"\")","v":""},{"$f":"IF($C78=1,'Sjekkliste for utfylling'!B154,\"\")","v":""},null,{"$f":"IF(C78=1,'Sjekkliste for utfylling'!H154,\" \")","v":" "}]
[{"$f":"'Sjekkliste for utfylling'!A158","v":78},{"$f":"IF('Sjekkliste for utfylling'!F158<>\"\",1,0)","v":0},0,null,{"$f":"IF($C79=1,'Sjekkliste for utfylling'!A158,\"\")","v":""},{"$f":"IF($C79=1,'Sjekkliste for utfylling'!B158,\"\")","v":""},null,{"$f":"IF(C79=1,'Sjekkliste for utfylling'!H158,\" \")","v":" "}]
[{"$f":"'Sjekkliste for utfylling'!A160","v":79},{"$f":"IF('Sjekkliste for utfylling'!F160<>\"\",1,0)","v":0},0,null,{"$f":"IF($C80=1,'Sjekkliste for utfylling'!A160,\"\")","v":""},{"$f":"IF($C80=1,'Sjekkliste for utfylling'!B160,\"\")","v":""},null,{"$f":"IF(C80=1,'Sjekkliste for utfylling'!H160,\" \")","v":" "}]
[{"$f":"'Sjekkliste for utfylling'!A161","v":80},{"$f":"IF('Sjekkliste for utfylling'!F161<>\"\",1,0)","v":0},0,null,{"$f":"IF($C81=1,'Sjekkliste for utfylling'!A161,\"\")","v":""},{"$f":"IF($C81=1,'Sjekkliste for utfylling'!B161,\"\")","v":""},null,{"$f":"IF(C81=1,'Sjekkliste for utfylling'!H161,\" \")","v":" "}]
[{"$f":"'Sjekkliste for utfylling'!A162","v":81},{"$f":"IF('Sjekkliste for utfylling'!F162<>\"\",1,0)","v":0},0,null,{"$f":"IF($C82=1,'Sjekkliste for utfylling'!A162,\"\")","v":""},{"$f":"IF($C82=1,'Sjekkliste for utfylling'!B162,\"\")","v":""},null,{"$f":"IF(C82=1,'Sjekkliste for utfylling'!H162,\" \")","v":" "}]
[{"$f":"'Sjekkliste for utfylling'!A169","v":82},{"$f":"IF('Sjekkliste for utfylling'!F169<>\"\",1,0)","v":0},0,null,{"$f":"IF($C83=1,'Sjekkliste for utfylling'!A169,\"\")","v":""},{"$f":"IF($C83=1,'Sjekkliste for utfylling'!B169,\"\")","v":""},null,{"$f":"IF(C83=1,'Sjekkliste for utfylling'!H169,\" \")","v":" "}]
[{"$f":"'Sjekkliste for utfylling'!A170","v":83},{"$f":"IF('Sjekkliste for utfylling'!F170<>\"\",1,0)","v":0},0,null,{"$f":"IF($C84=1,'Sjekkliste for utfylling'!A170,\"\")","v":""},{"$f":"IF($C84=1,'Sjekkliste for utfylling'!B170,\"\")","v":""},null,{"$f":"IF(C84=1,'Sjekkliste for utfylling'!H170,\" \")","v":" "}]
[{"$f":"'Sjekkliste for utfylling'!A171","v":84},{"$f":"IF('Sjekkliste for utfylling'!F171<>\"\",1,0)","v":0},0,null,{"$f":"IF($C85=1,'Sjekkliste for utfylling'!A171,\"\")","v":""},{"$f":"IF($C85=1,'Sjekkliste for utfylling'!B171,\"\")","v":""},null,{"$f":"IF(C85=1,'Sjekkliste for utfylling'!H171,\" \")","v":" "}]
[{"$f":"'Sjekkliste for utfylling'!A173","v":85},{"$f":"IF('Sjekkliste for utfylling'!F173<>\"\",1,0)","v":0},0,null,{"$f":"IF($C86=1,'Sjekkliste for utfylling'!A173,\"\")","v":""},{"$f":"IF($C86=1,'Sjekkliste for utfylling'!B173,\"\")","v":""},null,{"$f":"IF(C86=1,'Sjekkliste for utfylling'!H173,\" \")","v":" "}]
[{"$f":"'Sjekkliste for utfylling'!A174","v":86},{"$f":"IF('Sjekkliste for utfylling'!F174<>\"\",1,0)","v":0},0,null,{"$f":"IF($C87=1,'Sjekkliste for utfylling'!A174,\"\")","v":""},{"$f":"IF($C87=1,'Sjekkliste for utfylling'!B174,\"\")","v":""},null,{"$f":"IF(C87=1,'Sjekkliste for utfylling'!H174,\" \")","v":" "}]
[{"$f":"'Sjekkliste for utfylling'!A175","v":87},{"$f":"IF('Sjekkliste for utfylling'!F175<>\"\",1,0)","v":0},0,null,{"$f":"IF($C88=1,'Sjekkliste for utfylling'!A175,\"\")","v":""},{"$f":"IF($C88=1,'Sjekkliste for utfylling'!B175,\"\")","v":""},null,{"$f":"IF(C88=1,'Sjekkliste for utfylling'!H175,\" \")","v":" "}]
[{"$f":"'Sjekkliste for utfylling'!A177","v":88},{"$f":"IF('Sjekkliste for utfylling'!F177<>\"\",1,0)","v":0},0,null,{"$f":"IF($C89=1,'Sjekkliste for utfylling'!A177,\"\")","v":""},{"$f":"IF($C89=1,'Sjekkliste for utfylling'!B177,\"\")","v":""},null,{"$f":"IF(C89=1,'Sjekkliste for utfylling'!H177,\" \")","v":" "}]
[{"$f":"'Sjekkliste for utfylling'!A178","v":89},{"$f":"IF('Sjekkliste for utfylling'!F178<>\"\",1,0)","v":0},0,null,{"$f":"IF($C90=1,'Sjekkliste for utfylling'!A178,\"\")","v":""},{"$f":"IF($C90=1,'Sjekkliste for utfylling'!B178,\"\")","v":""},null,{"$f":"IF(C90=1,'Sjekkliste for utfylling'!H178,\" \")","v":" "}]
[{"$f":"'Sjekkliste for utfylling'!A179","v":90},{"$f":"IF('Sjekkliste for utfylling'!F179<>\"\",1,0)","v":0},0,null,{"$f":"IF($C91=1,'Sjekkliste for utfylling'!A179,\"\")","v":""},{"$f":"IF($C91=1,'Sjekkliste for utfylling'!B179,\"\")","v":""},null,{"$f":"IF(C91=1,'Sjekkliste for utfylling'!H179,\" \")","v":" "}]
[{"$f":"'Sjekkliste for utfylling'!A180","v":91},{"$f":"IF('Sjekkliste for utfylling'!F180<>\"\",1,0)","v":0},0,null,{"$f":"IF($C92=1,'Sjekkliste for utfylling'!A180,\"\")","v":""},{"$f":"IF($C92=1,'Sjekkliste for utfylling'!B180,\"\")","v":""},null,{"$f":"IF(C92=1,'Sjekkliste for utfylling'!H180,\" \")","v":" "}]
[{"$f":"'Sjekkliste for utfylling'!A181","v":92},{"$f":"IF('Sjekkliste for utfylling'!F181<>\"\",1,0)","v":0},0,null,{"$f":"IF($C93=1,'Sjekkliste for utfylling'!A181,\"\")","v":""},{"$f":"IF($C93=1,'Sjekkliste for utfylling'!B181,\"\")","v":""},null,{"$f":"IF(C93=1,'Sjekkliste for utfylling'!H181,\" \")","v":" "}]
[{"$f":"'Sjekkliste for utfylling'!A193","v":93},{"$f":"IF('Sjekkliste for utfylling'!F193<>\"\",1,0)","v":0},0,null,{"$f":"IF($C94=1,'Sjekkliste for utfylling'!A193,\"\")","v":""},{"$f":"IF($C94=1,'Sjekkliste for utfylling'!B193,\"\")","v":""},null,{"$f":"IF(C94=1,'Sjekkliste for utfylling'!H193,\" \")","v":" "}]
[{"$f":"'Sjekkliste for utfylling'!A195","v":94},{"$f":"IF('Sjekkliste for utfylling'!F195<>\"\",1,0)","v":0},0,null,{"$f":"IF($C95=1,'Sjekkliste for utfylling'!A195,\"\")","v":""},{"$f":"IF($C95=1,'Sjekkliste for utfylling'!B195,\"\")","v":""},null,{"$f":"IF(C95=1,'Sjekkliste for utfylling'!H195,\" \")","v":" "}]
[{"$f":"'Sjekkliste for utfylling'!A196","v":95},{"$f":"IF('Sjekkliste for utfylling'!F196<>\"\",1,0)","v":0},0,null,{"$f":"IF($C96=1,'Sjekkliste for utfylling'!A196,\"\")","v":""},{"$f":"IF($C96=1,'Sjekkliste for utfylling'!B196,\"\")","v":""},null,{"$f":"IF(C96=1,'Sjekkliste for utfylling'!H196,\" \")","v":" "}]
[{"$f":"'Sjekkliste for utfylling'!A197","v":96},{"$f":"IF('Sjekkliste for utfylling'!F197<>\"\",1,0)","v":0},{"$f":"SUM(B97:B97)","v":0},null,{"$f":"IF($C97=1,'Sjekkliste for utfylling'!A197,\"\")","v":""},{"$f":"IF($C97=1,'Sjekkliste for utfylling'!B197,\"\")","v":""},null,{"$f":"IF(C97=1,'Sjekkliste for utfylling'!H197,\" \")","v":" "}]
[{"$f":"'Sjekkliste for utfylling'!A198","v":97},{"$f":"IF('Sjekkliste for utfylling'!F198<>\"\",1,0)","v":0},0,null,{"$f":"IF($C98=1,'Sjekkliste for utfylling'!A198,\"\")","v":""},{"$f":"IF($C98=1,'Sjekkliste for utfylling'!B198,\"\")","v":""},null,{"$f":"IF(C98=1,'Sjekkliste for utfylling'!H198,\" \")","v":" "}]
[{"$f":"'Sjekkliste for utfylling'!A199","v":98},{"$f":"IF('Sjekkliste for utfylling'!F199<>\"\",1,0)","v":0},0,null,{"$f":"IF($C99=1,'Sjekkliste for utfylling'!A199,\"\")","v":""},{"$f":"IF($C99=1,'Sjekkliste for utfylling'!B199,\"\")","v":""},null,{"$f":"IF(C99=1,'Sjekkliste for utfylling'!H199,\" \")","v":" "}]
[{"$f":"'Sjekkliste for utfylling'!A201","v":99},{"$f":"IF('Sjekkliste for utfylling'!F201<>\"\",1,0)","v":0},0,null,{"$f":"IF($C100=1,'Sjekkliste for utfylling'!A201,\"\")","v":""},{"$f":"IF($C100=1,'Sjekkliste for utfylling'!B201,\"\")","v":""},null,{"$f":"IF(C100=1,'Sjekkliste for utfylling'!H201,\" \")","v":" "}]
[{"$f":"'Sjekkliste for utfylling'!A202","v":100},{"$f":"IF('Sjekkliste for utfylling'!F202<>\"\",1,0)","v":0},0,null,{"$f":"IF($C101=1,'Sjekkliste for utfylling'!A202,\"\")","v":""},{"$f":"IF($C101=1,'Sjekkliste for utfylling'!B202,\"\")","v":""},null,{"$f":"IF(C101=1,'Sjekkliste for utfylling'!H202,\" \")","v":" "}]
[{"$f":"'Sjekkliste for utfylling'!A205","v":101},{"$f":"IF('Sjekkliste for utfylling'!F205<>\"\",1,0)","v":0},0,null,{"$f":"IF($C102=1,'Sjekkliste for utfylling'!A205,\"\")","v":""},{"$f":"IF($C102=1,'Sjekkliste for utfylling'!B205,\"\")","v":""},null,{"$f":"IF(C102=1,'Sjekkliste for utfylling'!H205,\" \")","v":" "}]
[{"$f":"'Sjekkliste for utfylling'!A206","v":102},{"$f":"IF('Sjekkliste for utfylling'!F206<>\"\",1,0)","v":0},0,null,{"$f":"IF($C103=1,'Sjekkliste for utfylling'!A206,\"\")","v":""},{"$f":"IF($C103=1,'Sjekkliste for utfylling'!B206,\"\")","v":""},null,{"$f":"IF(C103=1,'Sjekkliste for utfylling'!H206,\" \")","v":" "}]
[{"$f":"'Sjekkliste for utfylling'!A207","v":103},{"$f":"IF('Sjekkliste for utfylling'!F207<>\"\",1,0)","v":0},0,null,{"$f":"IF($C104=1,'Sjekkliste for utfylling'!A207,\"\")","v":""},{"$f":"IF($C104=1,'Sjekkliste for utfylling'!B207,\"\")","v":""},null,{"$f":"IF(C104=1,'Sjekkliste for utfylling'!H207,\" \")","v":" "}]
[{"$f":"'Sjekkliste for utfylling'!A209","v":104},{"$f":"IF('Sjekkliste for utfylling'!F209<>\"\",1,0)","v":0},0,null,{"$f":"IF($C105=1,'Sjekkliste for utfylling'!A209,\"\")","v":""},{"$f":"IF($C105=1,'Sjekkliste for utfylling'!B209,\"\")","v":""},null,{"$f":"IF(C105=1,'Sjekkliste for utfylling'!H209,\" \")","v":" "}]
[{"$f":"'Sjekkliste for utfylling'!A211","v":105},{"$f":"IF('Sjekkliste for utfylling'!F211<>\"\",1,0)","v":0},0,null,{"$f":"IF($C106=1,'Sjekkliste for utfylling'!A211,\"\")","v":""},{"$f":"IF($C106=1,'Sjekkliste for utfylling'!B211,\"\")","v":""},null,{"$f":"IF(C106=1,'Sjekkliste for utfylling'!H211,\" \")","v":" "}]
[{"$f":"'Sjekkliste for utfylling'!A212","v":106},{"$f":"IF('Sjekkliste for utfylling'!F212<>\"\",1,0)","v":0},0,null,{"$f":"IF($C107=1,'Sjekkliste for utfylling'!A212,\"\")","v":""},{"$f":"IF($C107=1,'Sjekkliste for utfylling'!B212,\"\")","v":""},null,{"$f":"IF(C107=1,'Sjekkliste for utfylling'!H212,\" \")","v":" "}]
[{"$f":"'Sjekkliste for utfylling'!A213","v":107},{"$f":"IF('Sjekkliste for utfylling'!F213<>\"\",1,0)","v":0},0,null,{"$f":"IF($C108=1,'Sjekkliste for utfylling'!A213,\"\")","v":""},{"$f":"IF($C108=1,'Sjekkliste for utfylling'!B213,\"\")","v":""},null,{"$f":"IF(C108=1,'Sjekkliste for utfylling'!H213,\" \")","v":" "}]
[{"$f":"'Sjekkliste for utfylling'!A214","v":108},{"$f":"IF('Sjekkliste for utfylling'!F214<>\"\",1,0)","v":0},0,null,{"$f":"IF($C109=1,'Sjekkliste for utfylling'!A214,\"\")","v":""},{"$f":"IF($C109=1,'Sjekkliste for utfylling'!B214,\"\")","v":""},null,{"$f":"IF(C109=1,'Sjekkliste for utfylling'!H214,\" \")","v":" "}]
[{"$f":"'Sjekkliste for utfylling'!A215","v":109},{"$f":"IF('Sjekkliste for utfylling'!F215<>\"\",1,0)","v":0},0,null,{"$f":"IF($C110=1,'Sjekkliste for utfylling'!A215,\"\")","v":""},{"$f":"IF($C110=1,'Sjekkliste for utfylling'!B215,\"\")","v":""},null,{"$f":"IF(C110=1,'Sjekkliste for utfylling'!H215,\" \")","v":" "}]
[{"$f":"'Sjekkliste for utfylling'!A216","v":110},{"$f":"IF('Sjekkliste for utfylling'!F216<>\"\",1,0)","v":0},0,null,{"$f":"IF($C111=1,'Sjekkliste for utfylling'!A216,\"\")","v":""},{"$f":"IF($C111=1,'Sjekkliste for utfylling'!B216,\"\")","v":""},null,{"$f":"IF(C111=1,'Sjekkliste for utfylling'!H216,\" \")","v":" "}]
[{"$f":"'Sjekkliste for utfylling'!A217","v":111},{"$f":"IF('Sjekkliste for utfylling'!F217<>\"\",1,0)","v":0},0,null,{"$f":"IF($C112=1,'Sjekkliste for utfylling'!A217,\"\")","v":""},{"$f":"IF($C112=1,'Sjekkliste for utfylling'!B217,\"\")","v":""},null,{"$f":"IF(C112=1,'Sjekkliste for utfylling'!H217,\" \")","v":" "}]
[{"$f":"'Sjekkliste for utfylling'!A218","v":112},{"$f":"IF('Sjekkliste for utfylling'!F218<>\"\",1,0)","v":0},0,null,{"$f":"IF($C113=1,'Sjekkliste for utfylling'!A218,\"\")","v":""},{"$f":"IF($C113=1,'Sjekkliste for utfylling'!B218,\"\")","v":""},null,{"$f":"IF(C113=1,'Sjekkliste for utfylling'!H218,\" \")","v":" "}]
[{"$f":"'Sjekkliste for utfylling'!A219","v":113},{"$f":"IF('Sjekkliste for utfylling'!F219<>\"\",1,0)","v":0},0,null,{"$f":"IF($C114=1,'Sjekkliste for utfylling'!A219,\"\")","v":""},{"$f":"IF($C114=1,'Sjekkliste for utfylling'!B219,\"\")","v":""},null,{"$f":"IF(C114=1,'Sjekkliste for utfylling'!H219,\" \")","v":" "}]
[{"$f":"'Sjekkliste for utfylling'!A220","v":114},{"$f":"IF('Sjekkliste for utfylling'!F220<>\"\",1,0)","v":0},0,null,{"$f":"IF($C115=1,'Sjekkliste for utfylling'!A220,\"\")","v":""},{"$f":"IF($C115=1,'Sjekkliste for utfylling'!B220,\"\")","v":""},null,{"$f":"IF(C115=1,'Sjekkliste for utfylling'!H220,\" \")","v":" "}]
[{"$f":"'Sjekkliste for utfylling'!A224","v":115},{"$f":"IF('Sjekkliste for utfylling'!F224<>\"\",1,0)","v":0},0,null,{"$f":"IF($C116=1,'Sjekkliste for utfylling'!A224,\"\")","v":""},{"$f":"IF($C116=1,'Sjekkliste for utfylling'!B224,\"\")","v":""},null,{"$f":"IF(C116=1,'Sjekkliste for utfylling'!H224,\" \")","v":" "}]
[{"$f":"'Sjekkliste for utfylling'!A227","v":116},{"$f":"IF('Sjekkliste for utfylling'!F227<>\"\",1,0)","v":0},0,null,{"$f":"IF($C117=1,'Sjekkliste for utfylling'!A227,\"\")","v":""},{"$f":"IF($C117=1,'Sjekkliste for utfylling'!B227,\"\")","v":""},null,{"$f":"IF(C117=1,'Sjekkliste for utfylling'!H227,\" \")","v":" "}]
[{"$f":"'Sjekkliste for utfylling'!A229","v":117},{"$f":"IF('Sjekkliste for utfylling'!F229<>\"\",1,0)","v":0},0,null,{"$f":"IF($C118=1,'Sjekkliste for utfylling'!A229,\"\")","v":""},{"$f":"IF($C118=1,'Sjekkliste for utfylling'!B229,\"\")","v":""},null,{"$f":"IF(C118=1,'Sjekkliste for utfylling'!H229,\" \")","v":" "}]
[{"$f":"'Sjekkliste for utfylling'!A231","v":118},{"$f":"IF('Sjekkliste for utfylling'!F231<>\"\",1,0)","v":0},0,null,{"$f":"IF($C119=1,'Sjekkliste for utfylling'!A231,\"\")","v":""},{"$f":"IF($C119=1,'Sjekkliste for utfylling'!B231,\"\")","v":""},null,{"$f":"IF(C119=1,'Sjekkliste for utfylling'!H231,\" \")","v":" "}]
[{"$f":"'Sjekkliste for utfylling'!A235","v":119},{"$f":"IF('Sjekkliste for utfylling'!F235<>\"\",1,0)","v":0},0,null,{"$f":"IF($C120=1,'Sjekkliste for utfylling'!A235,\"\")","v":""},{"$f":"IF($C120=1,'Sjekkliste for utfylling'!B235,\"\")","v":""},null,{"$f":"IF(C120=1,'Sjekkliste for utfylling'!H235,\" \")","v":" "}]
[{"$f":"'Sjekkliste for utfylling'!A236","v":120},{"$f":"IF('Sjekkliste for utfylling'!F236<>\"\",1,0)","v":0},0,null,{"$f":"IF($C121=1,'Sjekkliste for utfylling'!A236,\"\")","v":""},{"$f":"IF($C121=1,'Sjekkliste for utfylling'!B236,\"\")","v":""},null,{"$f":"IF(C121=1,'Sjekkliste for utfylling'!H236,\" \")","v":" "}]
[{"$f":"'Sjekkliste for utfylling'!A237","v":121},{"$f":"IF('Sjekkliste for utfylling'!F237<>\"\",1,0)","v":0},0,null,{"$f":"IF($C122=1,'Sjekkliste for utfylling'!A237,\"\")","v":""},{"$f":"IF($C122=1,'Sjekkliste for utfylling'!B237,\"\")","v":""},null,{"$f":"IF(C122=1,'Sjekkliste for utfylling'!H237,\" \")","v":" "}]
[{"$f":"'Sjekkliste for utfylling'!A238","v":122},{"$f":"IF('Sjekkliste for utfylling'!F238<>\"\",1,0)","v":0},0,null,{"$f":"IF($C123=1,'Sjekkliste for utfylling'!A238,\"\")","v":""},{"$f":"IF($C123=1,'Sjekkliste for utfylling'!B238,\"\")","v":""},null,{"$f":"IF(C123=1,'Sjekkliste for utfylling'!H238,\" \")","v":" "}]
[{"$f":"'Sjekkliste for utfylling'!A239","v":123},{"$f":"IF('Sjekkliste for utfylling'!F239<>\"\",1,0)","v":0},0,null,{"$f":"IF($C124=1,'Sjekkliste for utfylling'!A239,\"\")","v":""},{"$f":"IF($C124=1,'Sjekkliste for utfylling'!B239,\"\")","v":""},null,{"$f":"IF(C124=1,'Sjekkliste for utfylling'!H239,\" \")","v":" "}]
[{"$f":"'Sjekkliste for utfylling'!A243","v":124},{"$f":"IF('Sjekkliste for utfylling'!F243<>\"\",1,0)","v":0},0,null,{"$f":"IF($C125=1,'Sjekkliste for utfylling'!A243,\"\")","v":""},{"$f":"IF($C125=1,'Sjekkliste for utfylling'!B243,\"\")","v":""},null,{"$f":"IF(C125=1,'Sjekkliste for utfylling'!H243,\" \")","v":" "}]
[{"$f":"'Sjekkliste for utfylling'!A246","v":125},{"$f":"IF('Sjekkliste for utfylling'!F246<>\"\",1,0)","v":0},0,null,{"$f":"IF($C126=1,'Sjekkliste for utfylling'!A246,\"\")","v":""},{"$f":"IF($C126=1,'Sjekkliste for utfylling'!B246,\"\")","v":""},null,{"$f":"IF(C126=1,'Sjekkliste for utfylling'!H246,\" \")","v":" "}]
[{"$f":"'Sjekkliste for utfylling'!A247","v":126},{"$f":"IF('Sjekkliste for utfylling'!F247<>\"\",1,0)","v":0},0,null,{"$f":"IF($C127=1,'Sjekkliste for utfylling'!A247,\"\")","v":""},{"$f":"IF($C127=1,'Sjekkliste for utfylling'!B247,\"\")","v":""},null,{"$f":"IF(C127=1,'Sjekkliste for utfylling'!H247,\" \")","v":" "}]
[{"$f":"'Sjekkliste for utfylling'!A248","v":127},{"$f":"IF('Sjekkliste for utfylling'!F248<>\"\",1,0)","v":0},0,null,{"$f":"IF($C128=1,'Sjekkliste for utfylling'!A248,\"\")","v":""},{"$f":"IF($C128=1,'Sjekkliste for utfylling'!B248,\"\")","v":""},null,{"$f":"IF(C128=1,'Sjekkliste for utfylling'!H248,\" \")","v":" "}]
[{"$f":"'Sjekkliste for utfylling'!A249","v":128},{"$f":"IF('Sjekkliste for utfylling'!F249<>\"\",1,0)","v":0},{"$f":"SUM(B129:B129)","v":0},null,{"$f":"IF($C129=1,'Sjekkliste for utfylling'!A249,\"\")","v":""},{"$f":"IF($C129=1,'Sjekkliste for utfylling'!B249,\"\")","v":""},null,{"$f":"IF(C129=1,'Sjekkliste for utfylling'!H249,\" \")","v":" "}]
[{"$f":"'Sjekkliste for utfylling'!A250","v":129},{"$f":"IF('Sjekkliste for utfylling'!F250<>\"\",1,0)","v":0},0,null,{"$f":"IF($C130=1,'Sjekkliste for utfylling'!A250,\"\")","v":""},{"$f":"IF($C130=1,'Sjekkliste for utfylling'!B250,\"\")","v":""},null,{"$f":"IF(C130=1,'Sjekkliste for utfylling'!H250,\" \")","v":" "}]
[{"$f":"'Sjekkliste for utfylling'!A251","v":130},{"$f":"IF('Sjekkliste for utfylling'!F251<>\"\",1,0)","v":0},0,null,{"$f":"IF($C131=1,'Sjekkliste for utfylling'!A251,\"\")","v":""},{"$f":"IF($C131=1,'Sjekkliste for utfylling'!B251,\"\")","v":""},null,{"$f":"IF(C131=1,'Sjekkliste for utfylling'!H251,\" \")","v":" "}]
[{"$f":"'Sjekkliste for utfylling'!A254","v":131},{"$f":"IF('Sjekkliste for utfylling'!F254<>\"\",1,0)","v":0},0,null,{"$f":"IF($C132=1,'Sjekkliste for utfylling'!A254,\"\")","v":""},{"$f":"IF($C132=1,'Sjekkliste for utfylling'!B254,\"\")","v":""},null,{"$f":"IF(C132=1,'Sjekkliste for utfylling'!H254,\" \")","v":" "}]

{"sheet":"IA-svar","index":8,"n_rows":132,"n_cols":8,"rows_kept":132,"cut":false,"hidden":true,"merged":[]}
[null,null,{"$f":"COUNTIF(C2:C11,\"=1\")-D1","v":0},{"$f":"SUM(D2:D132)","v":0},"IA-svar ",{"$f":"'Sjekkliste for utfylling'!B2","v":0},{"$f":"'Sjekkliste for utfylling'!B3","v":2024},{"$f":"'Sjekkliste for utfylling'!C3","v":0}]
[{"$f":"'Sjekkliste for utfylling'!A13","v":1},{"$f":"IF('Sjekkliste for utfylling'!G13<>\"\",1,0)","v":0},{"$f":"SUM(B2:B2)","v":0},null,{"$f":"IF($C2=1,'Sjekkliste for utfylling'!A13,\"\")","v":""},{"$f":"IF($C2=1,'Sjekkliste for utfylling'!B13,\"\")","v":""},null,{"$f":"IF(C2=1,'Sjekkliste for utfylling'!H13,\" \")","v":" "}]
[{"$f":"'Sjekkliste for utfylling'!A14","v":2},{"$f":"IF('Sjekkliste for utfylling'!G14<>\"\",1,0)","v":0},0,null,{"$f":"IF($C3=1,'Sjekkliste for utfylling'!A14,\"\")","v":""},{"$f":"IF($C3=1,'Sjekkliste for utfylling'!B14,\"\")","v":""},null,{"$f":"IF(C3=1,'Sjekkliste for utfylling'!H14,\" \")","v":" "}]
[{"$f":"'Sjekkliste for utfylling'!A15","v":3},{"$f":"IF('Sjekkliste for utfylling'!G15<>\"\",1,0)","v":0},0,null,{"$f":"IF($C4=1,'Sjekkliste for utfylling'!A15,\"\")","v":""},{"$f":"IF($C4=1,'Sjekkliste for utfylling'!B15,\"\")","v":""},null,{"$f":"IF(C4=1,'Sjekkliste for utfylling'!H15,\" \")","v":" "}]
[{"$f":"'Sjekkliste for utfylling'!A18","v":4},{"$f":"IF('Sjekkliste for utfylling'!G18<>\"\",1,0)","v":0},0,null,{"$f":"IF($C5=1,'Sjekkliste for utfylling'!A18,\"\")","v":""},{"$f":"IF($C5=1,'Sjekkliste for utfylling'!B18,\"\")","v":""},null,{"$f":"IF(C5=1,'Sjekkliste for utfylling'!H18,\" \")","v":" "}]
[{"$f":"'Sjekkliste for utfylling'!A21","v":5},{"$f":"IF('Sjekkliste for utfylling'!G21<>\"\",1,0)","v":0},0,null,{"$f":"IF($C6=1,'Sjekkliste for utfylling'!A21,\"\")","v":""},{"$f":"IF($C6=1,'Sjekkliste for utfylling'!B21,\"\")","v":""},null,{"$f":"IF(C6=1,'Sjekkliste for utfylling'!H21,\" \")","v":" "}]
[{"$f":"'Sjekkliste for utfylling'!A22","v":6},{"$f":"IF('Sjekkliste for utfylling'!G22<>\"\",1,0)","v":0},0,null,{"$f":"IF($C7=1,'Sjekkliste for utfylling'!A22,\"\")","v":""},{"$f":"IF($C7=1,'Sjekkliste for utfylling'!B22,\"\")","v":""},null,{"$f":"IF(C7=1,'Sjekkliste for utfylling'!H22,\" \")","v":" "}]
[{"$f":"'Sjekkliste for utfylling'!A23","v":7},{"$f":"IF('Sjekkliste for utfylling'!G23<>\"\",1,0)","v":0},0,null,{"$f":"IF($C8=1,'Sjekkliste for utfylling'!A23,\"\")","v":""},{"$f":"IF($C8=1,'Sjekkliste for utfylling'!B23,\"\")","v":""},null,{"$f":"IF(C8=1,'Sjekkliste for utfylling'!H23,\" \")","v":" "}]
[{"$f":"'Sjekkliste for utfylling'!A24","v":8},{"$f":"IF('Sjekkliste for utfylling'!G24<>\"\",1,0)","v":0},0,null,{"$f":"IF($C9=1,'Sjekkliste for utfylling'!A24,\"\")","v":""},{"$f":"IF($C9=1,'Sjekkliste for utfylling'!B24,\"\")","v":""},null,{"$f":"IF(C9=1,'Sjekkliste for utfylling'!H24,\" \")","v":" "}]
[{"$f":"'Sjekkliste for utfylling'!A25","v":9},{"$f":"IF('Sjekkliste for utfylling'!G25<>\"\",1,0)","v":0},0,null,{"$f":"IF($C10=1,'Sjekkliste for utfylling'!A25,\"\")","v":""},{"$f":"IF($C10=1,'Sjekkliste for utfylling'!B25,\"\")","v":""},null,{"$f":"IF(C10=1,'Sjekkliste for utfylling'!H25,\" \")","v":" "}]
[{"$f":"'Sjekkliste for utfylling'!A26","v":10},{"$f":"IF('Sjekkliste for utfylling'!G26<>\"\",1,0)","v":0},0,null,{"$f":"IF($C11=1,'Sjekkliste for utfylling'!A26,\"\")","v":""},{"$f":"IF($C11=1,'Sjekkliste for utfylling'!B26,\"\")","v":""},null,{"$f":"IF(C11=1,'Sjekkliste for utfylling'!H26,\" \")","v":" "}]
[{"$f":"'Sjekkliste for utfylling'!A27","v":11},{"$f":"IF('Sjekkliste for utfylling'!G27<>\"\",1,0)","v":0},0,null,{"$f":"IF($C12=1,'Sjekkliste for utfylling'!A27,\"\")","v":""},{"$f":"IF($C12=1,'Sjekkliste for utfylling'!B27,\"\")","v":""},null,{"$f":"IF(C12=1,'Sjekkliste for utfylling'!H27,\" \")","v":" "}]
[{"$f":"'Sjekkliste for utfylling'!A29","v":12},{"$f":"IF('Sjekkliste for utfylling'!G29<>\"\",1,0)","v":0},0,null,{"$f":"IF($C13=1,'Sjekkliste for utfylling'!A29,\"\")","v":""},{"$f":"IF($C13=1,'Sjekkliste for utfylling'!B29,\"\")","v":""},null,{"$f":"IF(C13=1,'Sjekkliste for utfylling'!H29,\" \")","v":" "}]
[{"$f":"'Sjekkliste for utfylling'!A32","v":13},{"$f":"IF('Sjekkliste for utfylling'!G32<>\"\",1,0)","v":0},0,null,{"$f":"IF($C14=1,'Sjekkliste for utfylling'!A32,\"\")","v":""},{"$f":"IF($C14=1,'Sjekkliste for utfylling'!B32,\"\")","v":""},null,{"$f":"IF(C14=1,'Sjekkliste for utfylling'!H32,\" \")","v":" "}]
[{"$f":"'Sjekkliste for utfylling'!A33","v":14},{"$f":"IF('Sjekkliste for utfylling'!G33<>\"\",1,0)","v":0},0,null,{"$f":"IF($C15=1,'Sjekkliste for utfylling'!A33,\"\")","v":""},{"$f":"IF($C15=1,'Sjekkliste for utfylling'!B33,\"\")","v":""},null,{"$f":"IF(C15=1,'Sjekkliste for utfylling'!H33,\" \")","v":" "}]
[{"$f":"'Sjekkliste for utfylling'!A34","v":15},{"$f":"IF('Sjekkliste for utfylling'!G34<>\"\",1,0)","v":0},0,null,{"$f":"IF($C16=1,'Sjekkliste for utfylling'!A34,\"\")","v":""},{"$f":"IF($C16=1,'Sjekkliste for utfylling'!B34,\"\")","v":""},null,{"$f":"IF(C16=1,'Sjekkliste for utfylling'!H34,\" \")","v":" "}]
[{"$f":"'Sjekkliste for utfylling'!A35","v":16},{"$f":"IF('Sjekkliste for utfylling'!G35<>\"\",1,0)","v":0},0,null,{"$f":"IF($C17=1,'Sjekkliste for utfylling'!A35,\"\")","v":""},{"$f":"IF($C17=1,'Sjekkliste for utfylling'!B35,\"\")","v":""},null,{"$f":"IF(C17=1,'Sjekkliste for utfylling'!H35,\" \")","v":" "}]
[{"$f":"'Sjekkliste for utfylling'!A40","v":17},{"$f":"IF('Sjekkliste for utfylling'!G40<>\"\",1,0)","v":0},0,null,{"$f":"IF($C18=1,'Sjekkliste for utfylling'!A40,\"\")","v":""},{"$f":"IF($C18=1,'Sjekkliste for utfylling'!B40,\"\")","v":""},null,{"$f":"IF(C18=1,'Sjekkliste for utfylling'!H40,\" \")","v":" "}]
[{"$f":"'Sjekkliste for utfylling'!A41","v":18},{"$f":"IF('Sjekkliste for utfylling'!G41<>\"\",1,0)","v":0},0,null,{"$f":"IF($C19=1,'Sjekkliste for utfylling'!A41,\"\")","v":""},{"$f":"IF($C19=1,'Sjekkliste for utfylling'!B41,\"\")","v":""},null,{"$f":"IF(C19=1,'Sjekkliste for utfylling'!H41,\" \")","v":" "}]
[{"$f":"'Sjekkliste for utfylling'!A42","v":19},{"$f":"IF('Sjekkliste for utfylling'!G42<>\"\",1,0)","v":0},0,null,{"$f":"IF($C20=1,'Sjekkliste for utfylling'!A42,\"\")","v":""},{"$f":"IF($C20=1,'Sjekkliste for utfylling'!B42,\"\")","v":""},null,{"$f":"IF(C20=1,'Sjekkliste for utfylling'!H42,\" \")","v":" "}]
[{"$f":"'Sjekkliste for utfylling'!A43","v":20},{"$f":"IF('Sjekkliste for utfylling'!G43<>\"\",1,0)","v":0},0,null,{"$f":"IF($C21=1,'Sjekkliste for utfylling'!A43,\"\")","v":""},{"$f":"IF($C21=1,'Sjekkliste for utfylling'!B43,\"\")","v":""},null,{"$f":"IF(C21=1,'Sjekkliste for utfylling'!H43,\" \")","v":" "}]
[{"$f":"'Sjekkliste for utfylling'!A44","v":21},{"$f":"IF('Sjekkliste for utfylling'!G44<>\"\",1,0)","v":0},0,null,{"$f":"IF($C22=1,'Sjekkliste for utfylling'!A44,\"\")","v":""},{"$f":"IF($C22=1,'Sjekkliste for utfylling'!B44,\"\")","v":""},null,{"$f":"IF(C22=1,'Sjekkliste for utfylling'!H44,\" \")","v":" "}]
[{"$f":"'Sjekkliste for utfylling'!A45","v":22},{"$f":"IF('Sjekkliste for utfylling'!G45<>\"\",1,0)","v":0},0,null,{"$f":"IF($C23=1,'Sjekkliste for utfylling'!A45,\"\")","v":""},{"$f":"IF($C23=1,'Sjekkliste for utfylling'!B45,\"\")","v":""},null,{"$f":"IF(C23=1,'Sjekkliste for utfylling'!H45,\" \")","v":" "}]
[{"$f":"'Sjekkliste for utfylling'!A46","v":23},{"$f":"IF('Sjekkliste for utfylling'!G46<>\"\",1,0)","v":0},0,null,{"$f":"IF($C24=1,'Sjekkliste for utfylling'!A46,\"\")","v":""},{"$f":"IF($C24=1,'Sjekkliste for utfylling'!B46,\"\")","v":""},null,{"$f":"IF(C24=1,'Sjekkliste for utfylling'!H46,\" \")","v":" "}]
[{"$f":"'Sjekkliste for utfylling'!A47","v":24},{"$f":"IF('Sjekkliste for utfylling'!G47<>\"\",1,0)","v":0},0,null,{"$f":"IF($C25=1,'Sjekkliste for utfylling'!A47,\"\")","v":""},{"$f":"IF($C25=1,'Sjekkliste for utfylling'!B47,\"\")","v":""},null,{"$f":"IF(C25=1,'Sjekkliste for utfylling'!H47,\" \")","v":" "}]
[{"$f":"'Sjekkliste for utfylling'!A48","v":25},{"$f":"IF('Sjekkliste for utfylling'!G48<>\"\",1,0)","v":0},0,null,{"$f":"IF($C26=1,'Sjekkliste for utfylling'!A48,\"\")","v":""},{"$f":"IF($C26=1,'Sjekkliste for utfylling'!B48,\"\")","v":""},null,{"$f":"IF(C26=1,'Sjekkliste for utfylling'!H48,\" \")","v":" "}]
[{"$f":"'Sjekkliste for utfylling'!A49","v":26},{"$f":"IF('Sjekkliste for utfylling'!G49<>\"\",1,0)","v":0},0,null,{"$f":"IF($C27=1,'Sjekkliste for utfylling'!A49,\"\")","v":""},{"$f":"IF($C27=1,'Sjekkliste for utfylling'!B49,\"\")","v":""},null,{"$f":"IF(C27=1,'Sjekkliste for utfylling'!H49,\" \")","v":" "}]
[{"$f":"'Sjekkliste for utfylling'!A50","v":27},{"$f":"IF('Sjekkliste for utfylling'!G50<>\"\",1,0)","v":0},0,null,{"$f":"IF($C28=1,'Sjekkliste for utfylling'!A50,\"\")","v":""},{"$f":"IF($C28=1,'Sjekkliste for utfylling'!B50,\"\")","v":""},null,{"$f":"IF(C28=1,'Sjekkliste for utfylling'!H50,\" \")","v":" "}]
[{"$f":"'Sjekkliste for utfylling'!A51","v":28},{"$f":"IF('Sjekkliste for utfylling'!G51<>\"\",1,0)","v":0},0,null,{"$f":"IF($C29=1,'Sjekkliste for utfylling'!A51,\"\")","v":""},{"$f":"IF($C29=1,'Sjekkliste for utfylling'!B51,\"\")","v":""},null,{"$f":"IF(C29=1,'Sjekkliste for utfylling'!H51,\" \")","v":" "}]
[{"$f":"'Sjekkliste for utfylling'!A53","v":29},{"$f":"IF('Sjekkliste for utfylling'!G53<>\"\",1,0)","v":0},0,null,{"$f":"IF($C30=1,'Sjekkliste for utfylling'!A53,\"\")","v":""},{"$f":"IF($C30=1,'Sjekkliste for utfylling'!B53,\"\")","v":""},null,{"$f":"IF(C30=1,'Sjekkliste for utfylling'!H53,\" \")","v":" "}]
[{"$f":"'Sjekkliste for utfylling'!A54","v":30},{"$f":"IF('Sjekkliste for utfylling'!G54<>\"\",1,0)","v":0},0,null,{"$f":"IF($C31=1,'Sjekkliste for utfylling'!A54,\"\")","v":""},{"$f":"IF($C31=1,'Sjekkliste for utfylling'!B54,\"\")","v":""},null,{"$f":"IF(C31=1,'Sjekkliste for utfylling'!H54,\" \")","v":" "}]
[{"$f":"'Sjekkliste for utfylling'!A56","v":31},{"$f":"IF('Sjekkliste for utfylling'!G56<>\"\",1,0)","v":0},0,null,{"$f":"IF($C32=1,'Sjekkliste for utfylling'!A56,\"\")","v":""},{"$f":"IF($C32=1,'Sjekkliste for utfylling'!B56,\"\")","v":""},null,{"$f":"IF(C32=1,'Sjekkliste for utfylling'!H56,\" \")","v":" "}]
[{"$f":"'Sjekkliste for utfylling'!A60","v":32},{"$f":"IF('Sjekkliste for utfylling'!G60<>\"\",1,0)","v":0},0,null,{"$f":"IF($C33=1,'Sjekkliste for utfylling'!A60,\"\")","v":""},{"$f":"IF($C33=1,'Sjekkliste for utfylling'!B60,\"\")","v":""},null,{"$f":"IF(C33=1,'Sjekkliste for utfylling'!H60,\" \")","v":" "}]
[{"$f":"'Sjekkliste for utfylling'!A64","v":33},{"$f":"IF('Sjekkliste for utfylling'!G64<>\"\",1,0)","v":0},{"$f":"SUM(B34:B34)","v":0},null,{"$f":"IF($C34=1,'Sjekkliste for utfylling'!A64,\"\")","v":""},{"$f":"IF($C34=1,'Sjekkliste for utfylling'!B64,\"\")","v":""},null,{"$f":"IF(C34=1,'Sjekkliste for utfylling'!H64,\" \")","v":" "}]
[{"$f":"'Sjekkliste for utfylling'!A65","v":34},{"$f":"IF('Sjekkliste for utfylling'!G65<>\"\",1,0)","v":0},0,null,{"$f":"IF($C35=1,'Sjekkliste for utfylling'!A65,\"\")","v":""},{"$f":"IF($C35=1,'Sjekkliste for utfylling'!B65,\"\")","v":""},null,{"$f":"IF(C35=1,'Sjekkliste for utfylling'!H65,\" \")","v":" "}]
[{"$f":"'Sjekkliste for utfylling'!A66","v":35},{"$f":"IF('Sjekkliste for utfylling'!G66<>\"\",1,0)","v":0},0,null,{"$f":"IF($C36=1,'Sjekkliste for utfylling'!A66,\"\")","v":""},{"$f":"IF($C36=1,'Sjekkliste for utfylling'!B66,\"\")","v":""},null,{"$f":"IF(C36=1,'Sjekkliste for utfylling'!H66,\" \")","v":" "}]
[{"$f":"'Sjekkliste for utfylling'!A67","v":36},{"$f":"IF('Sjekkliste for utfylling'!G67<>\"\",1,0)","v":0},0,null,{"$f":"IF($C37=1,'Sjekkliste for utfylling'!A67,\"\")","v":""},{"$f":"IF($C37=1,'Sjekkliste for utfylling'!B67,\"\")","v":""},null,{"$f":"IF(C37=1,'Sjekkliste for utfylling'!H67,\" \")","v":" "}]
[{"$f":"'Sjekkliste for utfylling'!A68","v":37},{"$f":"IF('Sjekkliste for utfylling'!G68<>\"\",1,0)","v":0},0,null,{"$f":"IF($C38=1,'Sjekkliste for utfylling'!A68,\"\")","v":""},{"$f":"IF($C38=1,'Sjekkliste for utfylling'!B68,\"\")","v":""},null,{"$f":"IF(C38=1,'Sjekkliste for utfylling'!H68,\" \")","v":" "}]
[{"$f":"'Sjekkliste for utfylling'!A75","v":38},{"$f":"IF('Sjekkliste for utfylling'!G75<>\"\",1,0)","v":0},0,null,{"$f":"IF($C39=1,'Sjekkliste for utfylling'!A75,\"\")","v":""},{"$f":"IF($C39=1,'Sjekkliste for utfylling'!B75,\"\")","v":""},null,{"$f":"IF(C39=1,'Sjekkliste for utfylling'!H75,\" \")","v":" "}]
[{"$f":"'Sjekkliste for utfylling'!A76","v":39},{"$f":"IF('Sjekkliste for utfylling'!G76<>\"\",1,0)","v":0},0,null,{"$f":"IF($C40=1,'Sjekkliste for utfylling'!A76,\"\")","v":""},{"$f":"IF($C40=1,'Sjekkliste for utfylling'!B76,\"\")","v":""},null,{"$f":"IF(C40=1,'Sjekkliste for utfylling'!H76,\" \")","v":" "}]
[{"$f":"'Sjekkliste for utfylling'!A77","v":40},{"$f":"IF('Sjekkliste for utfylling'!G77<>\"\",1,0)","v":0},0,null,{"$f":"IF($C41=1,'Sjekkliste for utfylling'!A77,\"\")","v":""},{"$f":"IF($C41=1,'Sjekkliste for utfylling'!B77,\"\")","v":""},null,{"$f":"IF(C41=1,'Sjekkliste for utfylling'!H77,\" \")","v":" "}]
[{"$f":"'Sjekkliste for utfylling'!A78","v":41},{"$f":"IF('Sjekkliste for utfylling'!G78<>\"\",1,0)","v":0},0,null,{"$f":"IF($C42=1,'Sjekkliste for utfylling'!A78,\"\")","v":""},{"$f":"IF($C42=1,'Sjekkliste for utfylling'!B78,\"\")","v":""},null,{"$f":"IF(C42=1,'Sjekkliste for utfylling'!H78,\" \")","v":" "}]
[{"$f":"'Sjekkliste for utfylling'!A79","v":42},{"$f":"IF('Sjekkliste for utfylling'!G79<>\"\",1,0)","v":0},0,null,{"$f":"IF($C43=1,'Sjekkliste for utfylling'!A79,\"\")","v":""},{"$f":"IF($C43=1,'Sjekkliste for utfylling'!B79,\"\")","v":""},null,{"$f":"IF(C43=1,'Sjekkliste for utfylling'!H79,\" \")","v":" "}]
[{"$f":"'Sjekkliste for utfylling'!A81","v":43},{"$f":"IF('Sjekkliste for utfylling'!G81<>\"\",1,0)","v":0},0,null,{"$f":"IF($C44=1,'Sjekkliste for utfylling'!A81,\"\")","v":""},{"$f":"IF($C44=1,'Sjekkliste for utfylling'!B81,\"\")","v":""},null,{"$f":"IF(C44=1,'Sjekkliste for utfylling'!H81,\" \")","v":" "}]
[{"$f":"'Sjekkliste for utfylling'!A84","v":44},{"$f":"IF('Sjekkliste for utfylling'!G84<>\"\",1,0)","v":0},0,null,{"$f":"IF($C45=1,'Sjekkliste for utfylling'!A84,\"\")","v":""},{"$f":"IF($C45=1,'Sjekkliste for utfylling'!B84,\"\")","v":""},null,{"$f":"IF(C45=1,'Sjekkliste for utfylling'!H84,\" \")","v":" "}]
[{"$f":"'Sjekkliste for utfylling'!A85","v":45},{"$f":"IF('Sjekkliste for utfylling'!G85<>\"\",1,0)","v":0},0,null,{"$f":"IF($C46=1,'Sjekkliste for utfylling'!A85,\"\")","v":""},{"$f":"IF($C46=1,'Sjekkliste for utfylling'!B85,\"\")","v":""},null,{"$f":"IF(C46=1,'Sjekkliste for utfylling'!H85,\" \")","v":" "}]
[{"$f":"'Sjekkliste for utfylling'!A87","v":46},{"$f":"IF('Sjekkliste for utfylling'!G87<>\"\",1,0)","v":0},0,null,{"$f":"IF($C47=1,'Sjekkliste for utfylling'!A87,\"\")","v":""},{"$f":"IF($C47=1,'Sjekkliste for utfylling'!B87,\"\")","v":""},null,{"$f":"IF(C47=1,'Sjekkliste for utfylling'!H87,\" \")","v":" "}]
[{"$f":"'Sjekkliste for utfylling'!A88","v":47},{"$f":"IF('Sjekkliste for utfylling'!G88<>\"\",1,0)","v":0},0,null,{"$f":"IF($C48=1,'Sjekkliste for utfylling'!A88,\"\")","v":""},{"$f":"IF($C48=1,'Sjekkliste for utfylling'!B88,\"\")","v":""},null,{"$f":"IF(C48=1,'Sjekkliste for utfylling'!H88,\" \")","v":" "}]
[{"$f":"'Sjekkliste for utfylling'!A92","v":48},{"$f":"IF('Sjekkliste for utfylling'!G92<>\"\",1,0)","v":0},0,null,{"$f":"IF($C49=1,'Sjekkliste for utfylling'!A92,\"\")","v":""},{"$f":"IF($C49=1,'Sjekkliste for utfylling'!B92,\"\")","v":""},null,{"$f":"IF(C49=1,'Sjekkliste for utfylling'!H92,\" \")","v":" "}]
[{"$f":"'Sjekkliste for utfylling'!A93","v":49},{"$f":"IF('Sjekkliste for utfylling'!G93<>\"\",1,0)","v":0},0,null,{"$f":"IF($C50=1,'Sjekkliste for utfylling'!A93,\"\")","v":""},{"$f":"IF($C50=1,'Sjekkliste for utfylling'!B93,\"\")","v":""},null,{"$f":"IF(C50=1,'Sjekkliste for utfylling'!H93,\" \")","v":" "}]
[{"$f":"'Sjekkliste for utfylling'!A99","v":50},{"$f":"IF('Sjekkliste for utfylling'!G99<>\"\",1,0)","v":0},0,null,{"$f":"IF($C51=1,'Sjekkliste for utfylling'!A99,\"\")","v":""},{"$f":"IF($C51=1,'Sjekkliste for utfylling'!B99,\"\")","v":""},null,{"$f":"IF(C51=1,'Sjekkliste for utfylling'!H99,\" \")","v":" "}]
[{"$f":"'Sjekkliste for utfylling'!A101","v":51},{"$f":"IF('Sjekkliste for utfylling'!G101<>\"\",1,0)","v":0},0,null,{"$f":"IF($C52=1,'Sjekkliste for utfylling'!A101,\"\")","v":""},{"$f":"IF($C52=1,'Sjekkliste for utfylling'!B101,\"\")","v":""},null,{"$f":"IF(C52=1,'Sjekkliste for utfylling'!H101,\" \")","v":" "}]
[{"$f":"'Sjekkliste for utfylling'!A103","v":52},{"$f":"IF('Sjekkliste for utfylling'!G103<>\"\",1,0)","v":0},0,null,{"$f":"IF($C53=1,'Sjekkliste for utfylling'!A103,\"\")","v":""},{"$f":"IF($C53=1,'Sjekkliste for utfylling'!B103,\"\")","v":""},null,{"$f":"IF(C53=1,'Sjekkliste for utfylling'!H103,\" \")","v":" "}]
[{"$f":"'Sjekkliste for utfylling'!A104","v":53},{"$f":"IF('Sjekkliste for utfylling'!G104<>\"\",1,0)","v":0},0,null,{"$f":"IF($C54=1,'Sjekkliste for utfylling'!A104,\"\")","v":""},{"$f":"IF($C54=1,'Sjekkliste for utfylling'!B104,\"\")","v":""},null,{"$f":"IF(C54=1,'Sjekkliste for utfylling'!H104,\" \")","v":" "}]
[{"$f":"'Sjekkliste for utfylling'!A105","v":54},{"$f":"IF('Sjekkliste for utfylling'!G105<>\"\",1,0)","v":0},0,null,{"$f":"IF($C55=1,'Sjekkliste for utfylling'!A105,\"\")","v":""},{"$f":"IF($C55=1,'Sjekkliste for utfylling'!B105,\"\")","v":""},null,{"$f":"IF(C55=1,'Sjekkliste for utfylling'!H105,\" \")","v":" "}]
[{"$f":"'Sjekkliste for utfylling'!A107","v":55},{"$f":"IF('Sjekkliste for utfylling'!G107<>\"\",1,0)","v":0},0,null,{"$f":"IF($C56=1,'Sjekkliste for utfylling'!A107,\"\")","v":""},{"$f":"IF($C56=1,'Sjekkliste for utfylling'!B107,\"\")","v":""},null,{"$f":"IF(C56=1,'Sjekkliste for utfylling'!H107,\" \")","v":" "}]
[{"$f":"'Sjekkliste for utfylling'!A111","v":56},{"$f":"IF('Sjekkliste for utfylling'!G111<>\"\",1,0)","v":0},0,null,{"$f":"IF($C57=1,'Sjekkliste for utfylling'!A111,\"\")","v":""},{"$f":"IF($C57=1,'Sjekkliste for utfylling'!B111,\"\")","v":""},null,{"$f":"IF(C57=1,'Sjekkliste for utfylling'!H111,\" \")","v":" "}]
[{"$f":"'Sjekkliste for utfylling'!A119","v":57},{"$f":"IF('Sjekkliste for utfylling'!G119<>\"\",1,0)","v":0},0,null,{"$f":"IF($C58=1,'Sjekkliste for utfylling'!A119,\"\")","v":""},{"$f":"IF($C58=1,'Sjekkliste for utfylling'!B119,\"\")","v":""},null,{"$f":"IF(C58=1,'Sjekkliste for utfylling'!H119,\" \")","v":" "}]
[{"$f":"'Sjekkliste for utfylling'!A120","v":58},{"$f":"IF('Sjekkliste for utfylling'!G120<>\"\",1,0)","v":0},0,null,{"$f":"IF($C59=1,'Sjekkliste for utfylling'!A120,\"\")","v":""},{"$f":"IF($C59=1,'Sjekkliste for utfylling'!B120,\"\")","v":""},null,{"$f":"IF(C59=1,'Sjekkliste for utfylling'!H120,\" \")","v":" "}]
[{"$f":"'Sjekkliste for utfylling'!A121","v":59},{"$f":"IF('Sjekkliste for utfylling'!G121<>\"\",1,0)","v":0},0,null,{"$f":"IF($C60=1,'Sjekkliste for utfylling'!A121,\"\")","v":""},{"$f":"IF($C60=1,'Sjekkliste for utfylling'!B121,\"\")","v":""},null,{"$f":"IF(C60=1,'Sjekkliste for utfylling'!H121,\" \")","v":" "}]
[{"$f":"'Sjekkliste for utfylling'!A122","v":60},{"$f":"IF('Sjekkliste for utfylling'!G122<>\"\",1,0)","v":0},0,null,{"$f":"IF($C61=1,'Sjekkliste for utfylling'!A122,\"\")","v":""},{"$f":"IF($C61=1,'Sjekkliste for utfylling'!B122,\"\")","v":""},null,{"$f":"IF(C61=1,'Sjekkliste for utfylling'!H122,\" \")","v":" "}]
[{"$f":"'Sjekkliste for utfylling'!A123","v":61},{"$f":"IF('Sjekkliste for utfylling'!G123<>\"\",1,0)","v":0},0,null,{"$f":"IF($C62=1,'Sjekkliste for utfylling'!A123,\"\")","v":""},{"$f":"IF($C62=1,'Sjekkliste for utfylling'!B123,\"\")","v":""},null,{"$f":"IF(C62=1,'Sjekkliste for utfylling'!H123,\" \")","v":" "}]
[{"$f":"'Sjekkliste for utfylling'!A124","v":62},{"$f":"IF('Sjekkliste for utfylling'!G124<>\"\",1,0)","v":0},0,null,{"$f":"IF($C63=1,'Sjekkliste for utfylling'!A124,\"\")","v":""},{"$f":"IF($C63=1,'Sjekkliste for utfylling'!B124,\"\")","v":""},null,{"$f":"IF(C63=1,'Sjekkliste for utfylling'!H124,\" \")","v":" "}]
[{"$f":"'Sjekkliste for utfylling'!A129","v":63},{"$f":"IF('Sjekkliste for utfylling'!G129<>\"\",1,0)","v":0},0,null,{"$f":"IF($C64=1,'Sjekkliste for utfylling'!A129,\"\")","v":""},{"$f":"IF($C64=1,'Sjekkliste for utfylling'!B129,\"\")","v":""},null,{"$f":"IF(C64=1,'Sjekkliste for utfylling'!H129,\" \")","v":" "}]
[{"$f":"'Sjekkliste for utfylling'!A131","v":64},{"$f":"IF('Sjekkliste for utfylling'!G131<>\"\",1,0)","v":0},0,null,{"$f":"IF($C65=1,'Sjekkliste for utfylling'!A131,\"\")","v":""},{"$f":"IF($C65=1,'Sjekkliste for utfylling'!B131,\"\")","v":""},null,{"$f":"IF(C65=1,'Sjekkliste for utfylling'!H131,\" \")","v":" "}]
[{"$f":"'Sjekkliste for utfylling'!A132","v":65},{"$f":"IF('Sjekkliste for utfylling'!G132<>\"\",1,0)","v":0},{"$f":"SUM(B66:B66)","v":0},null,{"$f":"IF($C66=1,'Sjekkliste for utfylling'!A132,\"\")","v":""},{"$f":"IF($C66=1,'Sjekkliste for utfylling'!B132,\"\")","v":""},null,{"$f":"IF(C66=1,'Sjekkliste for utfylling'!H132,\" \")","v":" "}]
[{"$f":"'Sjekkliste for utfylling'!A133","v":66},{"$f":"IF('Sjekkliste for utfylling'!G133<>\"\",1,0)","v":0},0,null,{"$f":"IF($C67=1,'Sjekkliste for utfylling'!A133,\"\")","v":""},{"$f":"IF($C67=1,'Sjekkliste for utfylling'!B133,\"\")","v":""},null,{"$f":"IF(C67=1,'Sjekkliste for utfylling'!H133,\" \")","v":" "}]
[{"$f":"'Sjekkliste for utfylling'!A138","v":67},{"$f":"IF('Sjekkliste for utfylling'!G138<>\"\",1,0)","v":0},0,null,{"$f":"IF($C68=1,'Sjekkliste for utfylling'!A138,\"\")","v":""},{"$f":"IF($C68=1,'Sjekkliste for utfylling'!B138,\"\")","v":""},null,{"$f":"IF(C68=1,'Sjekkliste for utfylling'!H138,\" \")","v":" "}]
[{"$f":"'Sjekkliste for utfylling'!A139","v":68},{"$f":"IF('Sjekkliste for utfylling'!G139<>\"\",1,0)","v":0},0,null,{"$f":"IF($C69=1,'Sjekkliste for utfylling'!A139,\"\")","v":""},{"$f":"IF($C69=1,'Sjekkliste for utfylling'!B139,\"\")","v":""},null,{"$f":"IF(C69=1,'Sjekkliste for utfylling'!H139,\" \")","v":" "}]
[{"$f":"'Sjekkliste for utfylling'!A140","v":69},{"$f":"IF('Sjekkliste for utfylling'!G140<>\"\",1,0)","v":0},0,null,{"$f":"IF($C70=1,'Sjekkliste for utfylling'!A140,\"\")","v":""},{"$f":"IF($C70=1,'Sjekkliste for utfylling'!B140,\"\")","v":""},null,{"$f":"IF(C70=1,'Sjekkliste for utfylling'!H140,\" \")","v":" "}]
[{"$f":"'Sjekkliste for utfylling'!A142","v":70},{"$f":"IF('Sjekkliste for utfylling'!G142<>\"\",1,0)","v":0},0,null,{"$f":"IF($C71=1,'Sjekkliste for utfylling'!A142,\"\")","v":""},{"$f":"IF($C71=1,'Sjekkliste for utfylling'!B142,\"\")","v":""},null,{"$f":"IF(C71=1,'Sjekkliste for utfylling'!H142,\" \")","v":" "}]
[{"$f":"'Sjekkliste for utfylling'!A144","v":71},{"$f":"IF('Sjekkliste for utfylling'!G144<>\"\",1,0)","v":0},0,null,{"$f":"IF($C72=1,'Sjekkliste for utfylling'!A144,\"\")","v":""},{"$f":"IF($C72=1,'Sjekkliste for utfylling'!B144,\"\")","v":""},null,{"$f":"IF(C72=1,'Sjekkliste for utfylling'!H144,\" \")","v":" "}]
[{"$f":"'Sjekkliste for utfylling'!A146","v":72},{"$f":"IF('Sjekkliste for utfylling'!G146<>\"\",1,0)","v":0},0,null,{"$f":"IF($C73=1,'Sjekkliste for utfylling'!A146,\"\")","v":""},{"$f":"IF($C73=1,'Sjekkliste for utfylling'!B146,\"\")","v":""},null,{"$f":"IF(C73=1,'Sjekkliste for utfylling'!H146,\" \")","v":" "}]
[{"$f":"'Sjekkliste for utfylling'!A149","v":73},{"$f":"IF('Sjekkliste for utfylling'!G149<>\"\",1,0)","v":0},0,null,{"$f":"IF($C74=1,'Sjekkliste for utfylling'!A149,\"\")","v":""},{"$f":"IF($C74=1,'Sjekkliste for utfylling'!B149,\"\")","v":""},null,{"$f":"IF(C74=1,'Sjekkliste for utfylling'!H149,\" \")","v":" "}]
[{"$f":"'Sjekkliste for utfylling'!A150","v":74},{"$f":"IF('Sjekkliste for utfylling'!G150<>\"\",1,0)","v":0},0,null,{"$f":"IF($C75=1,'Sjekkliste for utfylling'!A150,\"\")","v":""},{"$f":"IF($C75=1,'Sjekkliste for utfylling'!B150,\"\")","v":""},null,{"$f":"IF(C75=1,'Sjekkliste for utfylling'!H150,\" \")","v":" "}]
[{"$f":"'Sjekkliste for utfylling'!A151","v":75},{"$f":"IF('Sjekkliste for utfylling'!G151<>\"\",1,0)","v":0},0,null,{"$f":"IF($C76=1,'Sjekkliste for utfylling'!A151,\"\")","v":""},{"$f":"IF($C76=1,'Sjekkliste for utfylling'!B151,\"\")","v":""},null,{"$f":"IF(C76=1,'Sjekkliste for utfylling'!H151,\" \")","v":" "}]
[{"$f":"'Sjekkliste for utfylling'!A152","v":76},{"$f":"IF('Sjekkliste for utfylling'!G152<>\"\",1,0)","v":0},0,null,{"$f":"IF($C77=1,'Sjekkliste for utfylling'!A152,\"\")","v":""},{"$f":"IF($C77=1,'Sjekkliste for utfylling'!B152,\"\")","v":""},null,{"$f":"IF(C77=1,'Sjekkliste for utfylling'!H152,\" \")","v":" "}]
[{"$f":"'Sjekkliste for utfylling'!A154","v":77},{"$f":"IF('Sjekkliste for utfylling'!G154<>\"\",1,0)","v":0},0,null,{"$f":"IF($C78=1,'Sjekkliste for utfylling'!A154,\"\")","v":""},{"$f":"IF($C78=1,'Sjekkliste for utfylling'!B154,\"\")","v":""},null,{"$f":"IF(C78=1,'Sjekkliste for utfylling'!H154,\" \")","v":" "}]
[{"$f":"'Sjekkliste for utfylling'!A158","v":78},{"$f":"IF('Sjekkliste for utfylling'!G158<>\"\",1,0)","v":0},0,null,{"$f":"IF($C79=1,'Sjekkliste for utfylling'!A158,\"\")","v":""},{"$f":"IF($C79=1,'Sjekkliste for utfylling'!B158,\"\")","v":""},null,{"$f":"IF(C79=1,'Sjekkliste for utfylling'!H158,\" \")","v":" "}]
[{"$f":"'Sjekkliste for utfylling'!A160","v":79},{"$f":"IF('Sjekkliste for utfylling'!G160<>\"\",1,0)","v":0},0,null,{"$f":"IF($C80=1,'Sjekkliste for utfylling'!A160,\"\")","v":""},{"$f":"IF($C80=1,'Sjekkliste for utfylling'!B160,\"\")","v":""},null,{"$f":"IF(C80=1,'Sjekkliste for utfylling'!H160,\" \")","v":" "}]
[{"$f":"'Sjekkliste for utfylling'!A161","v":80},{"$f":"IF('Sjekkliste for utfylling'!G161<>\"\",1,0)","v":0},0,null,{"$f":"IF($C81=1,'Sjekkliste for utfylling'!A161,\"\")","v":""},{"$f":"IF($C81=1,'Sjekkliste for utfylling'!B161,\"\")","v":""},null,{"$f":"IF(C81=1,'Sjekkliste for utfylling'!H161,\" \")","v":" "}]
[{"$f":"'Sjekkliste for utfylling'!A162","v":81},{"$f":"IF('Sjekkliste for utfylling'!G162<>\"\",1,0)","v":0},0,null,{"$f":"IF($C82=1,'Sjekkliste for utfylling'!A162,\"\")","v":""},{"$f":"IF($C82=1,'Sjekkliste for utfylling'!B162,\"\")","v":""},null,{"$f":"IF(C82=1,'Sjekkliste for utfylling'!H162,\" \")","v":" "}]
[{"$f":"'Sjekkliste for utfylling'!A169","v":82},{"$f":"IF('Sjekkliste for utfylling'!G169<>\"\",1,0)","v":0},0,null,{"$f":"IF($C83=1,'Sjekkliste for utfylling'!A169,\"\")","v":""},{"$f":"IF($C83=1,'Sjekkliste for utfylling'!B169,\"\")","v":""},null,{"$f":"IF(C83=1,'Sjekkliste for utfylling'!H169,\" \")","v":" "}]
[{"$f":"'Sjekkliste for utfylling'!A170","v":83},{"$f":"IF('Sjekkliste for utfylling'!G170<>\"\",1,0)","v":0},0,null,{"$f":"IF($C84=1,'Sjekkliste for utfylling'!A170,\"\")","v":""},{"$f":"IF($C84=1,'Sjekkliste for utfylling'!B170,\"\")","v":""},null,{"$f":"IF(C84=1,'Sjekkliste for utfylling'!H170,\" \")","v":" "}]
[{"$f":"'Sjekkliste for utfylling'!A171","v":84},{"$f":"IF('Sjekkliste for utfylling'!G171<>\"\",1,0)","v":0},0,null,{"$f":"IF($C85=1,'Sjekkliste for utfylling'!A171,\"\")","v":""},{"$f":"IF($C85=1,'Sjekkliste for utfylling'!B171,\"\")","v":""},null,{"$f":"IF(C85=1,'Sjekkliste for utfylling'!H171,\" \")","v":" "}]
[{"$f":"'Sjekkliste for utfylling'!A173","v":85},{"$f":"IF('Sjekkliste for utfylling'!G173<>\"\",1,0)","v":0},0,null,{"$f":"IF($C86=1,'Sjekkliste for utfylling'!A173,\"\")","v":""},{"$f":"IF($C86=1,'Sjekkliste for utfylling'!B173,\"\")","v":""},null,{"$f":"IF(C86=1,'Sjekkliste for utfylling'!H173,\" \")","v":" "}]
[{"$f":"'Sjekkliste for utfylling'!A174","v":86},{"$f":"IF('Sjekkliste for utfylling'!G174<>\"\",1,0)","v":0},0,null,{"$f":"IF($C87=1,'Sjekkliste for utfylling'!A174,\"\")","v":""},{"$f":"IF($C87=1,'Sjekkliste for utfylling'!B174,\"\")","v":""},null,{"$f":"IF(C87=1,'Sjekkliste for utfylling'!H174,\" \")","v":" "}]
[{"$f":"'Sjekkliste for utfylling'!A175","v":87},{"$f":"IF('Sjekkliste for utfylling'!G175<>\"\",1,0)","v":0},0,null,{"$f":"IF($C88=1,'Sjekkliste for utfylling'!A175,\"\")","v":""},{"$f":"IF($C88=1,'Sjekkliste for utfylling'!B175,\"\")","v":""},null,{"$f":"IF(C88=1,'Sjekkliste for utfylling'!H175,\" \")","v":" "}]
[{"$f":"'Sjekkliste for utfylling'!A177","v":88},{"$f":"IF('Sjekkliste for utfylling'!G177<>\"\",1,0)","v":0},0,null,{"$f":"IF($C89=1,'Sjekkliste for utfylling'!A177,\"\")","v":""},{"$f":"IF($C89=1,'Sjekkliste for utfylling'!B177,\"\")","v":""},null,{"$f":"IF(C89=1,'Sjekkliste for utfylling'!H177,\" \")","v":" "}]
[{"$f":"'Sjekkliste for utfylling'!A178","v":89},{"$f":"IF('Sjekkliste for utfylling'!G178<>\"\",1,0)","v":0},0,null,{"$f":"IF($C90=1,'Sjekkliste for utfylling'!A178,\"\")","v":""},{"$f":"IF($C90=1,'Sjekkliste for utfylling'!B178,\"\")","v":""},null,{"$f":"IF(C90=1,'Sjekkliste for utfylling'!H178,\" \")","v":" "}]
[{"$f":"'Sjekkliste for utfylling'!A179","v":90},{"$f":"IF('Sjekkliste for utfylling'!G179<>\"\",1,0)","v":0},0,null,{"$f":"IF($C91=1,'Sjekkliste for utfylling'!A179,\"\")","v":""},{"$f":"IF($C91=1,'Sjekkliste for utfylling'!B179,\"\")","v":""},null,{"$f":"IF(C91=1,'Sjekkliste for utfylling'!H179,\" \")","v":" "}]
[{"$f":"'Sjekkliste for utfylling'!A180","v":91},{"$f":"IF('Sjekkliste for utfylling'!G180<>\"\",1,0)","v":0},0,null,{"$f":"IF($C92=1,'Sjekkliste for utfylling'!A180,\"\")","v":""},{"$f":"IF($C92=1,'Sjekkliste for utfylling'!B180,\"\")","v":""},null,{"$f":"IF(C92=1,'Sjekkliste for utfylling'!H180,\" \")","v":" "}]
[{"$f":"'Sjekkliste for utfylling'!A181","v":92},{"$f":"IF('Sjekkliste for utfylling'!G181<>\"\",1,0)","v":0},0,null,{"$f":"IF($C93=1,'Sjekkliste for utfylling'!A181,\"\")","v":""},{"$f":"IF($C93=1,'Sjekkliste for utfylling'!B181,\"\")","v":""},null,{"$f":"IF(C93=1,'Sjekkliste for utfylling'!H181,\" \")","v":" "}]
[{"$f":"'Sjekkliste for utfylling'!A193","v":93},{"$f":"IF('Sjekkliste for utfylling'!G193<>\"\",1,0)","v":0},0,null,{"$f":"IF($C94=1,'Sjekkliste for utfylling'!A193,\"\")","v":""},{"$f":"IF($C94=1,'Sjekkliste for utfylling'!B193,\"\")","v":""},null,{"$f":"IF(C94=1,'Sjekkliste for utfylling'!H193,\" \")","v":" "}]
[{"$f":"'Sjekkliste for utfylling'!A195","v":94},{"$f":"IF('Sjekkliste for utfylling'!G195<>\"\",1,0)","v":0},0,null,{"$f":"IF($C95=1,'Sjekkliste for utfylling'!A195,\"\")","v":""},{"$f":"IF($C95=1,'Sjekkliste for utfylling'!B195,\"\")","v":""},null,{"$f":"IF(C95=1,'Sjekkliste for utfylling'!H195,\" \")","v":" "}]
[{"$f":"'Sjekkliste for utfylling'!A196","v":95},{"$f":"IF('Sjekkliste for utfylling'!G196<>\"\",1,0)","v":0},0,null,{"$f":"IF($C96=1,'Sjekkliste for utfylling'!A196,\"\")","v":""},{"$f":"IF($C96=1,'Sjekkliste for utfylling'!B196,\"\")","v":""},null,{"$f":"IF(C96=1,'Sjekkliste for utfylling'!H196,\" \")","v":" "}]
[{"$f":"'Sjekkliste for utfylling'!A197","v":96},{"$f":"IF('Sjekkliste for utfylling'!G197<>\"\",1,0)","v":0},{"$f":"SUM(B97:B97)","v":0},null,{"$f":"IF($C97=1,'Sjekkliste for utfylling'!A197,\"\")","v":""},{"$f":"IF($C97=1,'Sjekkliste for utfylling'!B197,\"\")","v":""},null,{"$f":"IF(C97=1,'Sjekkliste for utfylling'!H197,\" \")","v":" "}]
[{"$f":"'Sjekkliste for utfylling'!A198","v":97},{"$f":"IF('Sjekkliste for utfylling'!G198<>\"\",1,0)","v":0},0,null,{"$f":"IF($C98=1,'Sjekkliste for utfylling'!A198,\"\")","v":""},{"$f":"IF($C98=1,'Sjekkliste for utfylling'!B198,\"\")","v":""},null,{"$f":"IF(C98=1,'Sjekkliste for utfylling'!H198,\" \")","v":" "}]
[{"$f":"'Sjekkliste for utfylling'!A199","v":98},{"$f":"IF('Sjekkliste for utfylling'!G199<>\"\",1,0)","v":0},0,null,{"$f":"IF($C99=1,'Sjekkliste for utfylling'!A199,\"\")","v":""},{"$f":"IF($C99=1,'Sjekkliste for utfylling'!B199,\"\")","v":""},null,{"$f":"IF(C99=1,'Sjekkliste for utfylling'!H199,\" \")","v":" "}]
[{"$f":"'Sjekkliste for utfylling'!A201","v":99},{"$f":"IF('Sjekkliste for utfylling'!G201<>\"\",1,0)","v":0},0,null,{"$f":"IF($C100=1,'Sjekkliste for utfylling'!A201,\"\")","v":""},{"$f":"IF($C100=1,'Sjekkliste for utfylling'!B201,\"\")","v":""},null,{"$f":"IF(C100=1,'Sjekkliste for utfylling'!H201,\" \")","v":" "}]
[{"$f":"'Sjekkliste for utfylling'!A202","v":100},{"$f":"IF('Sjekkliste for utfylling'!G202<>\"\",1,0)","v":0},0,null,{"$f":"IF($C101=1,'Sjekkliste for utfylling'!A202,\"\")","v":""},{"$f":"IF($C101=1,'Sjekkliste for utfylling'!B202,\"\")","v":""},null,{"$f":"IF(C101=1,'Sjekkliste for utfylling'!H202,\" \")","v":" "}]
[{"$f":"'Sjekkliste for utfylling'!A205","v":101},{"$f":"IF('Sjekkliste for utfylling'!G205<>\"\",1,0)","v":0},0,null,{"$f":"IF($C102=1,'Sjekkliste for utfylling'!A205,\"\")","v":""},{"$f":"IF($C102=1,'Sjekkliste for utfylling'!B205,\"\")","v":""},null,{"$f":"IF(C102=1,'Sjekkliste for utfylling'!H205,\" \")","v":" "}]
[{"$f":"'Sjekkliste for utfylling'!A206","v":102},{"$f":"IF('Sjekkliste for utfylling'!G206<>\"\",1,0)","v":0},0,null,{"$f":"IF($C103=1,'Sjekkliste for utfylling'!A206,\"\")","v":""},{"$f":"IF($C103=1,'Sjekkliste for utfylling'!B206,\"\")","v":""},null,{"$f":"IF(C103=1,'Sjekkliste for utfylling'!H206,\" \")","v":" "}]
[{"$f":"'Sjekkliste for utfylling'!A207","v":103},{"$f":"IF('Sjekkliste for utfylling'!G207<>\"\",1,0)","v":0},0,null,{"$f":"IF($C104=1,'Sjekkliste for utfylling'!A207,\"\")","v":""},{"$f":"IF($C104=1,'Sjekkliste for utfylling'!B207,\"\")","v":""},null,{"$f":"IF(C104=1,'Sjekkliste for utfylling'!H207,\" \")","v":" "}]
[{"$f":"'Sjekkliste for utfylling'!A209","v":104},{"$f":"IF('Sjekkliste for utfylling'!G209<>\"\",1,0)","v":0},0,null,{"$f":"IF($C105=1,'Sjekkliste for utfylling'!A209,\"\")","v":""},{"$f":"IF($C105=1,'Sjekkliste for utfylling'!B209,\"\")","v":""},null,{"$f":"IF(C105=1,'Sjekkliste for utfylling'!H209,\" \")","v":" "}]
[{"$f":"'Sjekkliste for utfylling'!A211","v":105},{"$f":"IF('Sjekkliste for utfylling'!G211<>\"\",1,0)","v":0},0,null,{"$f":"IF($C106=1,'Sjekkliste for utfylling'!A211,\"\")","v":""},{"$f":"IF($C106=1,'Sjekkliste for utfylling'!B211,\"\")","v":""},null,{"$f":"IF(C106=1,'Sjekkliste for utfylling'!H211,\" \")","v":" "}]
[{"$f":"'Sjekkliste for utfylling'!A212","v":106},{"$f":"IF('Sjekkliste for utfylling'!G212<>\"\",1,0)","v":0},0,null,{"$f":"IF($C107=1,'Sjekkliste for utfylling'!A212,\"\")","v":""},{"$f":"IF($C107=1,'Sjekkliste for utfylling'!B212,\"\")","v":""},null,{"$f":"IF(C107=1,'Sjekkliste for utfylling'!H212,\" \")","v":" "}]
[{"$f":"'Sjekkliste for utfylling'!A213","v":107},{"$f":"IF('Sjekkliste for utfylling'!G213<>\"\",1,0)","v":0},0,null,{"$f":"IF($C108=1,'Sjekkliste for utfylling'!A213,\"\")","v":""},{"$f":"IF($C108=1,'Sjekkliste for utfylling'!B213,\"\")","v":""},null,{"$f":"IF(C108=1,'Sjekkliste for utfylling'!H213,\" \")","v":" "}]
[{"$f":"'Sjekkliste for utfylling'!A214","v":108},{"$f":"IF('Sjekkliste for utfylling'!G214<>\"\",1,0)","v":0},0,null,{"$f":"IF($C109=1,'Sjekkliste for utfylling'!A214,\"\")","v":""},{"$f":"IF($C109=1,'Sjekkliste for utfylling'!B214,\"\")","v":""},null,{"$f":"IF(C109=1,'Sjekkliste for utfylling'!H214,\" \")","v":" "}]
[{"$f":"'Sjekkliste for utfylling'!A215","v":109},{"$f":"IF('Sjekkliste for utfylling'!G215<>\"\",1,0)","v":0},0,null,{"$f":"IF($C110=1,'Sjekkliste for utfylling'!A215,\"\")","v":""},{"$f":"IF($C110=1,'Sjekkliste for utfylling'!B215,\"\")","v":""},null,{"$f":"IF(C110=1,'Sjekkliste for utfylling'!H215,\" \")","v":" "}]
[{"$f":"'Sjekkliste for utfylling'!A216","v":110},{"$f":"IF('Sjekkliste for utfylling'!G216<>\"\",1,0)","v":0},0,null,{"$f":"IF($C111=1,'Sjekkliste for utfylling'!A216,\"\")","v":""},{"$f":"IF($C111=1,'Sjekkliste for utfylling'!B216,\"\")","v":""},null,{"$f":"IF(C111=1,'Sjekkliste for utfylling'!H216,\" \")","v":" "}]
[{"$f":"'Sjekkliste for utfylling'!A217","v":111},{"$f":"IF('Sjekkliste for utfylling'!G217<>\"\",1,0)","v":0},0,null,{"$f":"IF($C112=1,'Sjekkliste for utfylling'!A217,\"\")","v":""},{"$f":"IF($C112=1,'Sjekkliste for utfylling'!B217,\"\")","v":""},null,{"$f":"IF(C112=1,'Sjekkliste for utfylling'!H217,\" \")","v":" "}]
[{"$f":"'Sjekkliste for utfylling'!A218","v":112},{"$f":"IF('Sjekkliste for utfylling'!G218<>\"\",1,0)","v":0},0,null,{"$f":"IF($C113=1,'Sjekkliste for utfylling'!A218,\"\")","v":""},{"$f":"IF($C113=1,'Sjekkliste for utfylling'!B218,\"\")","v":""},null,{"$f":"IF(C113=1,'Sjekkliste for utfylling'!H218,\" \")","v":" "}]
[{"$f":"'Sjekkliste for utfylling'!A219","v":113},{"$f":"IF('Sjekkliste for utfylling'!G219<>\"\",1,0)","v":0},0,null,{"$f":"IF($C114=1,'Sjekkliste for utfylling'!A219,\"\")","v":""},{"$f":"IF($C114=1,'Sjekkliste for utfylling'!B219,\"\")","v":""},null,{"$f":"IF(C114=1,'Sjekkliste for utfylling'!H219,\" \")","v":" "}]
[{"$f":"'Sjekkliste for utfylling'!A220","v":114},{"$f":"IF('Sjekkliste for utfylling'!G220<>\"\",1,0)","v":0},0,null,{"$f":"IF($C115=1,'Sjekkliste for utfylling'!A220,\"\")","v":""},{"$f":"IF($C115=1,'Sjekkliste for utfylling'!B220,\"\")","v":""},null,{"$f":"IF(C115=1,'Sjekkliste for utfylling'!H220,\" \")","v":" "}]
[{"$f":"'Sjekkliste for utfylling'!A224","v":115},{"$f":"IF('Sjekkliste for utfylling'!G224<>\"\",1,0)","v":0},0,null,{"$f":"IF($C116=1,'Sjekkliste for utfylling'!A224,\"\")","v":""},{"$f":"IF($C116=1,'Sjekkliste for utfylling'!B224,\"\")","v":""},null,{"$f":"IF(C116=1,'Sjekkliste for utfylling'!H224,\" \")","v":" "}]
[{"$f":"'Sjekkliste for utfylling'!A227","v":116},{"$f":"IF('Sjekkliste for utfylling'!G227<>\"\",1,0)","v":0},0,null,{"$f":"IF($C117=1,'Sjekkliste for utfylling'!A227,\"\")","v":""},{"$f":"IF($C117=1,'Sjekkliste for utfylling'!B227,\"\")","v":""},null,{"$f":"IF(C117=1,'Sjekkliste for utfylling'!H227,\" \")","v":" "}]
[{"$f":"'Sjekkliste for utfylling'!A229","v":117},{"$f":"IF('Sjekkliste for utfylling'!G229<>\"\",1,0)","v":0},0,null,{"$f":"IF($C118=1,'Sjekkliste for utfylling'!A229,\"\")","v":""},{"$f":"IF($C118=1,'Sjekkliste for utfylling'!B229,\"\")","v":""},null,{"$f":"IF(C118=1,'Sjekkliste for utfylling'!H229,\" \")","v":" "}]
[{"$f":"'Sjekkliste for utfylling'!A231","v":118},{"$f":"IF('Sjekkliste for utfylling'!G231<>\"\",1,0)","v":0},0,null,{"$f":"IF($C119=1,'Sjekkliste for utfylling'!A231,\"\")","v":""},{"$f":"IF($C119=1,'Sjekkliste for utfylling'!B231,\"\")","v":""},null,{"$f":"IF(C119=1,'Sjekkliste for utfylling'!H231,\" \")","v":" "}]
[{"$f":"'Sjekkliste for utfylling'!A235","v":119},{"$f":"IF('Sjekkliste for utfylling'!G235<>\"\",1,0)","v":0},0,null,{"$f":"IF($C120=1,'Sjekkliste for utfylling'!A235,\"\")","v":""},{"$f":"IF($C120=1,'Sjekkliste for utfylling'!B235,\"\")","v":""},null,{"$f":"IF(C120=1,'Sjekkliste for utfylling'!H235,\" \")","v":" "}]
[{"$f":"'Sjekkliste for utfylling'!A236","v":120},{"$f":"IF('Sjekkliste for utfylling'!G236<>\"\",1,0)","v":0},0,null,{"$f":"IF($C121=1,'Sjekkliste for utfylling'!A236,\"\")","v":""},{"$f":"IF($C121=1,'Sjekkliste for utfylling'!B236,\"\")","v":""},null,{"$f":"IF(C121=1,'Sjekkliste for utfylling'!H236,\" \")","v":" "}]
[{"$f":"'Sjekkliste for utfylling'!A237","v":121},{"$f":"IF('Sjekkliste for utfylling'!G237<>\"\",1,0)","v":0},0,null,{"$f":"IF($C122=1,'Sjekkliste for utfylling'!A237,\"\")","v":""},{"$f":"IF($C122=1,'Sjekkliste for utfylling'!B237,\"\")","v":""},null,{"$f":"IF(C122=1,'Sjekkliste for utfylling'!H237,\" \")","v":" "}]
[{"$f":"'Sjekkliste for utfylling'!A238","v":122},{"$f":"IF('Sjekkliste for utfylling'!G238<>\"\",1,0)","v":0},0,null,{"$f":"IF($C123=1,'Sjekkliste for utfylling'!A238,\"\")","v":""},{"$f":"IF($C123=1,'Sjekkliste for utfylling'!B238,\"\")","v":""},null,{"$f":"IF(C123=1,'Sjekkliste for utfylling'!H238,\" \")","v":" "}]
[{"$f":"'Sjekkliste for utfylling'!A239","v":123},{"$f":"IF('Sjekkliste for utfylling'!G239<>\"\",1,0)","v":0},0,null,{"$f":"IF($C124=1,'Sjekkliste for utfylling'!A239,\"\")","v":""},{"$f":"IF($C124=1,'Sjekkliste for utfylling'!B239,\"\")","v":""},null,{"$f":"IF(C124=1,'Sjekkliste for utfylling'!H239,\" \")","v":" "}]
[{"$f":"'Sjekkliste for utfylling'!A243","v":124},{"$f":"IF('Sjekkliste for utfylling'!G243<>\"\",1,0)","v":0},0,null,{"$f":"IF($C125=1,'Sjekkliste for utfylling'!A243,\"\")","v":""},{"$f":"IF($C125=1,'Sjekkliste for utfylling'!B243,\"\")","v":""},null,{"$f":"IF(C125=1,'Sjekkliste for utfylling'!H243,\" \")","v":" "}]
[{"$f":"'Sjekkliste for utfylling'!A246","v":125},{"$f":"IF('Sjekkliste for utfylling'!G246<>\"\",1,0)","v":0},0,null,{"$f":"IF($C126=1,'Sjekkliste for utfylling'!A246,\"\")","v":""},{"$f":"IF($C126=1,'Sjekkliste for utfylling'!B246,\"\")","v":""},null,{"$f":"IF(C126=1,'Sjekkliste for utfylling'!H246,\" \")","v":" "}]
[{"$f":"'Sjekkliste for utfylling'!A247","v":126},{"$f":"IF('Sjekkliste for utfylling'!G247<>\"\",1,0)","v":0},0,null,{"$f":"IF($C127=1,'Sjekkliste for utfylling'!A247,\"\")","v":""},{"$f":"IF($C127=1,'Sjekkliste for utfylling'!B247,\"\")","v":""},null,{"$f":"IF(C127=1,'Sjekkliste for utfylling'!H247,\" \")","v":" "}]
[{"$f":"'Sjekkliste for utfylling'!A248","v":127},{"$f":"IF('Sjekkliste for utfylling'!G248<>\"\",1,0)","v":0},0,null,{"$f":"IF($C128=1,'Sjekkliste for utfylling'!A248,\"\")","v":""},{"$f":"IF($C128=1,'Sjekkliste for utfylling'!B248,\"\")","v":""},null,{"$f":"IF(C128=1,'Sjekkliste for utfylling'!H248,\" \")","v":" "}]
[{"$f":"'Sjekkliste for utfylling'!A249","v":128},{"$f":"IF('Sjekkliste for utfylling'!G249<>\"\",1,0)","v":0},{"$f":"SUM(B129:B129)","v":0},null,{"$f":"IF($C129=1,'Sjekkliste for utfylling'!A249,\"\")","v":""},{"$f":"IF($C129=1,'Sjekkliste for utfylling'!B249,\"\")","v":""},null,{"$f":"IF(C129=1,'Sjekkliste for utfylling'!H249,\" \")","v":" "}]
[{"$f":"'Sjekkliste for utfylling'!A250","v":129},{"$f":"IF('Sjekkliste for utfylling'!G250<>\"\",1,0)","v":0},0,null,{"$f":"IF($C130=1,'Sjekkliste for utfylling'!A250,\"\")","v":""},{"$f":"IF($C130=1,'Sjekkliste for utfylling'!B250,\"\")","v":""},null,{"$f":"IF(C130=1,'Sjekkliste for utfylling'!H250,\" \")","v":" "}]
[{"$f":"'Sjekkliste for utfylling'!A251","v":130},{"$f":"IF('Sjekkliste for utfylling'!G251<>\"\",1,0)","v":0},0,null,{"$f":"IF($C131=1,'Sjekkliste for utfylling'!A251,\"\")","v":""},{"$f":"IF($C131=1,'Sjekkliste for utfylling'!B251,\"\")","v":""},null,{"$f":"IF(C131=1,'Sjekkliste for utfylling'!H251,\" \")","v":" "}]
[{"$f":"'Sjekkliste for utfylling'!A254","v":131},{"$f":"IF('Sjekkliste for utfylling'!G254<>\"\",1,0)","v":0},0,null,{"$f":"IF($C132=1,'Sjekkliste for utfylling'!A254,\"\")","v":""},{"$f":"IF($C132=1,'Sjekkliste for utfylling'!B254,\"\")","v":""},null,{"$f":"IF(C132=1,'Sjekkliste for utfylling'!H254,\" \")","v":" "}]